Service Delivery Area(T),Service Delivery Team(T),ExpenditureGroup(T),Account(T),Supplier Name(T),Trans Date,Amount
Adult Social Care,ASC Directorate,Supplies & Services,Other Grants (Expenses),Beaumaris Healthcare Ltd,17/02/2022,3500
Adult Social Care,ASC Directorate,Supplies & Services,Other Grants (Expenses),BETHPHAGE,17/02/2022,19775
Adult Social Care,ASC Directorate,Supplies & Services,Other Grants (Expenses),Brockton Care LTD,17/02/2022,10675
Adult Social Care,ASC Directorate,Supplies & Services,Other Grants (Expenses),COVERAGE CARE SERVICES LTD ,17/02/2022,7875
Adult Social Care,ASC Directorate,Supplies & Services,Other Grants (Expenses),COMPLETE CARE HOLDINGS LTD,17/02/2022,7700
Adult Social Care,ASC Directorate,Supplies & Services,Other Grants (Expenses),CREATIVE SUPPORT LTD,17/02/2022,4375
Adult Social Care,ASC Directorate,Supplies & Services,Other Grants (Expenses),Daily Care 4 U,17/02/2022,4375
Adult Social Care,ASC Directorate,Supplies & Services,Other Grants (Expenses),Swanton Care & Community Ltd ,17/02/2022,8750
Adult Social Care,ASC Directorate,Supplies & Services,Other Grants (Expenses),Direct Health Homecare Limited,17/02/2022,13125
Adult Social Care,ASC Directorate,Supplies & Services,Other Grants (Expenses),Ever-Ready Health and Social Care Solutions Ltd,17/02/2022,525
Adult Social Care,ASC Directorate,Supplies & Services,Other Grants (Expenses),Helping Hands Domiciliary Care Services,17/02/2022,6300
Adult Social Care,ASC Directorate,Supplies & Services,Other Grants (Expenses),Home Instead,17/02/2022,10500
Adult Social Care,ASC Directorate,Supplies & Services,Other Grants (Expenses),Independent Community Care Management Limited,17/02/2022,4375
Adult Social Care,ASC Directorate,Supplies & Services,Other Grants (Expenses),Interserve Healthcare Group - Trading as Advantage Healthcare,17/02/2022,1400
Adult Social Care,ASC Directorate,Supplies & Services,Other Grants (Expenses),Komplex Care Limited,17/02/2022,28525
Adult Social Care,ASC Directorate,Supplies & Services,Other Grants (Expenses),Letter shanner,17/02/2022,175
Adult Social Care,ASC Directorate,Supplies & Services,Other Grants (Expenses),M T Support Ltd,17/02/2022,6825
Adult Social Care,ASC Directorate,Supplies & Services,Other Grants (Expenses),Nutrix Curae Care Ltd,17/02/2022,2100
Adult Social Care,ASC Directorate,Supplies & Services,Other Grants (Expenses),PARADIGM HEALTH & SOCIAL CARE LTD,17/02/2022,3500
Adult Social Care,ASC Directorate,Supplies & Services,Other Grants (Expenses),PEACE OF MIND HOMECARE LIMITED,17/02/2022,8750
Adult Social Care,ASC Directorate,Supplies & Services,Other Grants (Expenses),PHOENIX CARE,17/02/2022,3150
Adult Social Care,ASC Directorate,Supplies & Services,Other Grants (Expenses),THE QUIL CARE GROUP,17/02/2022,5425
Adult Social Care,ASC Directorate,Supplies & Services,Other Grants (Expenses),Rose Manor Extra Care ,17/02/2022,5075
Adult Social Care,ASC Directorate,Supplies & Services,Other Grants (Expenses),Sanctuary Home Care ,17/02/2022,5950
Adult Social Care,ASC Directorate,Supplies & Services,Other Grants (Expenses),Oleander House - Sanctuary Housing,17/02/2022,7175
Adult Social Care,ASC Directorate,Supplies & Services,Other Grants (Expenses),Sentinel Care Services,17/02/2022,5775
Adult Social Care,ASC Directorate,Supplies & Services,Other Grants (Expenses),SUPREME HOME CARE,17/02/2022,12250
Adult Social Care,ASC Directorate,Supplies & Services,Other Grants (Expenses),SUPPORTED HOMES LTD,17/02/2022,7000
Adult Social Care,ASC Directorate,Supplies & Services,Other Grants (Expenses),THE CARE BUREAU,17/02/2022,7175
Adult Social Care,ASC Directorate,Supplies & Services,Other Grants (Expenses),WE ARE THE CARE COMPANY LTD,17/02/2022,8050
Adult Social Care,ASC Directorate,Supplies & Services,Other Grants (Expenses),WSupport Services,17/02/2022,3675
Adult Social Care,ASC Directorate,Supplies & Services,Other Grants (Expenses),ACCORD HOUSING ASSOCIATION LTD ,17/02/2022,8575
Adult Social Care,ASC Directorate,Supplies & Services,Other Grants (Expenses),ACCORD HOUSING ASSOCIATION LTD ,17/02/2022,3150
Adult Social Care,ASC Directorate,Supplies & Services,Other Grants (Expenses),COVERAGE CARE SERVICES LTD ,17/02/2022,8050
Adult Social Care,ASC Directorate,Supplies & Services,Other Grants (Expenses),COVERAGE CARE SERVICES LTD,17/02/2022,15750
Adult Social Care,ASC Directorate,Supplies & Services,Other Grants (Expenses),Inspire (Acorn House),17/02/2022,1750
Adult Social Care,ASC Directorate,Supplies & Services,Other Grants (Expenses),Inspire (Acorn House),17/02/2022,1400
Adult Social Care,ASC Directorate,Supplies & Services,Other Grants (Expenses),Inspire (Acorn House),17/02/2022,2975
Adult Social Care,ASC Directorate,Supplies & Services,Other Grants (Expenses),Rotherwood Healthcare  Ltd,17/02/2022,4200
Adult Social Care,ASC Directorate,Supplies & Services,Other Grants (Expenses),CREATIVE SUPPORT LTD,17/02/2022,2275
Adult Social Care,ASC Directorate,Supplies & Services,Other Grants (Expenses),A Care Homes Telford Limited,17/02/2022,6475
Adult Social Care,ASC Directorate,Supplies & Services,Other Grants (Expenses),Nutrix Curae Care Ltd,14/02/2022,-437.13
Adult Social Care,ASC Directorate,Supplies & Services,Other Grants (Expenses),HC-One Limited,23/02/2022,1925
Adult Social Care,ASC Directorate,Supplies & Services,Other Grants (Expenses), Brown Clee Care,28/02/2022,4550
Adult Social Care,ASC Directorate,Supplies & Services,Other Grants (Expenses),Total Community Care Ltd,28/02/2022,6125
Adult Social Care,ASC Prevention & Enablement,Third Party Payments,Pathway 2 - Enablement Nursing,Rotherwood Healthcare  Ltd,22/02/2022,4736.37
Adult Social Care,"Commissioning, Procurement & Brokerage",Third Party Payments,Interpreters Fees,EXPRESS INTERPRETING & TRANSLATION,07/02/2022,2868.57
Adult Social Care,"Commissioning, Procurement & Brokerage",Supplies & Services,Other Grants (Expenses),TELFORD & WREKIN CVS,22/02/2022,90000
Adult Social Care,"Commissioning, Procurement & Brokerage",Supplies & Services,Grants To Voluntary Organis,W & Eastbourne Lifeline (WELBEING),08/02/2022,5217.17
Adult Social Care,"Commissioning, Procurement & Brokerage",Supplies & Services,Grants To Voluntary Organis,W & Eastbourne Lifeline (WELBEING),08/02/2022,5217.17
Adult Social Care,"Commissioning, Procurement & Brokerage",Supplies & Services,Grants To Voluntary Organis,W & Eastbourne Lifeline (WELBEING),16/02/2022,5217.17
Adult Social Care,"Commissioning, Procurement & Brokerage",Supplies & Services,Other Grants (Expenses),ANCHOR HOUSING TRUST,01/02/2022,133.33
Adult Social Care,"Commissioning, Procurement & Brokerage",Supplies & Services,Other Grants (Expenses),HANOVER HOUSING ASSOCIATION,01/02/2022,750
Adult Social Care,"Commissioning, Procurement & Brokerage",Supplies & Services,Other Grants (Expenses),OLD BHOMES,01/02/2022,433.33
Adult Social Care,"Commissioning, Procurement & Brokerage",Supplies & Services,Other Grants (Expenses),SANCTUARY HOUSING ASSOCIATION ,01/02/2022,610.7
Adult Social Care,"Commissioning, Procurement & Brokerage",Supplies & Services,Other Grants (Expenses),BROMFORD HOUSING ASSOCIATION LIMITED,01/02/2022,36666.67
Adult Social Care,"Commissioning, Procurement & Brokerage",Supplies & Services,Other Grants (Expenses),TELFORD CHRISTIAN COUNCIL SUPPORTED HOUS,01/02/2022,36401.83
Adult Social Care,"Commissioning, Procurement & Brokerage",Supplies & Services,Other Grants (Expenses),WREKIN HOUSING TRUST ,01/02/2022,25568.33
Adult Social Care,"Commissioning, Procurement & Brokerage",Supplies & Services,Other Grants (Expenses),W & Eastbourne Lifeline (WELBEING),08/02/2022,3815.12
Adult Social Care,"Commissioning, Procurement & Brokerage",Supplies & Services,Other Grants (Expenses),W & Eastbourne Lifeline (WELBEING),08/02/2022,1902.78
Adult Social Care,"Commissioning, Procurement & Brokerage",Supplies & Services,Other Grants (Expenses),W & Eastbourne Lifeline (WELBEING),08/02/2022,3815.12
Adult Social Care,"Commissioning, Procurement & Brokerage",Supplies & Services,Other Grants (Expenses),W & Eastbourne Lifeline (WELBEING),08/02/2022,1880.46
Adult Social Care,"Commissioning, Procurement & Brokerage",Supplies & Services,Other Grants (Expenses),W & Eastbourne Lifeline (WELBEING),16/02/2022,3815.12
Adult Social Care,"Commissioning, Procurement & Brokerage",Supplies & Services,Other Grants (Expenses),W & Eastbourne Lifeline (WELBEING),16/02/2022,1883.22
Adult Social Care,"Commissioning, Procurement & Brokerage",Capital Expenditure,Other Capital Expenditure,First Choice Housing Association LTD,16/02/2022,21724
Adult Social Care,"Commissioning, Procurement & Brokerage",Capital Expenditure,Payments to Contractor,First Choice Housing Association LTD,16/02/2022,3000
Adult Social Care,Community Social Work & Adult Safeguarding,Supplies & Services,Other Grants (Expenses),Healthwatch,03/02/2022,25000
Adult Social Care,Community Social Work & Adult Safeguarding,Supplies & Services,Other Grants (Expenses),VoiceAbility,03/02/2022,6625
Adult Social Care,Community Social Work & Adult Safeguarding,Supplies & Services,Legal Expenses,Kings Chambers,03/02/2022,825
Adult Social Care,Community Social Work & Adult Safeguarding,Supplies & Services,Legal Expenses,39 Essex Chambers,03/02/2022,1110.87
Adult Social Care,Community Social Work (Principal Social Worker),Transport-Related Expenditure,Taxi Costs, Go Carz,24/02/2022,322.68
Adult Social Care,Community Social Work (Principal Social Worker),Transport-Related Expenditure,Taxi Costs, Go Carz,24/02/2022,840
Adult Social Care,Community Social Work (Principal Social Worker),Transport-Related Expenditure,Taxi Costs, Go Carz,24/02/2022,654.8
Adult Social Care,Community Social Work (Principal Social Worker),Transport-Related Expenditure,Taxi Costs, Go Carz,24/02/2022,331.2
Adult Social Care,Community Social Work (Principal Social Worker),Transport-Related Expenditure,Taxi Costs, Go Carz,24/02/2022,426.72
Adult Social Care,Community Social Work (Principal Social Worker),Transport-Related Expenditure,Taxi Costs, Go Carz,24/02/2022,104.4
Adult Social Care,Community Social Work (Principal Social Worker),Transport-Related Expenditure,Taxi Costs, Go Carz,24/02/2022,360.96
Adult Social Care,Community Social Work (Principal Social Worker),Transport-Related Expenditure,Taxi Costs, Go Carz,24/02/2022,375.24
Adult Social Care,Community Social Work (Principal Social Worker),Premises-Related Expenditure,Hire Of Rooms,MEETING POINT TRUST LTD,03/02/2022,192
Adult Social Care,Community Social Work (Principal Social Worker),Supplies & Services,Security Services,CREATIVE SUPPORT LTD,14/02/2022,748.8
Adult Social Care,My Options,Premises-Related Expenditure,Clean Mats & Toilet Requisites,PHS GROUP,15/02/2022,112.27
Adult Social Care,My Options,Premises-Related Expenditure,Hire Of Rooms,HOLLINSWOOD & RANDLAY PARISH COUNCIL,08/02/2022,160
Adult Social Care,My Options,Premises-Related Expenditure,Hire Of Rooms,All Saints Wellington,08/02/2022,210
Adult Social Care,My Options,Premises-Related Expenditure,Hire Of Rooms,All Saints Wellington,08/02/2022,260
Adult Social Care,My Options,Premises-Related Expenditure,Hire Of Rooms,DONNINGTON PARTNERSHIP,15/02/2022,240
Adult Social Care,My Options,Supplies & Services,Comp Software (Purch / Hire),PHOENIX SOFTWARE LTD,01/02/2022,120
Adult Social Care,My Options,Supplies & Services,Comp Software (Purch / Hire),PHOENIX SOFTWARE LTD,22/02/2022,168.56
Adult Social Care,My Options,Employees,Agency Supply Costs,Safehands Recruitment,17/02/2022,229.43
Adult Social Care,My Options,Employees,Agency Supply Costs,Safehands Recruitment,11/02/2022,421.39
Adult Social Care,My Options,Employees,Agency Supply Costs,Safehands Recruitment,07/02/2022,210.72
Adult Social Care,My Options,Premises-Related Expenditure,R&M -Buildings DLO Charge,A E C & Co (Old Hill) Ltd,08/02/2022,241.03
Adult Social Care,My Options,Premises-Related Expenditure,Clean Mats & Toilet Requisites,BERWICK CARE EQUIPMENT LTD,08/02/2022,260.26
Adult Social Care,My Options,Premises-Related Expenditure,R&M -Buildings DLO Charge,G CONSTRUCTION & MAINTENANCE LTD,15/02/2022,240
Adult Social Care,My Options,Premises-Related Expenditure,Clean Mats & Toilet Requisites,BERWICK CARE EQUIPMENT LTD,28/02/2022,108.5
Adult Social Care,My Options,Premises-Related Expenditure,Clean Mats & Toilet Requisites,BERWICK CARE EQUIPMENT LTD,28/02/2022,184.3
Adult Social Care,My Options,Supplies & Services,Equipment - Purchase,MEDACO,02/02/2022,240
Adult Social Care,My Options,Supplies & Services,Protective Clothing,H Workwear,15/02/2022,101.25
Adult Social Care,My Options,Employees,Agency Supply Costs,Nurse Plus and Carer Plus (UK) Limited,02/02/2022,498.61
Adult Social Care,My Options,Employees,Agency Supply Costs,Safehands Recruitment,11/02/2022,253.6
Adult Social Care,My Options,Employees,Agency Supply Costs,Safehands Recruitment,11/02/2022,737.73
Adult Social Care,My Options,Employees,Agency Supply Costs,Safehands Recruitment,11/02/2022,772.64
Adult Social Care,My Options,Employees,Agency Supply Costs,Nurse Plus and Carer Plus (UK) Limited,11/02/2022,143.6
Adult Social Care,My Options,Employees,Agency Supply Costs,Safehands Recruitment,15/02/2022,393.35
Adult Social Care,My Options,Employees,Agency Supply Costs,Safehands Recruitment,15/02/2022,543.9
Adult Social Care,My Options,Employees,Agency Supply Costs,Safehands Recruitment,15/02/2022,1465.65
Adult Social Care,My Options,Employees,Agency Supply Costs,Nurse Plus and Carer Plus (UK) Limited,15/02/2022,685.23
Adult Social Care,My Options,Employees,Agency Supply Costs,JN Recruitment,07/02/2022,548.64
Adult Social Care,My Options,Employees,Agency Supply Costs,JN Recruitment,07/02/2022,165
Adult Social Care,My Options,Employees,Agency Supply Costs,Safehands Recruitment,07/02/2022,393.35
Adult Social Care,My Options,Employees,Agency Supply Costs,Safehands Recruitment,07/02/2022,199.5
Adult Social Care,My Options,Employees,Agency Supply Costs,Safehands Recruitment,07/02/2022,565.32
Adult Social Care,My Options,Employees,Agency Supply Costs,Safehands Recruitment,07/02/2022,1235.54
Adult Social Care,My Options,Employees,Agency Supply Costs,JN Recruitment,14/02/2022,899.28
Adult Social Care,My Options,Employees,Agency Supply Costs,Nurse Plus and Carer Plus (UK) Limited,28/02/2022,651
Adult Social Care,My Options,Employees,Agency Supply Costs,JN Recruitment,28/02/2022,643.51
Adult Social Care,My Options,Employees,Agency Supply Costs,JN Recruitment,28/02/2022,664.14
Adult Social Care,My Options,Employees,Agency Supply Costs,Safehands Recruitment,28/02/2022,238.06
Adult Social Care,My Options,Employees,Agency Supply Costs,Safehands Recruitment,28/02/2022,622.14
Adult Social Care,My Options,Employees,Agency Supply Costs,Safehands Recruitment,28/02/2022,878.22
Adult Social Care,My Options,Employees,Agency Supply Costs,Safehands Recruitment,28/02/2022,479.74
Adult Social Care,My Options,Employees,Agency Supply Costs,Safehands Recruitment,28/02/2022,175.6
Adult Social Care,My Options,Supplies & Services,Computer Software (Maint),Access UK Ltd,11/02/2022,644.4
Adult Social Care,My Options,Supplies & Services,Adult Flexi / Day Care,REDACTED PERSONAL INFORMATION,03/02/2022,311.04
Adult Social Care,My Options,Supplies & Services,Adult Flexi / Day Care,REDACTED PERSONAL INFORMATION,03/02/2022,466.56
Adult Social Care,My Options,Supplies & Services,Adult Flexi / Day Care,REDACTED PERSONAL INFORMATION,03/02/2022,207.36
Adult Social Care,My Options,Supplies & Services,Adult Flexi / Day Care,REDACTED PERSONAL INFORMATION,11/02/2022,362.88
Adult Social Care,My Options,Supplies & Services,Other Travel,REDACTED PERSONAL INFORMATION,11/02/2022,126
Adult Social Care,My Options,Supplies & Services,Adult Flexi / Day Care,REDACTED PERSONAL INFORMATION,11/02/2022,622.08
Adult Social Care,My Options,Supplies & Services,Other Travel,REDACTED PERSONAL INFORMATION,11/02/2022,216
Adult Social Care,My Options,Supplies & Services,Respite Care,REDACTED PERSONAL INFORMATION,03/02/2022,207.36
Adult Social Care,My Options,Supplies & Services,Respite Care,REDACTED PERSONAL INFORMATION,04/02/2022,792.4
Adult Social Care,My Options,Supplies & Services,Respite Care,REDACTED PERSONAL INFORMATION,04/02/2022,925.32
Adult Social Care,My Options,Supplies & Services,Respite Care,REDACTED PERSONAL INFORMATION,04/02/2022,1372.28
Adult Social Care,My Options,Supplies & Services,Respite Care,REDACTED PERSONAL INFORMATION,04/02/2022,1151.48
Adult Social Care,My Options,Supplies & Services,Respite Care,REDACTED PERSONAL INFORMATION,04/02/2022,1531.48
Adult Social Care,My Options,Supplies & Services,Respite Care,REDACTED PERSONAL INFORMATION,11/02/2022,103.68
Adult Social Care,My Options,Supplies & Services,Respite Care,REDACTED PERSONAL INFORMATION,11/02/2022,155.52
Adult Social Care,My Options,Supplies & Services,Respite Care,REDACTED PERSONAL INFORMATION,11/02/2022,362.88
Adult Social Care,My Options,Supplies & Services,Respite Care,REDACTED PERSONAL INFORMATION,03/02/2022,362.88
Adult Social Care,My Options,Supplies & Services,Respite Care,REDACTED PERSONAL INFORMATION,24/02/2022,362.88
Adult Social Care,My Options,Supplies & Services,Respite Care,REDACTED PERSONAL INFORMATION,11/02/2022,1451.52
Adult Social Care,My Options,Supplies & Services,Respite Care,REDACTED PERSONAL INFORMATION,16/02/2022,231.33
Adult Social Care,My Options,Supplies & Services,Subscriptions,SHARED LIVES PLUS,25/02/2022,189
Adult Social Care,My Options,Supplies & Services,Subscriptions,SHARED LIVES PLUS,25/02/2022,351
Adult Social Care,My Options,Employees,Agency Supply Costs,JN Recruitment,02/02/2022,396
Adult Social Care,My Options,Employees,Agency Supply Costs,JN Recruitment,02/02/2022,198
Adult Social Care,My Options,Employees,Agency Supply Costs,Iconic Care Limited,02/02/2022,1666
Adult Social Care,My Options,Employees,Agency Supply Costs,Iconic Care Limited,02/02/2022,512
Adult Social Care,My Options,Employees,Agency Supply Costs, JN Recruitment,08/02/2022,-198
Adult Social Care,My Options,Employees,Agency Supply Costs,Iconic Care Limited,11/02/2022,1478
Adult Social Care,My Options,Employees,Agency Supply Costs,JN Recruitment,11/02/2022,990
Adult Social Care,My Options,Employees,Agency Supply Costs,JN Recruitment,07/02/2022,379.5
Adult Social Care,My Options,Employees,Agency Supply Costs,Iconic Care Limited,15/02/2022,5953
Adult Social Care,My Options,Employees,Agency Supply Costs,Iconic Care Limited,15/02/2022,5728.65
Adult Social Care,My Options,Employees,Agency Supply Costs,Iconic Care Limited,15/02/2022,5606.5
Adult Social Care,My Options,Supplies & Services,Equipment - Purchase,Portable Partitions Company,14/02/2022,3064.74
Adult Social Care,My Options,Supplies & Services,Comp Hardware (Purch / Hire),CCS MEDIA LIMITED,24/02/2022,149
Adult Social Care,My Options,Employees,Staff Training,SHROPSHIRE COUNCIL ,17/02/2022,105
Adult Social Care,Prevention & Independence - Older Adults & Disability,Third Party Payments,Pathway 3 - Enablement Nursing,R Healthcare (Roden Hall) Ltd,09/02/2022,-8978.53
Adult Social Care,Prevention & Independence - Older Adults & Disability,Employees,Course Fees,SHROPSHIRE COUNCIL ,02/02/2022,175
Adult Social Care,Prevention & Independence - Older Adults & Disability,Premises-Related Expenditure,Bed & Breakfast Charges,WHITEHOUSE HOTELS LTD,28/02/2022,266.67
Adult Social Care,Prevention & Independence - Older Adults & Disability,Supplies & Services,Internet,WHITEHOUSE HOTELS LTD,10/02/2022,1519.05
Adult Social Care,Prevention & Independence - Older Adults & Disability,Supplies & Services,Aids & Appliances,1st Call Mobility,28/02/2022,3565
Adult Social Care,Prevention & Independence - Older Adults & Disability,Transfer Payments,Non Traditional Care Packages,WHITEHOUSE HOTELS LTD,10/02/2022,1519.05
Adult Social Care,Prevention & Independence - Older Adults & Disability,Transfer Payments,Non Traditional Care Packages,WHITEHOUSE HOTELS LTD,10/02/2022,1676.19
Adult Social Care,Prevention & Independence - Older Adults & Disability,Supplies & Services,Aids & Appliances,Easylink,01/02/2022,833.6
Adult Social Care,Prevention & Independence - Older Adults & Disability,Supplies & Services,Aids & Appliances,Medequip,01/02/2022,195
Adult Social Care,Prevention & Independence - Older Adults & Disability,Supplies & Services,Aids & Appliances,Easylink,01/02/2022,749.25
Adult Social Care,Prevention & Independence - Older Adults & Disability,Supplies & Services,Aids & Appliances,PivoTell Ltd,01/02/2022,1900
Adult Social Care,Prevention & Independence - Older Adults & Disability,Supplies & Services,Aids & Appliances,Medequip,01/02/2022,195
Adult Social Care,Prevention & Independence - Older Adults & Disability,Supplies & Services,Aids & Appliances,THE WREKIN HOUSING TRUST,01/02/2022,125
Adult Social Care,Prevention & Independence - Older Adults & Disability,Supplies & Services,Aids & Appliances,WREKIN HOUSING TRUST  LTD ,01/02/2022,245
Adult Social Care,Prevention & Independence - Older Adults & Disability,Supplies & Services,Aids & Appliances,WREKIN HOUSING TRUST  LTD ,01/02/2022,125
Adult Social Care,Prevention & Independence - Older Adults & Disability,Premises-Related Expenditure,R&M -Buildings DLO Charge,GRANVILLE CONSTRUCTION & MAINTENANCE LTD,16/02/2022,413.61
Adult Social Care,Prevention & Independence - Older Adults & Disability,Supplies & Services,Aids & Appliances,Mobility Smart Limited,02/02/2022,6750
Adult Social Care,Prevention & Independence - Older Adults & Disability,Supplies & Services,Equipment - Repair,STANNAH LIFT SERVICES LTD,09/02/2022,107
Adult Social Care,Prevention & Independence - Older Adults & Disability,Supplies & Services,Equipment - Repair,STANNAH LIFT SERVICES LTD,09/02/2022,110.31
Adult Social Care,Prevention & Independence - Older Adults & Disability,Supplies & Services,Equipment - Repair,STANNAH LIFT SERVICES LTD,09/02/2022,462.87
Adult Social Care,Prevention & Independence - Older Adults & Disability,Supplies & Services,Equipment - Repair,STANNAH LIFT SERVICES LTD,09/02/2022,488.6
Adult Social Care,Prevention & Independence - Older Adults & Disability,Supplies & Services,Equipment - Repair,STANNAH LIFT SERVICES LTD,09/02/2022,269.29
Adult Social Care,Prevention & Independence - Older Adults & Disability,Supplies & Services,Equipment - Repair,STANNAH LIFT SERVICES LTD,09/02/2022,191.25
Adult Social Care,Prevention & Independence - Older Adults & Disability,Supplies & Services,Equipment - Repair,STANNAH LIFT SERVICES LTD,09/02/2022,222.21
Adult Social Care,Prevention & Independence - Older Adults & Disability,Supplies & Services,Equipment - Repair,STANNAH LIFT SERVICES LTD,09/02/2022,260.26
Adult Social Care,Prevention & Independence - Older Adults & Disability,Supplies & Services,Aids & Appliances,BERWICK CARE EQUIPMENT LTD,01/02/2022,599
Adult Social Care,Prevention & Independence - Older Adults & Disability,Supplies & Services,Equipment - Repair,STANNAH LIFT SERVICES LTD,01/02/2022,459.62
Adult Social Care,Prevention & Independence - Older Adults & Disability,Supplies & Services,Equipment - Repair,STANNAH LIFT SERVICES LTD,01/02/2022,190
Adult Social Care,Prevention & Independence - Older Adults & Disability,Supplies & Services,Equipment - Repair,STANNAH LIFT SERVICES LTD,01/02/2022,284.96
Adult Social Care,Prevention & Independence - Older Adults & Disability,Supplies & Services,Equipment - Repair,STANNAH LIFT SERVICES LTD,01/02/2022,117.29
Adult Social Care,Prevention & Independence - Older Adults & Disability,Supplies & Services,Equipment - Repair,STANNAH LIFT SERVICES LTD,01/02/2022,140
Adult Social Care,Prevention & Independence - Older Adults & Disability,Supplies & Services,Equipment - Repair,STANNAH LIFT SERVICES LTD,01/02/2022,107
Adult Social Care,Prevention & Independence - Older Adults & Disability,Supplies & Services,Aids & Appliances,Nottingham Rehab Ltd,04/02/2022,997.4
Adult Social Care,Prevention & Independence - Older Adults & Disability,Supplies & Services,Equipment - Repair,STANNAH LIFT SERVICES LTD,01/02/2022,945.87
Adult Social Care,Prevention & Independence - Older Adults & Disability,Supplies & Services,Equipment - Repair,STANNAH LIFT SERVICES LTD,01/02/2022,520.35
Adult Social Care,Prevention & Independence - Older Adults & Disability,Supplies & Services,Equipment - Repair,STANNAH LIFT SERVICES LTD,01/02/2022,110.31
Adult Social Care,Prevention & Independence - Older Adults & Disability,Supplies & Services,Equipment - Repair,STANNAH LIFT SERVICES LTD,01/02/2022,202.62
Adult Social Care,Prevention & Independence - Older Adults & Disability,Supplies & Services,Equipment - Repair,STANNAH LIFT SERVICES LTD,01/02/2022,169.37
Adult Social Care,Prevention & Independence - Older Adults & Disability,Supplies & Services,Equipment - Repair,STANNAH LIFT SERVICES LTD,01/02/2022,466.03
Adult Social Care,Prevention & Independence - Older Adults & Disability,Supplies & Services,Equipment - Repair,STANNAH LIFT SERVICES LTD,01/02/2022,318.94
Adult Social Care,Prevention & Independence - Older Adults & Disability,Supplies & Services,Equipment - Repair,STANNAH LIFT SERVICES LTD,01/02/2022,4511
Adult Social Care,Prevention & Independence - Older Adults & Disability,Supplies & Services,Equipment - Repair,STANNAH LIFT SERVICES LTD,01/02/2022,196.01
Adult Social Care,Prevention & Independence - Older Adults & Disability,Supplies & Services,Equipment - Repair,STANNAH LIFT SERVICES LTD,01/02/2022,188.25
Adult Social Care,Prevention & Independence - Older Adults & Disability,Supplies & Services,Equipment - Repair,STANNAH LIFT SERVICES LTD,16/02/2022,203.14
Adult Social Care,Prevention & Independence - Older Adults & Disability,Supplies & Services,Equipment - Repair,STANNAH LIFT SERVICES LTD,16/02/2022,147.7
Adult Social Care,Prevention & Independence - Older Adults & Disability,Supplies & Services,Equipment - Repair,STANNAH LIFT SERVICES LTD,16/02/2022,357.5
Adult Social Care,Prevention & Independence - Older Adults & Disability,Supplies & Services,Equipment - Repair,STANNAH LIFT SERVICES LTD,16/02/2022,386.41
Adult Social Care,Prevention & Independence - Older Adults & Disability,Supplies & Services,Equipment - Repair,STANNAH LIFT SERVICES LTD,16/02/2022,272.5
Adult Social Care,Prevention & Independence - Older Adults & Disability,Supplies & Services,Equipment - Repair,STANNAH LIFT SERVICES LTD,16/02/2022,498.22
Adult Social Care,Prevention & Independence - Older Adults & Disability,Supplies & Services,Equipment - Repair,STANNAH LIFT SERVICES LTD,16/02/2022,350.06
Adult Social Care,Prevention & Independence - Older Adults & Disability,Supplies & Services,Aids & Appliances,OSPREY HEALTHCARE LTD,15/02/2022,250
Adult Social Care,Prevention & Independence - Older Adults & Disability,Supplies & Services,Aids & Appliances,PERFORMANCE HEALTH INTERNATIONAL LTD,04/02/2022,1537.47
Adult Social Care,Prevention & Independence - Older Adults & Disability,Supplies & Services,Aids & Appliances,OSPREY HEALTHCARE LTD,09/02/2022,165
Adult Social Care,Prevention & Independence - Older Adults & Disability,Supplies & Services,Aids & Appliances,OSPREY HEALTHCARE LTD,09/02/2022,338
Adult Social Care,Prevention & Independence - Older Adults & Disability,Supplies & Services,Aids & Appliances,HOSPITAL DIRECT (MARKETING) LTD,09/02/2022,175.2
Adult Social Care,Prevention & Independence - Older Adults & Disability,Supplies & Services,Equipment - Repair,STANNAH LIFT SERVICES LTD,09/02/2022,191.25
Adult Social Care,Prevention & Independence - Older Adults & Disability,Supplies & Services,Aids & Appliances,OSPREY HEALTHCARE LTD,25/02/2022,451.2
Adult Social Care,Prevention & Independence - Older Adults & Disability,Supplies & Services,Equipment - Repair,STANNAH LIFT SERVICES LTD,10/02/2022,348.5
Adult Social Care,Prevention & Independence - Older Adults & Disability,Supplies & Services,Equipment - Repair,STANNAH LIFT SERVICES LTD,10/02/2022,1833.5
Adult Social Care,Prevention & Independence - Older Adults & Disability,Supplies & Services,Equipment - Repair,STANNAH LIFT SERVICES LTD,10/02/2022,4029
Adult Social Care,Prevention & Independence - Older Adults & Disability,Supplies & Services,Equipment - Repair,STANNAH LIFT SERVICES LTD,10/02/2022,196.94
Adult Social Care,Prevention & Independence - Older Adults & Disability,Supplies & Services,Aids & Appliances,PRISM MEDICAL WESTHOLME DIVISION,08/02/2022,1379.92
Adult Social Care,Prevention & Independence - Older Adults & Disability,Supplies & Services,Aids & Appliances,OSPREY HEALTHCARE LTD,14/02/2022,120
Adult Social Care,Prevention & Independence - Older Adults & Disability,Supplies & Services,Aids & Appliances,Nottingham Rehab Ltd,22/02/2022,319.04
Adult Social Care,Prevention & Independence - Older Adults & Disability,Supplies & Services,Aids & Appliances,PRISM MEDICAL WESTHOLME DIVISION,22/02/2022,2154.55
Adult Social Care,Prevention & Independence - Older Adults & Disability,Supplies & Services,Equipment - Repair,STANNAH LIFT SERVICES LTD,21/02/2022,457.62
Adult Social Care,Prevention & Independence - Older Adults & Disability,Supplies & Services,Equipment - Repair,STANNAH LIFT SERVICES LTD,21/02/2022,371.69
Adult Social Care,Prevention & Independence - Older Adults & Disability,Supplies & Services,Equipment - Repair,STANNAH LIFT SERVICES LTD,21/02/2022,259.4
Adult Social Care,Prevention & Independence - Older Adults & Disability,Supplies & Services,Equipment - Repair,STANNAH LIFT SERVICES LTD,21/02/2022,228.61
Adult Social Care,Prevention & Independence - Older Adults & Disability,Supplies & Services,Equipment - Repair,STANNAH LIFT SERVICES LTD,21/02/2022,129.36
Adult Social Care,Prevention & Independence - Older Adults & Disability,Supplies & Services,Equipment - Repair,STANNAH LIFT SERVICES LTD,21/02/2022,147.47
Adult Social Care,Prevention & Independence - Older Adults & Disability,Supplies & Services,Equipment - Repair,STANNAH LIFT SERVICES LTD,21/02/2022,190.26
Adult Social Care,Prevention & Independence - Older Adults & Disability,Supplies & Services,Equipment - Repair,STANNAH LIFT SERVICES LTD,21/02/2022,325.14
Adult Social Care,Prevention & Independence - Older Adults & Disability,Supplies & Services,Equipment - Repair,STANNAH LIFT SERVICES LTD,21/02/2022,285.26
Adult Social Care,Prevention & Independence - Older Adults & Disability,Supplies & Services,Equipment - Repair,STANNAH LIFT SERVICES LTD,21/02/2022,431.87
Adult Social Care,Prevention & Independence - Older Adults & Disability,Supplies & Services,Equipment - Repair,STANNAH LIFT SERVICES LTD,21/02/2022,317.5
Adult Social Care,Prevention & Independence - Older Adults & Disability,Supplies & Services,Equipment - Repair,STANNAH LIFT SERVICES LTD,21/02/2022,370
Adult Social Care,Prevention & Independence - Older Adults & Disability,Supplies & Services,Equipment - Repair,STANNAH LIFT SERVICES LTD,21/02/2022,261.95
Adult Social Care,Prevention & Independence - Older Adults & Disability,Supplies & Services,Equipment - Repair,STANNAH LIFT SERVICES LTD,21/02/2022,167.79
Adult Social Care,Prevention & Independence - Older Adults & Disability,Supplies & Services,Equipment - Repair,STANNAH LIFT SERVICES LTD,21/02/2022,325.64
Adult Social Care,Prevention & Independence - Older Adults & Disability,Supplies & Services,Equipment - Repair,STANNAH LIFT SERVICES LTD,21/02/2022,108.55
Adult Social Care,Prevention & Independence - Older Adults & Disability,Supplies & Services,Equipment - Repair,STANNAH LIFT SERVICES LTD,21/02/2022,310
Adult Social Care,Prevention & Independence - Older Adults & Disability,Supplies & Services,Aids & Appliances,Enable Access,21/02/2022,462
Adult Social Care,Prevention & Independence - Older Adults & Disability,Supplies & Services,Aids & Appliances,SHROPSHIRE COMMUNITY HEALTH NHS TRUST,21/02/2022,6301.66
Adult Social Care,Prevention & Independence - Older Adults & Disability,Supplies & Services,Aids & Appliances,SHROPSHIRE COMMUNITY HEALTH NHS TRUST,21/02/2022,6301.66
Adult Social Care,Prevention & Independence - Older Adults & Disability,Supplies & Services,Aids & Appliances,SHROPSHIRE COMMUNITY HEALTH NHS TRUST,21/02/2022,6301.66
Adult Social Care,Service Improvement & Efficiency,Supplies & Services,Application Software Maint,CACI LTD,08/02/2022,1951.21
Adult Social Care,Service Improvement & Efficiency,Supplies & Services,Historic Building Grant,ASSOCIATION OF FINANCIAL ASSESMENT OFFICERS,14/02/2022,200
Children's Safeguarding & Family Support,Child Protection & Family Support,Employees,Staff Training,Xyla Health & Social Services,15/02/2022,5445
Children's Safeguarding & Family Support,Child Protection & Family Support,Employees,Staff Training,Xyla Health & Social Services,15/02/2022,5445
Children's Safeguarding & Family Support,Child Protection & Family Support,Employees,Staff Training,Xyla Health & Social Services,15/02/2022,5445
Children's Safeguarding & Family Support,Child Protection & Family Support,Employees,Staff Training,Xyla Health & Social Services,15/02/2022,5445
Children's Safeguarding & Family Support,Child Protection & Family Support,Employees,Agency Supply Costs,Xyla Health & Social Services,23/02/2022,8996.8
Children's Safeguarding & Family Support,Child Protection & Family Support,Employees,Agency Supply Costs,Xyla Health & Social Services,23/02/2022,10519
Children's Safeguarding & Family Support,Family Connect & Childrens Centres,Employees,Childcare Provision,CHILDCARE SOS,16/02/2022,310
Children's Safeguarding & Family Support,Family Connect & Childrens Centres,Employees,Childcare Provision,CENTRAL PARK NURSERY,16/02/2022,136
Children's Safeguarding & Family Support,Family Connect & Childrens Centres,Premises-Related Expenditure,R&M -Building Other,TAYLORS MECHANICAL H & P SERVICES LTD,10/02/2022,147
Children's Safeguarding & Family Support,Family Connect & Childrens Centres,Supplies & Services,Administrative/Office Supplies,AST FLOORCOVERINGS LTD,14/02/2022,491.97
Children's Safeguarding & Family Support,Family Connect & Childrens Centres,Supplies & Services,Administrative/Office Supplies,P H REMOVALS,07/02/2022,200
Children's Safeguarding & Family Support,Family Connect & Childrens Centres,Supplies & Services,Bulk Refuse Contracts Hire,GREEN SKIPS LTD,07/02/2022,180
Children's Safeguarding & Family Support,"Family Placements, Children in Care, Leaving Care & Emergency Duty Team",Supplies & Services,Aids & Appliances,G & S S LTD,16/02/2022,124
Children's Safeguarding & Family Support,"Family Placements, Children in Care, Leaving Care & Emergency Duty Team",Supplies & Services,Aids & Appliances,M A S Associates,16/02/2022,300
Children's Safeguarding & Family Support,"Family Placements, Children in Care, Leaving Care & Emergency Duty Team",Supplies & Services,Aids & Appliances,G & S S LTD,16/02/2022,382
Children's Safeguarding & Family Support,"Family Placements, Children in Care, Leaving Care & Emergency Duty Team",Supplies & Services,Aids & Appliances,G & S S LTD,16/02/2022,1040
Children's Safeguarding & Family Support,"Family Placements, Children in Care, Leaving Care & Emergency Duty Team",Supplies & Services,Aids & Appliances,Schuchmann LLP,03/02/2022,653
Children's Safeguarding & Family Support,"Family Placements, Children in Care, Leaving Care & Emergency Duty Team",Supplies & Services,Equipment - Purchase,J L DESIGN LTD,08/02/2022,335
Children's Safeguarding & Family Support,"Family Placements, Children in Care, Leaving Care & Emergency Duty Team",Supplies & Services,Aids & Appliances,Tough Furniture Ltd,14/02/2022,714
Children's Safeguarding & Family Support,"Family Placements, Children in Care, Leaving Care & Emergency Duty Team",Supplies & Services,Aids & Appliances,Tough Furniture Ltd,14/02/2022,714
Children's Safeguarding & Family Support,"Family Placements, Children in Care, Leaving Care & Emergency Duty Team",Supplies & Services,Aids & Appliances,The Ramp People,25/02/2022,125
Children's Safeguarding & Family Support,"Family Placements, Children in Care, Leaving Care & Emergency Duty Team",Supplies & Services,Aids & Appliances,MIDSHIRES MOBILITY GROUP,24/02/2022,880
Children's Safeguarding & Family Support,"Family Placements, Children in Care, Leaving Care & Emergency Duty Team",Supplies & Services,Aids & Appliances, Nottingham Rehab Ltd,21/02/2022,1377.49
Children's Safeguarding & Family Support,"Family Placements, Children in Care, Leaving Care & Emergency Duty Team",Third Party Payments,Childminders,K Kids Nursery Ltd,15/02/2022,208.25
Children's Safeguarding & Family Support,"Family Placements, Children in Care, Leaving Care & Emergency Duty Team",Third Party Payments,Childminders,K Kids Nursery Ltd,15/02/2022,208.25
Children's Safeguarding & Family Support,"Family Placements, Children in Care, Leaving Care & Emergency Duty Team",Premises-Related Expenditure,Hire Of Rooms,MEETING POINT TRUST LTD,08/02/2022,2337.5
Children's Safeguarding & Family Support,"Family Placements, Children in Care, Leaving Care & Emergency Duty Team",Transport-Related Expenditure,Outside Hire,Innosil (UK) Limited,16/02/2022,640
Children's Safeguarding & Family Support,"Family Placements, Children in Care, Leaving Care & Emergency Duty Team",Transport-Related Expenditure,Season Tickets,ARRIVA MIDLANDS LTD ,15/02/2022,675
Children's Safeguarding & Family Support,"Family Placements, Children in Care, Leaving Care & Emergency Duty Team",Transport-Related Expenditure,Season Tickets,ARRIVA MIDLANDS LTD ,15/02/2022,900
Children's Safeguarding & Family Support,"Family Placements, Children in Care, Leaving Care & Emergency Duty Team",Transport-Related Expenditure,Season Tickets,ARRIVA MIDLANDS LTD ,15/02/2022,720
Children's Safeguarding & Family Support,"Family Placements, Children in Care, Leaving Care & Emergency Duty Team",Supplies & Services,Doctors Fees,Health Assured Ltd,16/02/2022,196
Children's Safeguarding & Family Support,"Family Placements, Children in Care, Leaving Care & Emergency Duty Team",Third Party Payments,External Foster Care Payments,Children Always First,16/02/2022,-690
Children's Safeguarding & Family Support,"Family Placements, Children in Care, Leaving Care & Emergency Duty Team",Supplies & Services,Doctors Fees,SHIFNAL & PRIORSLEE MEDICAL PRACTICE,24/02/2022,120
Children's Safeguarding & Family Support,"Family Placements, Children in Care, Leaving Care & Emergency Duty Team",Supplies & Services,Doctors Fees,SHIFNAL & PRIORSLEE MEDICAL PRACTICE,24/02/2022,120
Children's Safeguarding & Family Support,"Family Placements, Children in Care, Leaving Care & Emergency Duty Team",Supplies & Services,Form F Assessments,EW Assessments ltd,11/02/2022,500
Children's Safeguarding & Family Support,"Family Placements, Children in Care, Leaving Care & Emergency Duty Team",Supplies & Services,Form F Assessments,PC Assessments Ltd,22/02/2022,544.1
Children's Safeguarding & Family Support,"Family Placements, Children in Care, Leaving Care & Emergency Duty Team",Premises-Related Expenditure,Hire Of Rooms,KETLEY PARISH COUNCIL,21/02/2022,101
Children's Safeguarding & Family Support,"Family Placements, Children in Care, Leaving Care & Emergency Duty Team",Supplies & Services,Doctors Fees,WELLINGTON MEDICAL PRACTICE,11/02/2022,147.72
Children's Safeguarding & Family Support,"Family Placements, Children in Care, Leaving Care & Emergency Duty Team",Supplies & Services,Photography,Westco Trading Ltd,21/02/2022,150
Children's Safeguarding & Family Support,"Family Placements, Children in Care, Leaving Care & Emergency Duty Team",Supplies & Services,Doctors Fees,DONNINGTON MEDICAL PRACTICE,24/02/2022,181
Children's Safeguarding & Family Support,"Family Placements, Children in Care, Leaving Care & Emergency Duty Team",Supplies & Services,Form F Assessments,Kite Fostering Consultancy Ltd,28/02/2022,2158.4
Children's Safeguarding & Family Support,"Family Placements, Children in Care, Leaving Care & Emergency Duty Team",Supplies & Services,Subscriptions,FOSTERING NETWORK,11/02/2022,690
Children's Safeguarding & Family Support,"Family Placements, Children in Care, Leaving Care & Emergency Duty Team",Third Party Payments,Private Contractors,Shared Services Connected Limited,09/02/2022,17220
Children's Safeguarding & Family Support,"Family Placements, Children in Care, Leaving Care & Emergency Duty Team",Third Party Payments,Private Contractors,Shared Services Connected Limited,09/02/2022,17794
Children's Safeguarding & Family Support,"Family Placements, Children in Care, Leaving Care & Emergency Duty Team",Third Party Payments,Private Contractors,Shared Services Connected Limited,09/02/2022,9450
Children's Safeguarding & Family Support,"Family Placements, Children in Care, Leaving Care & Emergency Duty Team",Third Party Payments,Private Contractors,Shared Services Connected Limited,09/02/2022,9450
Children's Safeguarding & Family Support,"Family Placements, Children in Care, Leaving Care & Emergency Duty Team",Third Party Payments,Private Contractors,Shared Services Connected Limited,09/02/2022,9450
Children's Safeguarding & Family Support,"Family Placements, Children in Care, Leaving Care & Emergency Duty Team",Third Party Payments,Private Contractors,Shared Services Connected Limited,09/02/2022,9765
Children's Safeguarding & Family Support,"Family Placements, Children in Care, Leaving Care & Emergency Duty Team",Third Party Payments,Private Contractors,Shared Services Connected Limited,09/02/2022,9765
Children's Safeguarding & Family Support,"Family Placements, Children in Care, Leaving Care & Emergency Duty Team",Third Party Payments,Private Contractors,Shared Services Connected Limited,09/02/2022,9765
Children's Safeguarding & Family Support,"Family Placements, Children in Care, Leaving Care & Emergency Duty Team",Third Party Payments,Private Contractors,Shared Services Connected Limited,09/02/2022,17794
Children's Safeguarding & Family Support,Safeguarding Advisory,Supplies & Services,Other Grants (Expenses),REDACTED PERSONAL INFORMATION,22/02/2022,-350
Children's Safeguarding & Family Support,Safeguarding Advisory,Premises-Related Expenditure,Hire Of Rooms,MEETING POINT TRUST LTD,16/02/2022,114
Children's Safeguarding & Family Support,Safeguarding Advisory,Premises-Related Expenditure,Hire Of Rooms,MEETING POINT TRUST LTD,24/02/2022,130
Children's Safeguarding & Family Support,Safeguarding Advisory,Supplies & Services,Other Services,MEETING POINT TRUST LTD,01/02/2022,114
Children's Safeguarding & Family Support,Safeguarding Advisory,Supplies & Services,Subscriptions,Sandwell Childrens Trust,01/02/2022,905
Children's Safeguarding & Family Support,Safeguarding Advisory,Employees,Agency Supply Costs,Pertemps Recruitment Partnership Limited,16/02/2022,220.61
Children's Safeguarding & Family Support,Safeguarding Advisory,Employees,Agency Supply Costs,Pertemps Recruitment Partnership Limited,16/02/2022,487.89
Children's Safeguarding & Family Support,Safeguarding Advisory,Employees,Agency Supply Costs,Pertemps Recruitment Partnership Limited,16/02/2022,636.38
Children's Safeguarding & Family Support,Safeguarding Advisory,Employees,Agency Supply Costs,Pertemps Recruitment Partnership Limited,16/02/2022,636.38
Children's Safeguarding & Family Support,Safeguarding Advisory,Supplies & Services,Furniture - Purchase,CHRISBEON OFFICE SUPPLIES,18/02/2022,339
Children's Safeguarding & Family Support,Safeguarding Advisory,Supplies & Services,Furniture - Purchase,CHRISBEON OFFICE SUPPLIES,18/02/2022,128
Children's Safeguarding & Family Support,Safeguarding Advisory,Supplies & Services,Application Software Maint,CACI LTD,08/02/2022,1951.21
Children's Safeguarding & Family Support,Safeguarding Advisory,Supplies & Services,Other Services,Signis Limited,14/02/2022,1500
"Communities, Customer & Commercial Services",Community Services,Supplies & Services,Grants To Voluntary Organis,Telford Crisis Support,09/02/2022,5385
"Communities, Customer & Commercial Services",Community Services,Supplies & Services,Consultancy,Investors in the Environment (PETERBOROUGH ENV CITY TRUST),09/02/2022,999
"Communities, Customer & Commercial Services",Community Services,Supplies & Services,Equipment - Purchase,"Waterhaul Ltd (BHive 4, Waterhaul Ltd)",18/02/2022,1166.67
"Communities, Customer & Commercial Services",Community Services,Supplies & Services,Interpretation,VISS Sign Language Interpreting Service,17/02/2022,115
"Communities, Customer & Commercial Services",Community Services,Supplies & Services,Equipment - Purchase, Symmetrikit,24/02/2022,1176
"Communities, Customer & Commercial Services",Community Services,Supplies & Services,Grants To Voluntary Organis,HOLLINSWOOD & RANDLAY PARISH COUNCIL,02/02/2022,2350
"Communities, Customer & Commercial Services",Community Services,Supplies & Services,Grants To Voluntary Organis,HOLLINSWOOD & RANDLAY PARISH COUNCIL,02/02/2022,1650
"Communities, Customer & Commercial Services",Community Services,Supplies & Services,Grants To Voluntary Organis,YMCA,16/02/2022,1000
"Communities, Customer & Commercial Services",Community Services,Supplies & Services,Grants To Voluntary Organis,Friends of Apley Woods,16/02/2022,1520
"Communities, Customer & Commercial Services",Community Services,Supplies & Services,Grants To Voluntary Organis,All Saints Wellington,16/02/2022,1150
"Communities, Customer & Commercial Services",Community Services,Supplies & Services,Grants To Voluntary Organis,ERCALL MAGNA PARISH COUNCIL,01/02/2022,250
"Communities, Customer & Commercial Services",Community Services,Supplies & Services,Grants To Voluntary Organis,Hadley Learning Community Academy,01/02/2022,250
"Communities, Customer & Commercial Services",Community Services,Supplies & Services,Grants To Voluntary Organis,Telford and Wrekin Interfaith Council,01/02/2022,500
"Communities, Customer & Commercial Services",Community Services,Supplies & Services,Grants To Voluntary Organis,Telford and Wrekin Interfaith Council,01/02/2022,200
"Communities, Customer & Commercial Services",Community Services,Supplies & Services,Grants To Voluntary Organis,HOLLINSWOOD & RANDLAY PARISH COUNCIL,02/02/2022,400
"Communities, Customer & Commercial Services",Community Services,Supplies & Services,Grants To Voluntary Organis,OAKENGATES TOWN COUNCIL,24/02/2022,1100
"Communities, Customer & Commercial Services",Community Services,Supplies & Services,Grants To Voluntary Organis,Hadley Learning Community Academy,24/02/2022,500
"Communities, Customer & Commercial Services",Community Services,Supplies & Services,Grants To Voluntary Organis,NEWPORT YOUTH CAFE,18/02/2022,2750
"Communities, Customer & Commercial Services",Community Services,Supplies & Services,Grants To Voluntary Organis,Sambrook Village Hall,18/02/2022,500
"Communities, Customer & Commercial Services",Community Services,Supplies & Services,Grants To Voluntary Organis,Telford and Wrekin Interfaith Council,18/02/2022,300
"Communities, Customer & Commercial Services",Community Services,Supplies & Services,Grants To Voluntary Organis,MADELEY PARISH COUNCIL ,08/02/2022,600
"Communities, Customer & Commercial Services",Community Services,Supplies & Services,Grants To Voluntary Organis,HOME-START TELFORD & WREKIN,08/02/2022,1000
"Communities, Customer & Commercial Services",Community Services,Supplies & Services,Grants To Voluntary Organis,Great Dawley Town Council,08/02/2022,10500
"Communities, Customer & Commercial Services",Community Services,Supplies & Services,Grants To Voluntary Organis,HOME-START TELFORD & WREKIN,08/02/2022,1000
"Communities, Customer & Commercial Services",Community Services,Supplies & Services,Grants To Voluntary Organis,Donnington Sports & Social ABC,08/02/2022,500
"Communities, Customer & Commercial Services",Community Services,Supplies & Services,Grants To Voluntary Organis,Sutton Hill Community Trust,08/02/2022,500
"Communities, Customer & Commercial Services",Community Services,Supplies & Services,Grants To Voluntary Organis,Great Dawley Town Council,08/02/2022,1000
"Communities, Customer & Commercial Services",Community Services,Supplies & Services,Grants To Voluntary Organis,Great Dawley Town Council,18/02/2022,1914
"Communities, Customer & Commercial Services",Community Services,Supplies & Services,Grants To Voluntary Organis,TACT,18/02/2022,300
"Communities, Customer & Commercial Services",Community Services,Supplies & Services,Grants To Voluntary Organis,Great Dawley Town Council,18/02/2022,1000
"Communities, Customer & Commercial Services",Community Services,Supplies & Services,Grants To Voluntary Organis,Telford and Wrekin Interfaith Council,10/02/2022,500
"Communities, Customer & Commercial Services",Community Services,Supplies & Services,Grants To Voluntary Organis,LILLESHALL CRICKET CLUB,10/02/2022,714
"Communities, Customer & Commercial Services",Community Services,Supplies & Services,Grants To Voluntary Organis,CHETWYND ASTON & WOODCOTE P.C ,10/02/2022,634
"Communities, Customer & Commercial Services",Community Services,Supplies & Services,Grants To Voluntary Organis,CHETWYND ASTON & WOODCOTE P.C ,10/02/2022,416
"Communities, Customer & Commercial Services",Community Services,Supplies & Services,Grants To Voluntary Organis,ST MATTHEWS C OF E SCHOOL FUND ACCOUNT,10/02/2022,500
"Communities, Customer & Commercial Services",Community Services,Supplies & Services,Grants To Voluntary Organis,MADELEY PARISH COUNCIL,10/02/2022,814
"Communities, Customer & Commercial Services",Community Services,Supplies & Services,Grants To Voluntary Organis,Old Park Primary SCHOOL FUND,18/02/2022,1000
"Communities, Customer & Commercial Services",Community Services,Supplies & Services,Grants To Voluntary Organis,TIBBERTON & CHERRINGTON PARISH COUNCIL,18/02/2022,1000
"Communities, Customer & Commercial Services",Community Services,Supplies & Services,Grants To Voluntary Organis,Sutton Hill Community Trust,18/02/2022,1250
"Communities, Customer & Commercial Services",Community Services,Supplies & Services,Grants To Voluntary Organis,TIBBERTON & CHERRINGTON PARISH COUNCIL,18/02/2022,1500
"Communities, Customer & Commercial Services",Community Services,Capital Expenditure,Other Capital Expenditure,J C & SONS (NURSERIES) LTD,03/02/2022,4445
"Communities, Customer & Commercial Services",Community Services,Capital Expenditure,Other Capital Expenditure,Green-Tech Ltd,14/02/2022,20160
"Communities, Customer & Commercial Services",Culture & Events,Supplies & Services,Equipment - Hire,C WASTE DISPOSAL SERV LTD,25/02/2022,260
"Communities, Customer & Commercial Services",Culture & Events,Supplies & Services,Equipment - Hire,C WASTE DISPOSAL SERV LTD,28/02/2022,1038.4
"Communities, Customer & Commercial Services",Culture & Events,Supplies & Services,Promotion Expenses,Spektrix Limited,12/02/2022,3062.01
"Communities, Customer & Commercial Services",Culture & Events,Supplies & Services,Promotion Expenses,crowdEngage Limited,12/02/2022,212.42
"Communities, Customer & Commercial Services",Culture & Events,Supplies & Services,Promotion Expenses,Sure Digital Limited,15/02/2022,5000
"Communities, Customer & Commercial Services",Culture & Events,Supplies & Services,Advertising,WHATS ON MAGAZINES LTD,04/02/2022,275
"Communities, Customer & Commercial Services",Culture & Events,Supplies & Services,Performing Rights Fees,PPL PRS Ltd,04/02/2022,508.08
"Communities, Customer & Commercial Services",Culture & Events,Supplies & Services,Promotion Expenses,High-Viz Publicity Limited,07/02/2022,250
"Communities, Customer & Commercial Services",Culture & Events,Supplies & Services,Promotion Expenses,Ticketplan Limited,14/02/2022,1136.04
"Communities, Customer & Commercial Services",Culture & Events,Supplies & Services,Performing Rights Fees,PPL PRS Ltd,04/02/2022,5449.26
"Communities, Customer & Commercial Services",Culture & Events,Supplies & Services,Artistes Fees,S Productions Limited,15/02/2022,4665.61
"Communities, Customer & Commercial Services",Culture & Events,Supplies & Services,Artistes Fees,Live Nation (Music) UK Ltd,15/02/2022,5067.92
"Communities, Customer & Commercial Services",Culture & Events,Supplies & Services,Artistes Fees,J W Music,08/02/2022,3290.37
"Communities, Customer & Commercial Services",Culture & Events,Supplies & Services,Artistes Fees,DONNINGTON PARTNERSHIP,25/02/2022,284.05
"Communities, Customer & Commercial Services",Culture & Events,Supplies & Services,Artistes Fees,HOUSEFULL PRODUCTIONS LTD,22/02/2022,765.46
"Communities, Customer & Commercial Services",Culture & Events,Supplies & Services,Furniture - Repair,B INDUSTRIAL SERVICES,15/02/2022,168.63
"Communities, Customer & Commercial Services",Culture & Events,Supplies & Services,Confectionery & Snacks,BIKOLD,23/02/2022,103.52
"Communities, Customer & Commercial Services",Culture & Events,Supplies & Services,Equipment - Purchase,GRANVILLE CONSTRUCTION & MAINTENANCE LTD,22/02/2022,114.5
"Communities, Customer & Commercial Services",Culture & Events,Supplies & Services,Chemicals/Cleaning Products,G HYGIENE SUPPLIES DIRECT,22/02/2022,391.75
"Communities, Customer & Commercial Services",Culture & Events,Supplies & Services,Crockery/Hardware/Light Equip,LAVAZZA Professional UK Ltd,23/02/2022,629.67
"Communities, Customer & Commercial Services",Culture & Events,Supplies & Services,Wet Resale Provision,M C BREWING COMPANY UK LTD,23/02/2022,1514.27
"Communities, Customer & Commercial Services",Culture & Events,Supplies & Services,Equipment - Hire,Event Furniture Hire Ltd,28/02/2022,150
"Communities, Customer & Commercial Services",Culture & Events,Supplies & Services,Equipment - Hire,Event Furniture Hire Ltd,28/02/2022,300
"Communities, Customer & Commercial Services",Culture & Events,Supplies & Services,Artistes Fees,Solid Gold Entertainment Ltd,02/02/2022,265
"Communities, Customer & Commercial Services",Culture & Events,Supplies & Services,Artistes Fees,Solid Gold Entertainment Ltd,02/02/2022,250
"Communities, Customer & Commercial Services",Culture & Events,Supplies & Services,Equipment - Purchase,Gala Tent Ltd,15/02/2022,1058.29
"Communities, Customer & Commercial Services",Culture & Events,Supplies & Services,Equipment - Hire,Event Furniture Hire Ltd,08/02/2022,1060
"Communities, Customer & Commercial Services",Culture & Events,Supplies & Services,Administrative/Office Supplies,TECHNICAL SERVICES (SHROPSHIRE) LIMITED,08/02/2022,1316.5
"Communities, Customer & Commercial Services",Culture & Events,Supplies & Services,Equipment - Hire,Stage and Studios Services Limited,16/02/2022,944.5
"Communities, Customer & Commercial Services",Culture & Events,Supplies & Services,Artistes Fees,Stephanie Ridings Ltd,16/02/2022,4500
"Communities, Customer & Commercial Services",Culture & Events,Supplies & Services,Equipment - Hire,Show Systems Marquees Ltd,16/02/2022,320.83
"Communities, Customer & Commercial Services",Culture & Events,Supplies & Services,Equipment - Hire,270 Adventure Ltd,16/02/2022,600
"Communities, Customer & Commercial Services",Culture & Events,Supplies & Services,Artistes Fees,Les Miles des Marches,23/02/2022,350
"Communities, Customer & Commercial Services",Culture & Events,Supplies & Services,Advertising,M C MARKETING LTD,23/02/2022,525
"Communities, Customer & Commercial Services",Culture & Events,Supplies & Services,Advertising,THE MIDLAND NEWS ASSOCIATION LTD,24/02/2022,550.03
"Communities, Customer & Commercial Services",Customer Relationships & Welfare Services,Supplies & Services,Other Grants (Expenses),Hawk Incentives Ltd ,18/02/2022,3702
"Communities, Customer & Commercial Services",Customer Relationships & Welfare Services,Supplies & Services,Other Grants (Expenses),Hawk Incentives Ltd ,01/02/2022,526177.6
"Communities, Customer & Commercial Services",Customer Relationships & Welfare Services,Supplies & Services,Other Grants (Expenses),Hawk Incentives Ltd,09/02/2022,413054.35
"Communities, Customer & Commercial Services",Customer Relationships & Welfare Services,Supplies & Services,Other Grants (Expenses),Hawk Incentives Ltd ,18/02/2022,2468
"Communities, Customer & Commercial Services",Customer Relationships & Welfare Services,Transfer Payments,Crisis Assistance Awards,PayPoint Network Limited,01/02/2022,1225
"Communities, Customer & Commercial Services",Customer Relationships & Welfare Services,Transfer Payments,Crisis Assistance Awards,PayPoint Network Limited,02/02/2022,1152
"Communities, Customer & Commercial Services",Customer Relationships & Welfare Services,Transfer Payments,Crisis Assistance Awards,PayPoint Network Limited,15/02/2022,466
"Communities, Customer & Commercial Services",Customer Relationships & Welfare Services,Transfer Payments,Crisis Assistance Awards,PayPoint Network Limited,15/02/2022,245
"Communities, Customer & Commercial Services",Customer Relationships & Welfare Services,Transfer Payments,Crisis Assistance Awards,PayPoint Network Limited,23/02/2022,637
"Communities, Customer & Commercial Services",Customer Relationships & Welfare Services,Employees,Staff Training,NEC Software Solutions UK Ltd,28/02/2022,550
"Communities, Customer & Commercial Services",Customer Relationships & Welfare Services,Supplies & Services,Postages,Financial Data Management plc,02/02/2022,121.05
"Communities, Customer & Commercial Services",Customer Relationships & Welfare Services,Supplies & Services,Postages,Financial Data Management plc,02/02/2022,107.61
"Communities, Customer & Commercial Services",Customer Relationships & Welfare Services,Supplies & Services,Subscriptions,HBINFO LTD,08/02/2022,1035
"Communities, Customer & Commercial Services",Customer Relationships & Welfare Services,Supplies & Services,Bus Pass Production,Euclid Limited,08/02/2022,882.9
"Communities, Customer & Commercial Services",Customer Relationships & Welfare Services,Supplies & Services,Bus Pass Production,Unicard Ltd,08/02/2022,583.5
"Communities, Customer & Commercial Services",Customer Relationships & Welfare Services,Supplies & Services,Permit Production - Blue Badge,APS Group,08/02/2022,725.92
"Communities, Customer & Commercial Services",Customer Relationships & Welfare Services,Supplies & Services,Permit Production - Blue Badge,Valtech Limited,09/02/2022,388.6
"Communities, Customer & Commercial Services",Customer Relationships & Welfare Services,Supplies & Services,Fees,PayPoint Network Ltd,14/02/2022,178.28
"Communities, Customer & Commercial Services",Customer Relationships & Welfare Services,Transfer Payments,Crisis Assistance Awards,Self Isolation Grant,02/02/2022,500
"Communities, Customer & Commercial Services",Customer Relationships & Welfare Services,Transfer Payments,Crisis Assistance Awards,Self Isolation Grant,02/02/2022,500
"Communities, Customer & Commercial Services",Customer Relationships & Welfare Services,Transfer Payments,Crisis Assistance Awards,Self Isolation Grant,02/02/2022,500
"Communities, Customer & Commercial Services",Customer Relationships & Welfare Services,Transfer Payments,Crisis Assistance Awards,Self Isolation Grant,02/02/2022,500
"Communities, Customer & Commercial Services",Customer Relationships & Welfare Services,Transfer Payments,Crisis Assistance Awards,Self Isolation Grant,02/02/2022,500
"Communities, Customer & Commercial Services",Customer Relationships & Welfare Services,Transfer Payments,Crisis Assistance Awards,Self Isolation Grant,02/02/2022,500
"Communities, Customer & Commercial Services",Customer Relationships & Welfare Services,Transfer Payments,Crisis Assistance Awards,Self Isolation Grant,02/02/2022,500
"Communities, Customer & Commercial Services",Customer Relationships & Welfare Services,Transfer Payments,Crisis Assistance Awards,Self Isolation Grant,02/02/2022,500
"Communities, Customer & Commercial Services",Customer Relationships & Welfare Services,Transfer Payments,Crisis Assistance Awards,Self Isolation Grant,02/02/2022,500
"Communities, Customer & Commercial Services",Customer Relationships & Welfare Services,Transfer Payments,Crisis Assistance Awards,Self Isolation Grant,02/02/2022,500
"Communities, Customer & Commercial Services",Customer Relationships & Welfare Services,Transfer Payments,Crisis Assistance Awards,Self Isolation Grant,02/02/2022,500
"Communities, Customer & Commercial Services",Customer Relationships & Welfare Services,Transfer Payments,Crisis Assistance Awards,Self Isolation Grant,02/02/2022,500
"Communities, Customer & Commercial Services",Customer Relationships & Welfare Services,Transfer Payments,Crisis Assistance Awards,Self Isolation Grant,09/02/2022,500
"Communities, Customer & Commercial Services",Customer Relationships & Welfare Services,Transfer Payments,Crisis Assistance Awards,Self Isolation Grant,09/02/2022,500
"Communities, Customer & Commercial Services",Customer Relationships & Welfare Services,Transfer Payments,Crisis Assistance Awards,Self Isolation Grant,09/02/2022,500
"Communities, Customer & Commercial Services",Customer Relationships & Welfare Services,Transfer Payments,Crisis Assistance Awards,Self Isolation Grant,09/02/2022,500
"Communities, Customer & Commercial Services",Customer Relationships & Welfare Services,Transfer Payments,Crisis Assistance Awards,Self Isolation Grant,09/02/2022,500
"Communities, Customer & Commercial Services",Customer Relationships & Welfare Services,Transfer Payments,Crisis Assistance Awards,Self Isolation Grant,09/02/2022,500
"Communities, Customer & Commercial Services",Customer Relationships & Welfare Services,Transfer Payments,Crisis Assistance Awards,Self Isolation Grant,09/02/2022,500
"Communities, Customer & Commercial Services",Customer Relationships & Welfare Services,Transfer Payments,Crisis Assistance Awards,Self Isolation Grant,09/02/2022,500
"Communities, Customer & Commercial Services",Customer Relationships & Welfare Services,Transfer Payments,Crisis Assistance Awards,Self Isolation Grant,16/02/2022,500
"Communities, Customer & Commercial Services",Customer Relationships & Welfare Services,Transfer Payments,Crisis Assistance Awards,Self Isolation Grant,16/02/2022,500
"Communities, Customer & Commercial Services",Customer Relationships & Welfare Services,Transfer Payments,Crisis Assistance Awards,Self Isolation Grant,16/02/2022,500
"Communities, Customer & Commercial Services",Customer Relationships & Welfare Services,Transfer Payments,Crisis Assistance Awards,Self Isolation Grant,16/02/2022,500
"Communities, Customer & Commercial Services",Customer Relationships & Welfare Services,Transfer Payments,Crisis Assistance Awards,Self Isolation Grant,16/02/2022,500
"Communities, Customer & Commercial Services",Customer Relationships & Welfare Services,Transfer Payments,Crisis Assistance Awards,Self Isolation Grant,16/02/2022,500
"Communities, Customer & Commercial Services",Customer Relationships & Welfare Services,Transfer Payments,Crisis Assistance Awards,Self Isolation Grant,16/02/2022,500
"Communities, Customer & Commercial Services",Customer Relationships & Welfare Services,Transfer Payments,Crisis Assistance Awards,Self Isolation Grant,16/02/2022,500
"Communities, Customer & Commercial Services",Customer Relationships & Welfare Services,Transfer Payments,Crisis Assistance Awards,PayPoint Network Limited,01/02/2022,745
"Communities, Customer & Commercial Services",Customer Relationships & Welfare Services,Transfer Payments,Crisis Assistance Awards,Self Isolation Grant,16/02/2022,500
"Communities, Customer & Commercial Services",Customer Relationships & Welfare Services,Transfer Payments,Crisis Assistance Awards,Self Isolation Grant,01/02/2022,500
"Communities, Customer & Commercial Services",Customer Relationships & Welfare Services,Transfer Payments,Crisis Assistance Awards,Self Isolation Grant,01/02/2022,500
"Communities, Customer & Commercial Services",Customer Relationships & Welfare Services,Transfer Payments,Crisis Assistance Awards,Self Isolation Grant,01/02/2022,500
"Communities, Customer & Commercial Services",Customer Relationships & Welfare Services,Transfer Payments,Crisis Assistance Awards,Self Isolation Grant,01/02/2022,500
"Communities, Customer & Commercial Services",Customer Relationships & Welfare Services,Transfer Payments,Crisis Assistance Awards,Self Isolation Grant,01/02/2022,500
"Communities, Customer & Commercial Services",Customer Relationships & Welfare Services,Transfer Payments,Crisis Assistance Awards,Self Isolation Grant,01/02/2022,500
"Communities, Customer & Commercial Services",Customer Relationships & Welfare Services,Transfer Payments,Crisis Assistance Awards,PayPoint Network Limited,02/02/2022,1030
"Communities, Customer & Commercial Services",Customer Relationships & Welfare Services,Transfer Payments,Crisis Assistance Awards,Self Isolation Grant,01/02/2022,500
"Communities, Customer & Commercial Services",Customer Relationships & Welfare Services,Transfer Payments,Crisis Assistance Awards,Self Isolation Grant,01/02/2022,500
"Communities, Customer & Commercial Services",Customer Relationships & Welfare Services,Transfer Payments,Crisis Assistance Awards,Self Isolation Grant,01/02/2022,500
"Communities, Customer & Commercial Services",Customer Relationships & Welfare Services,Transfer Payments,Crisis Assistance Awards,Self Isolation Grant,01/02/2022,500
"Communities, Customer & Commercial Services",Customer Relationships & Welfare Services,Transfer Payments,Crisis Assistance Awards,Self Isolation Grant,01/02/2022,500
"Communities, Customer & Commercial Services",Customer Relationships & Welfare Services,Transfer Payments,Crisis Assistance Awards,Self Isolation Grant,01/02/2022,500
"Communities, Customer & Commercial Services",Customer Relationships & Welfare Services,Transfer Payments,Crisis Assistance Awards,Self Isolation Grant,01/02/2022,500
"Communities, Customer & Commercial Services",Customer Relationships & Welfare Services,Transfer Payments,Crisis Assistance Awards,Self Isolation Grant,01/02/2022,500
"Communities, Customer & Commercial Services",Customer Relationships & Welfare Services,Transfer Payments,Crisis Assistance Awards,Self Isolation Grant,01/02/2022,500
"Communities, Customer & Commercial Services",Customer Relationships & Welfare Services,Transfer Payments,Crisis Assistance Awards,Self Isolation Grant,01/02/2022,500
"Communities, Customer & Commercial Services",Customer Relationships & Welfare Services,Transfer Payments,Crisis Assistance Awards,Self Isolation Grant,01/02/2022,500
"Communities, Customer & Commercial Services",Customer Relationships & Welfare Services,Transfer Payments,Crisis Assistance Awards,Self Isolation Grant,01/02/2022,500
"Communities, Customer & Commercial Services",Customer Relationships & Welfare Services,Transfer Payments,Crisis Assistance Awards,Self Isolation Grant,01/02/2022,500
"Communities, Customer & Commercial Services",Customer Relationships & Welfare Services,Transfer Payments,Crisis Assistance Awards,Self Isolation Grant,01/02/2022,500
"Communities, Customer & Commercial Services",Customer Relationships & Welfare Services,Transfer Payments,Crisis Assistance Awards,Self Isolation Grant,01/02/2022,500
"Communities, Customer & Commercial Services",Customer Relationships & Welfare Services,Transfer Payments,Crisis Assistance Awards,Self Isolation Grant,01/02/2022,500
"Communities, Customer & Commercial Services",Customer Relationships & Welfare Services,Transfer Payments,Crisis Assistance Awards,Self Isolation Grant,01/02/2022,500
"Communities, Customer & Commercial Services",Customer Relationships & Welfare Services,Transfer Payments,Crisis Assistance Awards,Self Isolation Grant,01/02/2022,500
"Communities, Customer & Commercial Services",Customer Relationships & Welfare Services,Transfer Payments,Crisis Assistance Awards,A W HOLDINGS,24/02/2022,459
"Communities, Customer & Commercial Services",Customer Relationships & Welfare Services,Transfer Payments,Crisis Assistance Awards,Kings of the Road,24/02/2022,345
"Communities, Customer & Commercial Services",Customer Relationships & Welfare Services,Transfer Payments,Crisis Assistance Awards,Kings of the Road,24/02/2022,375
"Communities, Customer & Commercial Services",Customer Relationships & Welfare Services,Transfer Payments,Crisis Assistance Awards,Self Isolation Grant,11/02/2022,500
"Communities, Customer & Commercial Services",Customer Relationships & Welfare Services,Transfer Payments,Crisis Assistance Awards,Self Isolation Grant,11/02/2022,500
"Communities, Customer & Commercial Services",Customer Relationships & Welfare Services,Transfer Payments,Crisis Assistance Awards,Self Isolation Grant,11/02/2022,500
"Communities, Customer & Commercial Services",Customer Relationships & Welfare Services,Transfer Payments,Crisis Assistance Awards,Self Isolation Grant,11/02/2022,500
"Communities, Customer & Commercial Services",Customer Relationships & Welfare Services,Transfer Payments,Crisis Assistance Awards,Self Isolation Grant,11/02/2022,500
"Communities, Customer & Commercial Services",Customer Relationships & Welfare Services,Transfer Payments,Crisis Assistance Awards,Self Isolation Grant,11/02/2022,500
"Communities, Customer & Commercial Services",Customer Relationships & Welfare Services,Transfer Payments,Crisis Assistance Awards,Self Isolation Grant,11/02/2022,500
"Communities, Customer & Commercial Services",Customer Relationships & Welfare Services,Transfer Payments,Crisis Assistance Awards,Self Isolation Grant,11/02/2022,500
"Communities, Customer & Commercial Services",Customer Relationships & Welfare Services,Transfer Payments,Crisis Assistance Awards,Self Isolation Grant,11/02/2022,500
"Communities, Customer & Commercial Services",Customer Relationships & Welfare Services,Transfer Payments,Crisis Assistance Awards,Self Isolation Grant,11/02/2022,500
"Communities, Customer & Commercial Services",Customer Relationships & Welfare Services,Transfer Payments,Crisis Assistance Awards,Kings of the Road,08/02/2022,425
"Communities, Customer & Commercial Services",Customer Relationships & Welfare Services,Transfer Payments,Crisis Assistance Awards,Self Isolation Grant,11/02/2022,500
"Communities, Customer & Commercial Services",Customer Relationships & Welfare Services,Transfer Payments,Crisis Assistance Awards,Self Isolation Grant,03/02/2022,500
"Communities, Customer & Commercial Services",Customer Relationships & Welfare Services,Transfer Payments,Crisis Assistance Awards,Self Isolation Grant,03/02/2022,500
"Communities, Customer & Commercial Services",Customer Relationships & Welfare Services,Transfer Payments,Crisis Assistance Awards,Self Isolation Grant,03/02/2022,500
"Communities, Customer & Commercial Services",Customer Relationships & Welfare Services,Transfer Payments,Crisis Assistance Awards,Self Isolation Grant,03/02/2022,500
"Communities, Customer & Commercial Services",Customer Relationships & Welfare Services,Transfer Payments,Crisis Assistance Awards,Self Isolation Grant,03/02/2022,500
"Communities, Customer & Commercial Services",Customer Relationships & Welfare Services,Transfer Payments,Crisis Assistance Awards,Self Isolation Grant,03/02/2022,500
"Communities, Customer & Commercial Services",Customer Relationships & Welfare Services,Transfer Payments,Crisis Assistance Awards,Self Isolation Grant,03/02/2022,500
"Communities, Customer & Commercial Services",Customer Relationships & Welfare Services,Transfer Payments,Crisis Assistance Awards,Self Isolation Grant,03/02/2022,500
"Communities, Customer & Commercial Services",Customer Relationships & Welfare Services,Transfer Payments,Crisis Assistance Awards,Self Isolation Grant,03/02/2022,500
"Communities, Customer & Commercial Services",Customer Relationships & Welfare Services,Transfer Payments,Crisis Assistance Awards,Self Isolation Grant,03/02/2022,500
"Communities, Customer & Commercial Services",Customer Relationships & Welfare Services,Transfer Payments,Crisis Assistance Awards,Self Isolation Grant,03/02/2022,500
"Communities, Customer & Commercial Services",Customer Relationships & Welfare Services,Transfer Payments,Crisis Assistance Awards,Self Isolation Grant,03/02/2022,500
"Communities, Customer & Commercial Services",Customer Relationships & Welfare Services,Transfer Payments,Crisis Assistance Awards,Self Isolation Grant,03/02/2022,500
"Communities, Customer & Commercial Services",Customer Relationships & Welfare Services,Transfer Payments,Crisis Assistance Awards,Self Isolation Grant,03/02/2022,500
"Communities, Customer & Commercial Services",Customer Relationships & Welfare Services,Transfer Payments,Crisis Assistance Awards,Self Isolation Grant,03/02/2022,500
"Communities, Customer & Commercial Services",Customer Relationships & Welfare Services,Transfer Payments,Crisis Assistance Awards,Self Isolation Grant,03/02/2022,500
"Communities, Customer & Commercial Services",Customer Relationships & Welfare Services,Transfer Payments,Crisis Assistance Awards,Self Isolation Grant,03/02/2022,500
"Communities, Customer & Commercial Services",Customer Relationships & Welfare Services,Transfer Payments,Crisis Assistance Awards,Self Isolation Grant,12/02/2022,500
"Communities, Customer & Commercial Services",Customer Relationships & Welfare Services,Transfer Payments,Crisis Assistance Awards,Self Isolation Grant,12/02/2022,500
"Communities, Customer & Commercial Services",Customer Relationships & Welfare Services,Transfer Payments,Crisis Assistance Awards,Self Isolation Grant,12/02/2022,500
"Communities, Customer & Commercial Services",Customer Relationships & Welfare Services,Transfer Payments,Crisis Assistance Awards,Self Isolation Grant,12/02/2022,500
"Communities, Customer & Commercial Services",Customer Relationships & Welfare Services,Transfer Payments,Crisis Assistance Awards,Self Isolation Grant,12/02/2022,500
"Communities, Customer & Commercial Services",Customer Relationships & Welfare Services,Transfer Payments,Crisis Assistance Awards,Self Isolation Grant,12/02/2022,500
"Communities, Customer & Commercial Services",Customer Relationships & Welfare Services,Transfer Payments,Crisis Assistance Awards,Self Isolation Grant,12/02/2022,500
"Communities, Customer & Commercial Services",Customer Relationships & Welfare Services,Transfer Payments,Crisis Assistance Awards,Self Isolation Grant,12/02/2022,500
"Communities, Customer & Commercial Services",Customer Relationships & Welfare Services,Transfer Payments,Crisis Assistance Awards,Self Isolation Grant,12/02/2022,500
"Communities, Customer & Commercial Services",Customer Relationships & Welfare Services,Transfer Payments,Crisis Assistance Awards,Self Isolation Grant,12/02/2022,500
"Communities, Customer & Commercial Services",Customer Relationships & Welfare Services,Transfer Payments,Crisis Assistance Awards,Self Isolation Grant,12/02/2022,500
"Communities, Customer & Commercial Services",Customer Relationships & Welfare Services,Transfer Payments,Crisis Assistance Awards,Self Isolation Grant,12/02/2022,500
"Communities, Customer & Commercial Services",Customer Relationships & Welfare Services,Transfer Payments,Crisis Assistance Awards,Self Isolation Grant,12/02/2022,500
"Communities, Customer & Commercial Services",Customer Relationships & Welfare Services,Transfer Payments,Crisis Assistance Awards,Self Isolation Grant,12/02/2022,500
"Communities, Customer & Commercial Services",Customer Relationships & Welfare Services,Transfer Payments,Crisis Assistance Awards,Self Isolation Grant,17/02/2022,500
"Communities, Customer & Commercial Services",Customer Relationships & Welfare Services,Transfer Payments,Crisis Assistance Awards,Self Isolation Grant,17/02/2022,500
"Communities, Customer & Commercial Services",Customer Relationships & Welfare Services,Transfer Payments,Crisis Assistance Awards,Self Isolation Grant,17/02/2022,500
"Communities, Customer & Commercial Services",Customer Relationships & Welfare Services,Transfer Payments,Crisis Assistance Awards,Self Isolation Grant,17/02/2022,500
"Communities, Customer & Commercial Services",Customer Relationships & Welfare Services,Transfer Payments,Crisis Assistance Awards,Self Isolation Grant,17/02/2022,500
"Communities, Customer & Commercial Services",Customer Relationships & Welfare Services,Transfer Payments,Crisis Assistance Awards,Self Isolation Grant,17/02/2022,500
"Communities, Customer & Commercial Services",Customer Relationships & Welfare Services,Transfer Payments,Crisis Assistance Awards,Self Isolation Grant,17/02/2022,500
"Communities, Customer & Commercial Services",Customer Relationships & Welfare Services,Transfer Payments,Crisis Assistance Awards,Self Isolation Grant,17/02/2022,500
"Communities, Customer & Commercial Services",Customer Relationships & Welfare Services,Transfer Payments,Crisis Assistance Awards,Self Isolation Grant,17/02/2022,500
"Communities, Customer & Commercial Services",Customer Relationships & Welfare Services,Transfer Payments,Crisis Assistance Awards,Self Isolation Grant,17/02/2022,500
"Communities, Customer & Commercial Services",Customer Relationships & Welfare Services,Transfer Payments,Crisis Assistance Awards,Self Isolation Grant,17/02/2022,500
"Communities, Customer & Commercial Services",Customer Relationships & Welfare Services,Transfer Payments,Crisis Assistance Awards,Self Isolation Grant,17/02/2022,500
"Communities, Customer & Commercial Services",Customer Relationships & Welfare Services,Transfer Payments,Crisis Assistance Awards,Self Isolation Grant,15/02/2022,500
"Communities, Customer & Commercial Services",Customer Relationships & Welfare Services,Transfer Payments,Crisis Assistance Awards,Self Isolation Grant,15/02/2022,500
"Communities, Customer & Commercial Services",Customer Relationships & Welfare Services,Transfer Payments,Crisis Assistance Awards,Self Isolation Grant,15/02/2022,500
"Communities, Customer & Commercial Services",Customer Relationships & Welfare Services,Transfer Payments,Crisis Assistance Awards,Self Isolation Grant,15/02/2022,500
"Communities, Customer & Commercial Services",Customer Relationships & Welfare Services,Transfer Payments,Crisis Assistance Awards,Self Isolation Grant,15/02/2022,500
"Communities, Customer & Commercial Services",Customer Relationships & Welfare Services,Transfer Payments,Crisis Assistance Awards,Self Isolation Grant,15/02/2022,500
"Communities, Customer & Commercial Services",Customer Relationships & Welfare Services,Transfer Payments,Crisis Assistance Awards,Self Isolation Grant,15/02/2022,500
"Communities, Customer & Commercial Services",Customer Relationships & Welfare Services,Transfer Payments,Crisis Assistance Awards,Self Isolation Grant,15/02/2022,500
"Communities, Customer & Commercial Services",Customer Relationships & Welfare Services,Transfer Payments,Crisis Assistance Awards,Self Isolation Grant,15/02/2022,500
"Communities, Customer & Commercial Services",Customer Relationships & Welfare Services,Transfer Payments,Crisis Assistance Awards,Self Isolation Grant,15/02/2022,500
"Communities, Customer & Commercial Services",Customer Relationships & Welfare Services,Transfer Payments,Crisis Assistance Awards,PayPoint Network Limited,15/02/2022,330
"Communities, Customer & Commercial Services",Customer Relationships & Welfare Services,Transfer Payments,Crisis Assistance Awards,Self Isolation Grant,03/02/2022,500
"Communities, Customer & Commercial Services",Customer Relationships & Welfare Services,Transfer Payments,Crisis Assistance Awards,Self Isolation Grant,03/02/2022,500
"Communities, Customer & Commercial Services",Customer Relationships & Welfare Services,Transfer Payments,Crisis Assistance Awards,Self Isolation Grant,03/02/2022,500
"Communities, Customer & Commercial Services",Customer Relationships & Welfare Services,Transfer Payments,Crisis Assistance Awards,Self Isolation Grant,03/02/2022,500
"Communities, Customer & Commercial Services",Customer Relationships & Welfare Services,Transfer Payments,Crisis Assistance Awards,Self Isolation Grant,03/02/2022,500
"Communities, Customer & Commercial Services",Customer Relationships & Welfare Services,Transfer Payments,Crisis Assistance Awards,Self Isolation Grant,03/02/2022,500
"Communities, Customer & Commercial Services",Customer Relationships & Welfare Services,Transfer Payments,Crisis Assistance Awards,Self Isolation Grant,03/02/2022,500
"Communities, Customer & Commercial Services",Customer Relationships & Welfare Services,Transfer Payments,Crisis Assistance Awards,Self Isolation Grant,03/02/2022,500
"Communities, Customer & Commercial Services",Customer Relationships & Welfare Services,Transfer Payments,Crisis Assistance Awards,Self Isolation Grant,03/02/2022,500
"Communities, Customer & Commercial Services",Customer Relationships & Welfare Services,Transfer Payments,Crisis Assistance Awards,Self Isolation Grant,21/02/2022,500
"Communities, Customer & Commercial Services",Customer Relationships & Welfare Services,Transfer Payments,Crisis Assistance Awards,Self Isolation Grant,21/02/2022,500
"Communities, Customer & Commercial Services",Customer Relationships & Welfare Services,Transfer Payments,Crisis Assistance Awards,Self Isolation Grant,21/02/2022,500
"Communities, Customer & Commercial Services",Customer Relationships & Welfare Services,Transfer Payments,Crisis Assistance Awards,Self Isolation Grant,21/02/2022,500
"Communities, Customer & Commercial Services",Customer Relationships & Welfare Services,Transfer Payments,Crisis Assistance Awards,Self Isolation Grant,21/02/2022,500
"Communities, Customer & Commercial Services",Customer Relationships & Welfare Services,Transfer Payments,Crisis Assistance Awards,Self Isolation Grant,21/02/2022,500
"Communities, Customer & Commercial Services",Customer Relationships & Welfare Services,Transfer Payments,Crisis Assistance Awards,Self Isolation Grant,21/02/2022,500
"Communities, Customer & Commercial Services",Customer Relationships & Welfare Services,Transfer Payments,Crisis Assistance Awards,Self Isolation Grant,09/02/2022,500
"Communities, Customer & Commercial Services",Customer Relationships & Welfare Services,Transfer Payments,Crisis Assistance Awards,Self Isolation Grant,09/02/2022,500
"Communities, Customer & Commercial Services",Customer Relationships & Welfare Services,Transfer Payments,Crisis Assistance Awards,Self Isolation Grant,09/02/2022,500
"Communities, Customer & Commercial Services",Customer Relationships & Welfare Services,Transfer Payments,Crisis Assistance Awards,Self Isolation Grant,09/02/2022,500
"Communities, Customer & Commercial Services",Customer Relationships & Welfare Services,Transfer Payments,Crisis Assistance Awards,Self Isolation Grant,09/02/2022,500
"Communities, Customer & Commercial Services",Customer Relationships & Welfare Services,Transfer Payments,Crisis Assistance Awards,Self Isolation Grant,09/02/2022,500
"Communities, Customer & Commercial Services",Customer Relationships & Welfare Services,Transfer Payments,Crisis Assistance Awards,Self Isolation Grant,09/02/2022,500
"Communities, Customer & Commercial Services",Customer Relationships & Welfare Services,Transfer Payments,Crisis Assistance Awards,Self Isolation Grant,09/02/2022,500
"Communities, Customer & Commercial Services",Customer Relationships & Welfare Services,Transfer Payments,Crisis Assistance Awards,Self Isolation Grant,09/02/2022,500
"Communities, Customer & Commercial Services",Customer Relationships & Welfare Services,Transfer Payments,Crisis Assistance Awards,Self Isolation Grant,24/02/2022,500
"Communities, Customer & Commercial Services",Customer Relationships & Welfare Services,Transfer Payments,Crisis Assistance Awards,Self Isolation Grant,24/02/2022,500
"Communities, Customer & Commercial Services",Customer Relationships & Welfare Services,Transfer Payments,Crisis Assistance Awards,Self Isolation Grant,24/02/2022,500
"Communities, Customer & Commercial Services",Customer Relationships & Welfare Services,Transfer Payments,Crisis Assistance Awards,Self Isolation Grant,24/02/2022,500
"Communities, Customer & Commercial Services",Customer Relationships & Welfare Services,Transfer Payments,Crisis Assistance Awards,Self Isolation Grant,24/02/2022,500
"Communities, Customer & Commercial Services",Customer Relationships & Welfare Services,Transfer Payments,Crisis Assistance Awards,Self Isolation Grant,24/02/2022,500
"Communities, Customer & Commercial Services",Customer Relationships & Welfare Services,Transfer Payments,Crisis Assistance Awards,Kings of the Road,15/02/2022,375
"Communities, Customer & Commercial Services",Customer Relationships & Welfare Services,Transfer Payments,Crisis Assistance Awards,PayPoint Network Limited,15/02/2022,350
"Communities, Customer & Commercial Services",Customer Relationships & Welfare Services,Transfer Payments,Crisis Assistance Awards,Self Isolation Grant,08/02/2022,500
"Communities, Customer & Commercial Services",Customer Relationships & Welfare Services,Transfer Payments,Crisis Assistance Awards,Self Isolation Grant,08/02/2022,500
"Communities, Customer & Commercial Services",Customer Relationships & Welfare Services,Transfer Payments,Crisis Assistance Awards,Self Isolation Grant,08/02/2022,500
"Communities, Customer & Commercial Services",Customer Relationships & Welfare Services,Transfer Payments,Crisis Assistance Awards,Self Isolation Grant,08/02/2022,500
"Communities, Customer & Commercial Services",Customer Relationships & Welfare Services,Transfer Payments,Crisis Assistance Awards,Self Isolation Grant,08/02/2022,500
"Communities, Customer & Commercial Services",Customer Relationships & Welfare Services,Transfer Payments,Crisis Assistance Awards,Self Isolation Grant,08/02/2022,500
"Communities, Customer & Commercial Services",Customer Relationships & Welfare Services,Transfer Payments,Crisis Assistance Awards,Self Isolation Grant,08/02/2022,500
"Communities, Customer & Commercial Services",Customer Relationships & Welfare Services,Transfer Payments,Crisis Assistance Awards,Self Isolation Grant,08/02/2022,500
"Communities, Customer & Commercial Services",Customer Relationships & Welfare Services,Transfer Payments,Crisis Assistance Awards,Self Isolation Grant,08/02/2022,500
"Communities, Customer & Commercial Services",Customer Relationships & Welfare Services,Transfer Payments,Crisis Assistance Awards,Self Isolation Grant,08/02/2022,500
"Communities, Customer & Commercial Services",Customer Relationships & Welfare Services,Transfer Payments,Crisis Assistance Awards,Self Isolation Grant,08/02/2022,500
"Communities, Customer & Commercial Services",Customer Relationships & Welfare Services,Transfer Payments,Crisis Assistance Awards,Self Isolation Grant,08/02/2022,500
"Communities, Customer & Commercial Services",Customer Relationships & Welfare Services,Transfer Payments,Crisis Assistance Awards,Self Isolation Grant,08/02/2022,500
"Communities, Customer & Commercial Services",Customer Relationships & Welfare Services,Transfer Payments,Crisis Assistance Awards,Self Isolation Grant,08/02/2022,500
"Communities, Customer & Commercial Services",Customer Relationships & Welfare Services,Transfer Payments,Crisis Assistance Awards,Self Isolation Grant,08/02/2022,500
"Communities, Customer & Commercial Services",Customer Relationships & Welfare Services,Transfer Payments,Crisis Assistance Awards,Self Isolation Grant,08/02/2022,500
"Communities, Customer & Commercial Services",Customer Relationships & Welfare Services,Transfer Payments,Crisis Assistance Awards,Self Isolation Grant,08/02/2022,500
"Communities, Customer & Commercial Services",Customer Relationships & Welfare Services,Transfer Payments,Crisis Assistance Awards,Self Isolation Grant,08/02/2022,500
"Communities, Customer & Commercial Services",Customer Relationships & Welfare Services,Transfer Payments,Crisis Assistance Awards,Self Isolation Grant,08/02/2022,500
"Communities, Customer & Commercial Services",Customer Relationships & Welfare Services,Transfer Payments,Crisis Assistance Awards,Self Isolation Grant,08/02/2022,500
"Communities, Customer & Commercial Services",Customer Relationships & Welfare Services,Transfer Payments,Crisis Assistance Awards,Self Isolation Grant,08/02/2022,500
"Communities, Customer & Commercial Services",Customer Relationships & Welfare Services,Transfer Payments,Crisis Assistance Awards,Self Isolation Grant,08/02/2022,500
"Communities, Customer & Commercial Services",Customer Relationships & Welfare Services,Transfer Payments,Crisis Assistance Awards,Self Isolation Grant,07/02/2022,500
"Communities, Customer & Commercial Services",Customer Relationships & Welfare Services,Transfer Payments,Crisis Assistance Awards,Self Isolation Grant,07/02/2022,500
"Communities, Customer & Commercial Services",Customer Relationships & Welfare Services,Transfer Payments,Crisis Assistance Awards,Self Isolation Grant,07/02/2022,500
"Communities, Customer & Commercial Services",Customer Relationships & Welfare Services,Transfer Payments,Crisis Assistance Awards,Self Isolation Grant,07/02/2022,500
"Communities, Customer & Commercial Services",Customer Relationships & Welfare Services,Transfer Payments,Crisis Assistance Awards,Self Isolation Grant,07/02/2022,500
"Communities, Customer & Commercial Services",Customer Relationships & Welfare Services,Transfer Payments,Crisis Assistance Awards,Self Isolation Grant,07/02/2022,500
"Communities, Customer & Commercial Services",Customer Relationships & Welfare Services,Transfer Payments,Crisis Assistance Awards,Self Isolation Grant,07/02/2022,500
"Communities, Customer & Commercial Services",Customer Relationships & Welfare Services,Transfer Payments,Crisis Assistance Awards,Self Isolation Grant,07/02/2022,500
"Communities, Customer & Commercial Services",Customer Relationships & Welfare Services,Transfer Payments,Crisis Assistance Awards,Self Isolation Grant,07/02/2022,500
"Communities, Customer & Commercial Services",Customer Relationships & Welfare Services,Transfer Payments,Crisis Assistance Awards,Self Isolation Grant,07/02/2022,500
"Communities, Customer & Commercial Services",Customer Relationships & Welfare Services,Transfer Payments,Crisis Assistance Awards,Self Isolation Grant,07/02/2022,500
"Communities, Customer & Commercial Services",Customer Relationships & Welfare Services,Transfer Payments,Crisis Assistance Awards,Self Isolation Grant,07/02/2022,500
"Communities, Customer & Commercial Services",Customer Relationships & Welfare Services,Transfer Payments,Crisis Assistance Awards,Self Isolation Grant,07/02/2022,500
"Communities, Customer & Commercial Services",Customer Relationships & Welfare Services,Transfer Payments,Crisis Assistance Awards,Self Isolation Grant,15/02/2022,500
"Communities, Customer & Commercial Services",Customer Relationships & Welfare Services,Transfer Payments,Crisis Assistance Awards,Self Isolation Grant,15/02/2022,500
"Communities, Customer & Commercial Services",Customer Relationships & Welfare Services,Transfer Payments,Crisis Assistance Awards,Self Isolation Grant,15/02/2022,500
"Communities, Customer & Commercial Services",Customer Relationships & Welfare Services,Transfer Payments,Crisis Assistance Awards,Self Isolation Grant,15/02/2022,500
"Communities, Customer & Commercial Services",Customer Relationships & Welfare Services,Transfer Payments,Crisis Assistance Awards,Self Isolation Grant,15/02/2022,500
"Communities, Customer & Commercial Services",Customer Relationships & Welfare Services,Transfer Payments,Crisis Assistance Awards,Self Isolation Grant,15/02/2022,500
"Communities, Customer & Commercial Services",Customer Relationships & Welfare Services,Transfer Payments,Crisis Assistance Awards,Self Isolation Grant,15/02/2022,500
"Communities, Customer & Commercial Services",Customer Relationships & Welfare Services,Transfer Payments,Crisis Assistance Awards,Self Isolation Grant,15/02/2022,500
"Communities, Customer & Commercial Services",Customer Relationships & Welfare Services,Transfer Payments,Crisis Assistance Awards,Self Isolation Grant,15/02/2022,500
"Communities, Customer & Commercial Services",Customer Relationships & Welfare Services,Transfer Payments,Crisis Assistance Awards,Self Isolation Grant,14/02/2022,500
"Communities, Customer & Commercial Services",Customer Relationships & Welfare Services,Transfer Payments,Crisis Assistance Awards,Self Isolation Grant,23/02/2022,500
"Communities, Customer & Commercial Services",Customer Relationships & Welfare Services,Transfer Payments,Crisis Assistance Awards,Self Isolation Grant,23/02/2022,500
"Communities, Customer & Commercial Services",Customer Relationships & Welfare Services,Transfer Payments,Crisis Assistance Awards,Self Isolation Grant,23/02/2022,500
"Communities, Customer & Commercial Services",Customer Relationships & Welfare Services,Transfer Payments,Crisis Assistance Awards,Self Isolation Grant,23/02/2022,500
"Communities, Customer & Commercial Services",Customer Relationships & Welfare Services,Transfer Payments,Crisis Assistance Awards,Self Isolation Grant,23/02/2022,500
"Communities, Customer & Commercial Services",Customer Relationships & Welfare Services,Transfer Payments,Crisis Assistance Awards,Self Isolation Grant,23/02/2022,500
"Communities, Customer & Commercial Services",Customer Relationships & Welfare Services,Transfer Payments,Crisis Assistance Awards,Self Isolation Grant,23/02/2022,500
"Communities, Customer & Commercial Services",Customer Relationships & Welfare Services,Transfer Payments,Crisis Assistance Awards,Self Isolation Grant,23/02/2022,500
"Communities, Customer & Commercial Services",Customer Relationships & Welfare Services,Transfer Payments,Crisis Assistance Awards,Self Isolation Grant,23/02/2022,500
"Communities, Customer & Commercial Services",Customer Relationships & Welfare Services,Transfer Payments,Crisis Assistance Awards,Self Isolation Grant,23/02/2022,500
"Communities, Customer & Commercial Services",Customer Relationships & Welfare Services,Transfer Payments,Crisis Assistance Awards,Self Isolation Grant,23/02/2022,500
"Communities, Customer & Commercial Services",Customer Relationships & Welfare Services,Transfer Payments,Crisis Assistance Awards,Self Isolation Grant,23/02/2022,500
"Communities, Customer & Commercial Services",Customer Relationships & Welfare Services,Transfer Payments,Crisis Assistance Awards,Self Isolation Grant,18/02/2022,500
"Communities, Customer & Commercial Services",Customer Relationships & Welfare Services,Transfer Payments,Crisis Assistance Awards,Self Isolation Grant,18/02/2022,500
"Communities, Customer & Commercial Services",Customer Relationships & Welfare Services,Transfer Payments,Crisis Assistance Awards,Self Isolation Grant,18/02/2022,500
"Communities, Customer & Commercial Services",Customer Relationships & Welfare Services,Transfer Payments,Crisis Assistance Awards,Self Isolation Grant,25/02/2022,500
"Communities, Customer & Commercial Services",Customer Relationships & Welfare Services,Transfer Payments,Crisis Assistance Awards,Self Isolation Grant,25/02/2022,500
"Communities, Customer & Commercial Services",Customer Relationships & Welfare Services,Transfer Payments,Crisis Assistance Awards,Self Isolation Grant,25/02/2022,500
"Communities, Customer & Commercial Services",Customer Relationships & Welfare Services,Transfer Payments,Crisis Assistance Awards,Self Isolation Grant,25/02/2022,500
"Communities, Customer & Commercial Services",Customer Relationships & Welfare Services,Transfer Payments,Crisis Assistance Awards,Self Isolation Grant,25/02/2022,500
"Communities, Customer & Commercial Services",Customer Relationships & Welfare Services,Transfer Payments,Crisis Assistance Awards,Self Isolation Grant,25/02/2022,500
"Communities, Customer & Commercial Services",Customer Relationships & Welfare Services,Transfer Payments,Crisis Assistance Awards,Self Isolation Grant,25/02/2022,500
"Communities, Customer & Commercial Services",Customer Relationships & Welfare Services,Transfer Payments,Crisis Assistance Awards,Self Isolation Grant,25/02/2022,500
"Communities, Customer & Commercial Services",Customer Relationships & Welfare Services,Transfer Payments,Crisis Assistance Awards,Self Isolation Grant,25/02/2022,500
"Communities, Customer & Commercial Services",Customer Relationships & Welfare Services,Transfer Payments,Crisis Assistance Awards,Self Isolation Grant,25/02/2022,500
"Communities, Customer & Commercial Services",Customer Relationships & Welfare Services,Transfer Payments,Crisis Assistance Awards,Self Isolation Grant,25/02/2022,500
"Communities, Customer & Commercial Services",Customer Relationships & Welfare Services,Transfer Payments,Crisis Assistance Awards,Self Isolation Grant,25/02/2022,500
"Communities, Customer & Commercial Services",Customer Relationships & Welfare Services,Transfer Payments,Crisis Assistance Awards,Self Isolation Grant,22/02/2022,500
"Communities, Customer & Commercial Services",Customer Relationships & Welfare Services,Transfer Payments,Crisis Assistance Awards,Self Isolation Grant,22/02/2022,500
"Communities, Customer & Commercial Services",Customer Relationships & Welfare Services,Transfer Payments,Crisis Assistance Awards,Self Isolation Grant,22/02/2022,500
"Communities, Customer & Commercial Services",Customer Relationships & Welfare Services,Transfer Payments,Crisis Assistance Awards,Self Isolation Grant,22/02/2022,500
"Communities, Customer & Commercial Services",Customer Relationships & Welfare Services,Transfer Payments,Crisis Assistance Awards,Self Isolation Grant,22/02/2022,500
"Communities, Customer & Commercial Services",Customer Relationships & Welfare Services,Transfer Payments,Crisis Assistance Awards,Self Isolation Grant,22/02/2022,500
"Communities, Customer & Commercial Services",Customer Relationships & Welfare Services,Transfer Payments,Crisis Assistance Awards,Self Isolation Grant,22/02/2022,500
"Communities, Customer & Commercial Services",Customer Relationships & Welfare Services,Transfer Payments,Crisis Assistance Awards,Self Isolation Grant,22/02/2022,500
"Communities, Customer & Commercial Services",Customer Relationships & Welfare Services,Transfer Payments,Crisis Assistance Awards,Self Isolation Grant,22/02/2022,500
"Communities, Customer & Commercial Services",Customer Relationships & Welfare Services,Transfer Payments,Crisis Assistance Awards,Self Isolation Grant,22/02/2022,500
"Communities, Customer & Commercial Services",Customer Relationships & Welfare Services,Transfer Payments,Crisis Assistance Awards,Self Isolation Grant,22/02/2022,500
"Communities, Customer & Commercial Services",Customer Relationships & Welfare Services,Transfer Payments,Crisis Assistance Awards,Self Isolation Grant,21/02/2022,500
"Communities, Customer & Commercial Services",Customer Relationships & Welfare Services,Transfer Payments,Crisis Assistance Awards,Self Isolation Grant,21/02/2022,500
"Communities, Customer & Commercial Services",Customer Relationships & Welfare Services,Transfer Payments,Crisis Assistance Awards,Self Isolation Grant,21/02/2022,500
"Communities, Customer & Commercial Services",Customer Relationships & Welfare Services,Transfer Payments,Crisis Assistance Awards,Self Isolation Grant,21/02/2022,500
"Communities, Customer & Commercial Services",Customer Relationships & Welfare Services,Transfer Payments,Crisis Assistance Awards,PayPoint Network Limited,23/02/2022,595
"Communities, Customer & Commercial Services",Customer Relationships & Welfare Services,Transfer Payments,Crisis Assistance Awards,Self Isolation Grant,28/02/2022,500
"Communities, Customer & Commercial Services",Customer Relationships & Welfare Services,Transfer Payments,Crisis Assistance Awards,Self Isolation Grant,28/02/2022,500
"Communities, Customer & Commercial Services",Customer Relationships & Welfare Services,Transfer Payments,Crisis Assistance Awards,Self Isolation Grant,28/02/2022,500
"Communities, Customer & Commercial Services",Customer Relationships & Welfare Services,Transfer Payments,Crisis Assistance Awards,Self Isolation Grant,28/02/2022,500
"Communities, Customer & Commercial Services",Customer Relationships & Welfare Services,Transfer Payments,Crisis Assistance Awards,Self Isolation Grant,28/02/2022,500
"Communities, Customer & Commercial Services",Customer Relationships & Welfare Services,Transfer Payments,Crisis Assistance Awards,Self Isolation Grant,28/02/2022,500
"Communities, Customer & Commercial Services",Customer Relationships & Welfare Services,Transfer Payments,Crisis Assistance Awards,Self Isolation Grant,28/02/2022,500
"Communities, Customer & Commercial Services",Customer Relationships & Welfare Services,Supplies & Services,Comp Hardware (Purch / Hire),CCS MEDIA LIMITED,15/02/2022,230
"Communities, Customer & Commercial Services",ICT,Employees,Staff Training,PHOENIX SOFTWARE LTD,09/02/2022,350
"Communities, Customer & Commercial Services",ICT,Supplies & Services,Telecomms,CAPITA BUSINESS SERVICES LTD ,04/02/2022,-2660.46
"Communities, Customer & Commercial Services",ICT,Supplies & Services,Telecomms,Airband Community Internet,01/02/2022,125
"Communities, Customer & Commercial Services",ICT,Supplies & Services,Comp Hardware (Purch / Hire),CAPITA IT SERVICES LIMITED,01/02/2022,-4323.04
"Communities, Customer & Commercial Services",ICT,Supplies & Services,Comp Hardware (Purch / Hire),CAPITA IT SERVICES LIMITED,01/02/2022,-1355.32
"Communities, Customer & Commercial Services",ICT,Supplies & Services,Telecomms,Airband Community Internet,09/02/2022,294.99
"Communities, Customer & Commercial Services",ICT,Supplies & Services,Telecomms,Airband Community Internet,09/02/2022,299.99
"Communities, Customer & Commercial Services",ICT,Supplies & Services,Telecomms,Airband Community Internet,09/02/2022,294.99
"Communities, Customer & Commercial Services",ICT,Supplies & Services,Telecomms,Airband Community Internet,09/02/2022,299.99
"Communities, Customer & Commercial Services",ICT,Supplies & Services,Text Messages,PROCESS FLOWS UK LTD,16/02/2022,3554.07
"Communities, Customer & Commercial Services",ICT,Supplies & Services,Mobile Phones,EE LTD AIRTIME,09/02/2022,11830.98
"Communities, Customer & Commercial Services",ICT,Supplies & Services,Telephones,CAPITA IT SERVICES LIMITED,15/02/2022,-3922.96
"Communities, Customer & Commercial Services",ICT,Supplies & Services,Telephones,VIRGIN MEDIA BUSINESS LTD ,07/02/2022,1067.02
"Communities, Customer & Commercial Services",ICT,Supplies & Services,Telephones,BRITISH TELECOMMUNICATIONS PLC ,22/02/2022,6567.47
"Communities, Customer & Commercial Services",ICT,Supplies & Services,Telephones,Trustmarque Solutions Limited,21/02/2022,-9939.49
"Communities, Customer & Commercial Services",ICT,Supplies & Services,Telephones,Trustmarque Solutions Limited,21/02/2022,-3474.57
"Communities, Customer & Commercial Services",ICT,Supplies & Services,Telephones,Trustmarque Solutions Limited,21/02/2022,-3959.08
"Communities, Customer & Commercial Services",ICT,Supplies & Services,Telephones,Trustmarque Solutions Limited,21/02/2022,-3953.53
"Communities, Customer & Commercial Services",ICT,Supplies & Services,Telephones,Trustmarque Solutions Limited,21/02/2022,-3922.96
"Communities, Customer & Commercial Services",ICT,Supplies & Services,Telephones,Trustmarque Solutions Limited,21/02/2022,-2868
"Communities, Customer & Commercial Services",ICT,Supplies & Services,Telephones,Trustmarque Solutions Limited,21/02/2022,-2868
"Communities, Customer & Commercial Services",ICT,Supplies & Services,Telephones,Trustmarque Solutions Limited,21/02/2022,-4648.62
"Communities, Customer & Commercial Services",ICT,Employees,Staff Training,Hyve UK Events Ltd,11/02/2022,2480
"Communities, Customer & Commercial Services",ICT,Premises-Related Expenditure,R&M -Building Other,Charlton Academy,01/02/2022,882.26
"Communities, Customer & Commercial Services",ICT,Premises-Related Expenditure,R&M -Building Other,BUSINESS WATCH GUARDING LIMITED,15/02/2022,323.97
"Communities, Customer & Commercial Services",ICT,Supplies & Services,Telecomms,JISC Services Limited,01/02/2022,32240
"Communities, Customer & Commercial Services",ICT,Supplies & Services,Telecomms,Nominet,04/02/2022,765.94
"Communities, Customer & Commercial Services",ICT,Supplies & Services,Other Services,Shropshire Alloys,09/02/2022,1190
"Communities, Customer & Commercial Services",ICT,Supplies & Services,Equipment - Purchase,Riello UPS Ltd,15/02/2022,562.5
"Communities, Customer & Commercial Services",ICT,Supplies & Services,Comp Software (Purch / Hire),PHOENIX SOFTWARE LTD,23/02/2022,5857.04
"Communities, Customer & Commercial Services",ICT,Supplies & Services,Comp Software (Purch / Hire),PHOENIX SOFTWARE LTD,23/02/2022,34363.5
"Communities, Customer & Commercial Services",ICT,Supplies & Services,Comp Software (Purch / Hire),UNIT4 BUSINESS SOFTWARE LTD,21/02/2022,56332.75
"Communities, Customer & Commercial Services",ICT,Supplies & Services,Equipment - Hire,RICOH UK LIMITED,23/02/2022,3873.51
"Communities, Customer & Commercial Services",ICT,Supplies & Services,Photocopying,RICOH UK LIMITED,23/02/2022,1274.56
"Communities, Customer & Commercial Services",ICT,Supplies & Services,Photocopying,RICOH UK LIMITED,22/02/2022,201.37
"Communities, Customer & Commercial Services",ICT,Supplies & Services,Comp Hardware (Purch / Hire),CCS MEDIA LIMITED,02/02/2022,6418.29
"Communities, Customer & Commercial Services",ICT,Supplies & Services,Comp Hardware (Purch / Hire),CCS MEDIA LIMITED,02/02/2022,2058.09
"Communities, Customer & Commercial Services",ICT,Supplies & Services,Comp Hardware (Purch / Hire),CCS MEDIA LIMITED,02/02/2022,2327.65
"Communities, Customer & Commercial Services",ICT,Supplies & Services,Comp Hardware (Purch / Hire),CCS MEDIA LIMITED,02/02/2022,7493.4
"Communities, Customer & Commercial Services",ICT,Supplies & Services,Comp Hardware (Purch / Hire),CCS MEDIA LIMITED,02/02/2022,1085.74
"Communities, Customer & Commercial Services",ICT,Supplies & Services,Comp Hardware (Purch / Hire),CCS MEDIA LIMITED,02/02/2022,4483.5
"Communities, Customer & Commercial Services",ICT,Supplies & Services,Comp Hardware (Purch / Hire),CCS MEDIA LIMITED,02/02/2022,1171.24
"Communities, Customer & Commercial Services",ICT,Supplies & Services,Comp Hardware (Purch / Hire),CCS MEDIA LIMITED,02/02/2022,4278.86
"Communities, Customer & Commercial Services",ICT,Supplies & Services,Comp Hardware (Purch / Hire),CCS MEDIA LIMITED,02/02/2022,1372.06
"Communities, Customer & Commercial Services",ICT,Supplies & Services,Comp Hardware (Purch / Hire),CCS MEDIA LIMITED,02/02/2022,1862.12
"Communities, Customer & Commercial Services",ICT,Supplies & Services,Comp Hardware (Purch / Hire),CCS MEDIA LIMITED,02/02/2022,7493.4
"Communities, Customer & Commercial Services",ICT,Supplies & Services,Comp Hardware (Purch / Hire),CCS MEDIA LIMITED,02/02/2022,1085.74
"Communities, Customer & Commercial Services",ICT,Supplies & Services,Comp Hardware (Purch / Hire),CCS MEDIA LIMITED,02/02/2022,4483.5
"Communities, Customer & Commercial Services",ICT,Supplies & Services,Comp Hardware (Purch / Hire),CCS MEDIA LIMITED,02/02/2022,1171.24
"Communities, Customer & Commercial Services",ICT,Supplies & Services,Comp Software (Purch / Hire),PHOENIX SOFTWARE LTD,09/02/2022,263.9
"Communities, Customer & Commercial Services",ICT,Supplies & Services,Comp Software (Purch / Hire),PHOENIX SOFTWARE LTD,16/02/2022,787
"Communities, Customer & Commercial Services",ICT,Supplies & Services,Comp Software (Purch / Hire),ScholarPack,11/02/2022,-553.5
"Communities, Customer & Commercial Services",ICT,Supplies & Services,Comp Software (Purch / Hire),ScholarPack,09/02/2022,-3581
"Communities, Customer & Commercial Services",ICT,Supplies & Services,Comp Software (Purch / Hire),ScholarPack,09/02/2022,815.5
"Communities, Customer & Commercial Services",ICT,Supplies & Services,Comp Software (Purch / Hire),ScholarPack,09/02/2022,-600
"Communities, Customer & Commercial Services",ICT,Capital Expenditure,Computer Hardware,CCS MEDIA LIMITED,02/02/2022,5439
"Communities, Customer & Commercial Services",ICT,Capital Expenditure,Computer Hardware,CIVICA UK LIMITED,16/02/2022,5120
"Communities, Customer & Commercial Services",ICT,Capital Expenditure,Other Capital Expenditure,CCS MEDIA LIMITED,11/02/2022,451.76
"Communities, Customer & Commercial Services",ICT,Capital Expenditure,Computer Software,Faronics (EMEA) Limited,17/02/2022,1500
"Communities, Customer & Commercial Services",ICT,Capital Expenditure,Computer Hardware,CCS MEDIA LIMITED,08/02/2022,1125
"Communities, Customer & Commercial Services",ICT,Capital Expenditure,Computer Hardware,INFORMATION DATA NETWORK SUPPLIES LTD,18/02/2022,1138
"Communities, Customer & Commercial Services",ICT,Capital Expenditure,Computer Hardware,CCS MEDIA LIMITED,23/02/2022,111
"Communities, Customer & Commercial Services",ICT,Capital Expenditure,Other Capital Expenditure,CCS MEDIA LIMITED,10/02/2022,13760
"Communities, Customer & Commercial Services",Sport & Leisure,Premises-Related Expenditure,Electricity,EON next,28/02/2022,123.56
"Communities, Customer & Commercial Services",Sport & Leisure,Supplies & Services,Crockery/Hardware/Light Equip,E N CATERING EQUIPMENT AND SERVICES  LTD,14/02/2022,369.5
"Communities, Customer & Commercial Services",Sport & Leisure,Supplies & Services,Protective Clothing,IMAGE@WORK LTD,18/02/2022,921.41
"Communities, Customer & Commercial Services",Sport & Leisure,Supplies & Services,EEC Whole Milk,J DAIRIES,16/02/2022,728.84
"Communities, Customer & Commercial Services",Sport & Leisure,Supplies & Services,EEC Whole Milk,J DAIRIES,16/02/2022,1325.29
"Communities, Customer & Commercial Services",Sport & Leisure,Supplies & Services,EEC Whole Milk,J DAIRIES,10/02/2022,729.64
"Communities, Customer & Commercial Services",Sport & Leisure,Supplies & Services,EEC Whole Milk,J DAIRIES,10/02/2022,1325.29
"Communities, Customer & Commercial Services",Sport & Leisure,Supplies & Services,EEC Whole Milk,J DAIRIES,28/02/2022,727.49
"Communities, Customer & Commercial Services",Sport & Leisure,Supplies & Services,EEC Whole Milk,J DAIRIES,28/02/2022,1307.69
"Communities, Customer & Commercial Services",Sport & Leisure,Supplies & Services,Provisions,BIKOLD,18/02/2022,103.59
"Communities, Customer & Commercial Services",Sport & Leisure,Supplies & Services,Provisions,BIKOLD,03/02/2022,108.41
"Communities, Customer & Commercial Services",Sport & Leisure,Supplies & Services,Provisions,BIKOLD,11/02/2022,141.94
"Communities, Customer & Commercial Services",Sport & Leisure,Employees,Agency Supply Costs,TOTAL CATERING SOLUTONS RECRUITMENT LTD,14/02/2022,303.6
"Communities, Customer & Commercial Services",Sport & Leisure,Employees,Agency Supply Costs,TOTAL CATERING SOLUTONS RECRUITMENT LTD,14/02/2022,223.91
"Communities, Customer & Commercial Services",Sport & Leisure,Employees,Agency Supply Costs,TOTAL CATERING SOLUTONS RECRUITMENT LTD,14/02/2022,242.88
"Communities, Customer & Commercial Services",Sport & Leisure,Employees,Agency Supply Costs,TOTAL CATERING SOLUTONS RECRUITMENT LTD,14/02/2022,121.44
"Communities, Customer & Commercial Services",Sport & Leisure,Employees,Agency Supply Costs,TOTAL CATERING SOLUTONS RECRUITMENT LTD,18/02/2022,303.6
"Communities, Customer & Commercial Services",Sport & Leisure,Employees,Agency Supply Costs,TOTAL CATERING SOLUTONS RECRUITMENT LTD,18/02/2022,182.16
"Communities, Customer & Commercial Services",Sport & Leisure,Employees,Agency Supply Costs,TOTAL CATERING SOLUTONS RECRUITMENT LTD,18/02/2022,242.88
"Communities, Customer & Commercial Services",Sport & Leisure,Employees,Agency Supply Costs,TOTAL CATERING SOLUTONS RECRUITMENT LTD,21/02/2022,303.6
"Communities, Customer & Commercial Services",Sport & Leisure,Employees,Agency Supply Costs,TOTAL CATERING SOLUTONS RECRUITMENT LTD,21/02/2022,182.16
"Communities, Customer & Commercial Services",Sport & Leisure,Employees,Agency Supply Costs,TOTAL CATERING SOLUTONS RECRUITMENT LTD,21/02/2022,303.6
"Communities, Customer & Commercial Services",Sport & Leisure,Employees,Agency Supply Costs,TOTAL CATERING SOLUTONS RECRUITMENT LTD,21/02/2022,303.6
"Communities, Customer & Commercial Services",Sport & Leisure,Employees,Agency Supply Costs,TOTAL CATERING SOLUTONS RECRUITMENT LTD,21/02/2022,121.44
"Communities, Customer & Commercial Services",Sport & Leisure,Premises-Related Expenditure,Clean Mats & Toilet Requisites,Border Janitorial Supplies Limited,14/02/2022,166.86
"Communities, Customer & Commercial Services",Sport & Leisure,Premises-Related Expenditure,Clean Mats & Toilet Requisites,Border Janitorial Supplies Limited,14/02/2022,380.63
"Communities, Customer & Commercial Services",Sport & Leisure,Premises-Related Expenditure,Clean Mats & Toilet Requisites,Border Janitorial Supplies Limited,04/02/2022,-356.94
"Communities, Customer & Commercial Services",Sport & Leisure,Premises-Related Expenditure,Clean Mats & Toilet Requisites,Border Janitorial Supplies Limited,01/02/2022,120.81
"Communities, Customer & Commercial Services",Sport & Leisure,Premises-Related Expenditure,Clean Mats & Toilet Requisites,Border Janitorial Supplies Limited,01/02/2022,149.96
"Communities, Customer & Commercial Services",Sport & Leisure,Premises-Related Expenditure,Clean Mats & Toilet Requisites,Border Janitorial Supplies Limited,01/02/2022,137
"Communities, Customer & Commercial Services",Sport & Leisure,Premises-Related Expenditure,Clean Mats & Toilet Requisites,Border Janitorial Supplies Limited,18/02/2022,221.2
"Communities, Customer & Commercial Services",Sport & Leisure,Premises-Related Expenditure,Clean Mats & Toilet Requisites,Border Janitorial Supplies Limited,18/02/2022,116.27
"Communities, Customer & Commercial Services",Sport & Leisure,Premises-Related Expenditure,Clean Mats & Toilet Requisites,Border Janitorial Supplies Limited,14/02/2022,165.2
"Communities, Customer & Commercial Services",Sport & Leisure,Supplies & Services,Crockery/Hardware/Light Equip,E N CATERING EQUIPMENT AND SERVICES  LTD,14/02/2022,154.74
"Communities, Customer & Commercial Services",Sport & Leisure,Supplies & Services,Crockery/Hardware/Light Equip,PLANGLOW LTD,14/02/2022,266.53
"Communities, Customer & Commercial Services",Sport & Leisure,Supplies & Services,Crockery/Hardware/Light Equip,E N CATERING EQUIPMENT AND SERVICES  LTD,18/02/2022,155.92
"Communities, Customer & Commercial Services",Sport & Leisure,Supplies & Services,Crockery/Hardware/Light Equip,E N CATERING EQUIPMENT AND SERVICES  LTD,18/02/2022,155.92
"Communities, Customer & Commercial Services",Sport & Leisure,Supplies & Services,Crockery/Hardware/Light Equip,E N CATERING EQUIPMENT AND SERVICES  LTD,28/02/2022,150.5
"Communities, Customer & Commercial Services",Sport & Leisure,Supplies & Services,Provisions,Delice de France,04/02/2022,165
"Communities, Customer & Commercial Services",Sport & Leisure,Supplies & Services,Provisions,BIKOLD,11/02/2022,153.36
"Communities, Customer & Commercial Services",Sport & Leisure,Supplies & Services,Provisions,BIKOLD,11/02/2022,146.73
"Communities, Customer & Commercial Services",Sport & Leisure,Supplies & Services,Provisions,BIKOLD,11/02/2022,247.24
"Communities, Customer & Commercial Services",Sport & Leisure,Supplies & Services,Provisions,BIKOLD,11/02/2022,140.63
"Communities, Customer & Commercial Services",Sport & Leisure,Supplies & Services,Provisions,BIKOLD,18/02/2022,634.3
"Communities, Customer & Commercial Services",Sport & Leisure,Supplies & Services,Provisions,BIKOLD,18/02/2022,204.85
"Communities, Customer & Commercial Services",Sport & Leisure,Supplies & Services,Provisions,BIKOLD,18/02/2022,700.93
"Communities, Customer & Commercial Services",Sport & Leisure,Supplies & Services,Provisions,BIKOLD,18/02/2022,101.31
"Communities, Customer & Commercial Services",Sport & Leisure,Supplies & Services,Provisions,BIKOLD,18/02/2022,102.93
"Communities, Customer & Commercial Services",Sport & Leisure,Supplies & Services,Provisions,BIKOLD,18/02/2022,126.35
"Communities, Customer & Commercial Services",Sport & Leisure,Supplies & Services,Provisions,BIKOLD,18/02/2022,134.37
"Communities, Customer & Commercial Services",Sport & Leisure,Supplies & Services,Provisions,BIKOLD,18/02/2022,305.52
"Communities, Customer & Commercial Services",Sport & Leisure,Supplies & Services,Provisions,BIKOLD,18/02/2022,125.01
"Communities, Customer & Commercial Services",Sport & Leisure,Supplies & Services,Provisions,BIKOLD,18/02/2022,141.22
"Communities, Customer & Commercial Services",Sport & Leisure,Supplies & Services,Provisions,BIKOLD,18/02/2022,174.67
"Communities, Customer & Commercial Services",Sport & Leisure,Supplies & Services,Provisions,BIKOLD,18/02/2022,137.91
"Communities, Customer & Commercial Services",Sport & Leisure,Supplies & Services,Provisions,BIKOLD,18/02/2022,180.77
"Communities, Customer & Commercial Services",Sport & Leisure,Supplies & Services,Provisions,BIKOLD,18/02/2022,230.79
"Communities, Customer & Commercial Services",Sport & Leisure,Supplies & Services,Provisions,BIKOLD,18/02/2022,342.44
"Communities, Customer & Commercial Services",Sport & Leisure,Supplies & Services,Provisions,BIKOLD,18/02/2022,172.83
"Communities, Customer & Commercial Services",Sport & Leisure,Supplies & Services,Provisions,BIKOLD,18/02/2022,238.71
"Communities, Customer & Commercial Services",Sport & Leisure,Supplies & Services,Provisions,BIKOLD,18/02/2022,227.51
"Communities, Customer & Commercial Services",Sport & Leisure,Supplies & Services,Provisions,BIKOLD,18/02/2022,119.39
"Communities, Customer & Commercial Services",Sport & Leisure,Supplies & Services,Provisions,BIKOLD,18/02/2022,297.79
"Communities, Customer & Commercial Services",Sport & Leisure,Supplies & Services,Provisions,BIKOLD,18/02/2022,250.53
"Communities, Customer & Commercial Services",Sport & Leisure,Supplies & Services,Provisions,BIKOLD,18/02/2022,218.18
"Communities, Customer & Commercial Services",Sport & Leisure,Supplies & Services,Provisions,BIKOLD,18/02/2022,161.93
"Communities, Customer & Commercial Services",Sport & Leisure,Supplies & Services,Provisions,BIKOLD,18/02/2022,624.75
"Communities, Customer & Commercial Services",Sport & Leisure,Supplies & Services,Provisions,BIKOLD,18/02/2022,132.41
"Communities, Customer & Commercial Services",Sport & Leisure,Supplies & Services,Provisions,BIKOLD,18/02/2022,266.44
"Communities, Customer & Commercial Services",Sport & Leisure,Supplies & Services,Provisions,BIKOLD,18/02/2022,277.17
"Communities, Customer & Commercial Services",Sport & Leisure,Supplies & Services,Provisions,BIKOLD,18/02/2022,118.83
"Communities, Customer & Commercial Services",Sport & Leisure,Supplies & Services,Provisions,BIKOLD,18/02/2022,131.29
"Communities, Customer & Commercial Services",Sport & Leisure,Supplies & Services,Provisions,BIKOLD,18/02/2022,124.89
"Communities, Customer & Commercial Services",Sport & Leisure,Supplies & Services,Provisions,BIKOLD,18/02/2022,265.74
"Communities, Customer & Commercial Services",Sport & Leisure,Supplies & Services,Provisions,BIKOLD,18/02/2022,205.23
"Communities, Customer & Commercial Services",Sport & Leisure,Supplies & Services,Provisions,BIKOLD,18/02/2022,280.49
"Communities, Customer & Commercial Services",Sport & Leisure,Supplies & Services,Provisions,BIKOLD,18/02/2022,265
"Communities, Customer & Commercial Services",Sport & Leisure,Supplies & Services,Provisions,BIKOLD,18/02/2022,104.72
"Communities, Customer & Commercial Services",Sport & Leisure,Supplies & Services,Provisions,BIKOLD,18/02/2022,115.03
"Communities, Customer & Commercial Services",Sport & Leisure,Supplies & Services,Provisions,BIKOLD,18/02/2022,231.07
"Communities, Customer & Commercial Services",Sport & Leisure,Supplies & Services,Provisions,BIKOLD,18/02/2022,364.81
"Communities, Customer & Commercial Services",Sport & Leisure,Supplies & Services,Provisions,BIKOLD,18/02/2022,242.85
"Communities, Customer & Commercial Services",Sport & Leisure,Supplies & Services,Provisions,BIKOLD,18/02/2022,224.32
"Communities, Customer & Commercial Services",Sport & Leisure,Supplies & Services,Provisions,BIKOLD,18/02/2022,103.75
"Communities, Customer & Commercial Services",Sport & Leisure,Supplies & Services,Provisions,BIKOLD,18/02/2022,188.37
"Communities, Customer & Commercial Services",Sport & Leisure,Supplies & Services,Provisions,BIKOLD,18/02/2022,273.98
"Communities, Customer & Commercial Services",Sport & Leisure,Supplies & Services,Provisions,BIKOLD,18/02/2022,103.34
"Communities, Customer & Commercial Services",Sport & Leisure,Supplies & Services,Provisions,BIKOLD,18/02/2022,194.63
"Communities, Customer & Commercial Services",Sport & Leisure,Supplies & Services,Provisions,BIKOLD,18/02/2022,114.3
"Communities, Customer & Commercial Services",Sport & Leisure,Supplies & Services,Provisions,BIKOLD,18/02/2022,301.38
"Communities, Customer & Commercial Services",Sport & Leisure,Supplies & Services,Provisions,BIKOLD,18/02/2022,221.69
"Communities, Customer & Commercial Services",Sport & Leisure,Supplies & Services,Provisions,BIKOLD,18/02/2022,293.35
"Communities, Customer & Commercial Services",Sport & Leisure,Supplies & Services,Provisions,BIKOLD,18/02/2022,101.34
"Communities, Customer & Commercial Services",Sport & Leisure,Supplies & Services,Provisions,BIKOLD,18/02/2022,119.87
"Communities, Customer & Commercial Services",Sport & Leisure,Supplies & Services,Provisions,BIKOLD,18/02/2022,327.99
"Communities, Customer & Commercial Services",Sport & Leisure,Supplies & Services,Provisions,BIKOLD,18/02/2022,114.95
"Communities, Customer & Commercial Services",Sport & Leisure,Supplies & Services,Provisions,BIKOLD,18/02/2022,230.97
"Communities, Customer & Commercial Services",Sport & Leisure,Supplies & Services,Provisions,BIKOLD,18/02/2022,105.59
"Communities, Customer & Commercial Services",Sport & Leisure,Supplies & Services,Provisions,BIKOLD,18/02/2022,102.53
"Communities, Customer & Commercial Services",Sport & Leisure,Supplies & Services,Provisions,BIKOLD,18/02/2022,252.6
"Communities, Customer & Commercial Services",Sport & Leisure,Supplies & Services,Provisions,BIKOLD,18/02/2022,126.49
"Communities, Customer & Commercial Services",Sport & Leisure,Supplies & Services,Provisions,BIKOLD,18/02/2022,172.86
"Communities, Customer & Commercial Services",Sport & Leisure,Supplies & Services,Provisions,BIKOLD,18/02/2022,374.75
"Communities, Customer & Commercial Services",Sport & Leisure,Supplies & Services,Provisions,BIKOLD,18/02/2022,131.63
"Communities, Customer & Commercial Services",Sport & Leisure,Supplies & Services,Provisions,BIKOLD,18/02/2022,151.01
"Communities, Customer & Commercial Services",Sport & Leisure,Supplies & Services,Provisions,BIKOLD,18/02/2022,173.76
"Communities, Customer & Commercial Services",Sport & Leisure,Supplies & Services,Provisions,BIKOLD,18/02/2022,139.88
"Communities, Customer & Commercial Services",Sport & Leisure,Supplies & Services,Provisions,BIKOLD,18/02/2022,341.73
"Communities, Customer & Commercial Services",Sport & Leisure,Supplies & Services,Provisions,BIKOLD,18/02/2022,157.16
"Communities, Customer & Commercial Services",Sport & Leisure,Supplies & Services,Provisions,BIKOLD,18/02/2022,346.93
"Communities, Customer & Commercial Services",Sport & Leisure,Supplies & Services,Provisions,BIKOLD,18/02/2022,136.3
"Communities, Customer & Commercial Services",Sport & Leisure,Supplies & Services,Provisions,BIKOLD,18/02/2022,143.19
"Communities, Customer & Commercial Services",Sport & Leisure,Supplies & Services,Provisions,BIKOLD,18/02/2022,130.88
"Communities, Customer & Commercial Services",Sport & Leisure,Supplies & Services,Provisions,BIKOLD,18/02/2022,279.85
"Communities, Customer & Commercial Services",Sport & Leisure,Supplies & Services,Provisions,BIKOLD,18/02/2022,238.12
"Communities, Customer & Commercial Services",Sport & Leisure,Supplies & Services,Provisions,BIKOLD,18/02/2022,204.82
"Communities, Customer & Commercial Services",Sport & Leisure,Supplies & Services,Provisions,BIKOLD,18/02/2022,425.72
"Communities, Customer & Commercial Services",Sport & Leisure,Supplies & Services,Provisions,BIKOLD,18/02/2022,278.21
"Communities, Customer & Commercial Services",Sport & Leisure,Supplies & Services,Provisions,BIKOLD,18/02/2022,175.68
"Communities, Customer & Commercial Services",Sport & Leisure,Supplies & Services,Provisions,BIKOLD,18/02/2022,120.15
"Communities, Customer & Commercial Services",Sport & Leisure,Supplies & Services,Provisions,BIKOLD,18/02/2022,143.81
"Communities, Customer & Commercial Services",Sport & Leisure,Supplies & Services,Provisions,BIKOLD,18/02/2022,275.58
"Communities, Customer & Commercial Services",Sport & Leisure,Supplies & Services,Provisions,BIKOLD,18/02/2022,221.72
"Communities, Customer & Commercial Services",Sport & Leisure,Supplies & Services,Provisions,BIKOLD,18/02/2022,269.35
"Communities, Customer & Commercial Services",Sport & Leisure,Supplies & Services,Provisions,BIKOLD,18/02/2022,199.43
"Communities, Customer & Commercial Services",Sport & Leisure,Supplies & Services,Provisions,BIKOLD,18/02/2022,164.84
"Communities, Customer & Commercial Services",Sport & Leisure,Supplies & Services,Provisions,BIKOLD,18/02/2022,140.75
"Communities, Customer & Commercial Services",Sport & Leisure,Supplies & Services,Provisions,BIKOLD,18/02/2022,212.4
"Communities, Customer & Commercial Services",Sport & Leisure,Supplies & Services,Provisions,BIKOLD,18/02/2022,213.48
"Communities, Customer & Commercial Services",Sport & Leisure,Supplies & Services,Provisions,BIKOLD,18/02/2022,242.51
"Communities, Customer & Commercial Services",Sport & Leisure,Supplies & Services,Provisions,BIKOLD,18/02/2022,242.31
"Communities, Customer & Commercial Services",Sport & Leisure,Supplies & Services,Provisions,BIKOLD,03/02/2022,101.72
"Communities, Customer & Commercial Services",Sport & Leisure,Supplies & Services,Provisions,BIKOLD,03/02/2022,102.02
"Communities, Customer & Commercial Services",Sport & Leisure,Supplies & Services,Provisions,BIKOLD,03/02/2022,278.49
"Communities, Customer & Commercial Services",Sport & Leisure,Supplies & Services,Provisions,BIKOLD,03/02/2022,387.56
"Communities, Customer & Commercial Services",Sport & Leisure,Supplies & Services,Provisions,BIKOLD,03/02/2022,130
"Communities, Customer & Commercial Services",Sport & Leisure,Supplies & Services,Provisions,BIKOLD,03/02/2022,181.31
"Communities, Customer & Commercial Services",Sport & Leisure,Supplies & Services,Provisions,BIKOLD,03/02/2022,258.33
"Communities, Customer & Commercial Services",Sport & Leisure,Supplies & Services,Provisions,BIKOLD,03/02/2022,138.62
"Communities, Customer & Commercial Services",Sport & Leisure,Supplies & Services,Provisions,BIKOLD,03/02/2022,202.68
"Communities, Customer & Commercial Services",Sport & Leisure,Supplies & Services,Provisions,BIKOLD,03/02/2022,150.57
"Communities, Customer & Commercial Services",Sport & Leisure,Supplies & Services,Provisions,BIKOLD,03/02/2022,131.64
"Communities, Customer & Commercial Services",Sport & Leisure,Supplies & Services,Provisions,BIKOLD,03/02/2022,121.74
"Communities, Customer & Commercial Services",Sport & Leisure,Supplies & Services,Provisions,BIKOLD,03/02/2022,242.97
"Communities, Customer & Commercial Services",Sport & Leisure,Supplies & Services,Provisions,BIKOLD,03/02/2022,251.53
"Communities, Customer & Commercial Services",Sport & Leisure,Supplies & Services,Provisions,BIKOLD,03/02/2022,369.1
"Communities, Customer & Commercial Services",Sport & Leisure,Supplies & Services,Provisions,BIKOLD,03/02/2022,142.06
"Communities, Customer & Commercial Services",Sport & Leisure,Supplies & Services,Provisions,BIKOLD,03/02/2022,191.7
"Communities, Customer & Commercial Services",Sport & Leisure,Supplies & Services,Provisions,BIKOLD,03/02/2022,384.94
"Communities, Customer & Commercial Services",Sport & Leisure,Supplies & Services,Provisions,BIKOLD,03/02/2022,266.51
"Communities, Customer & Commercial Services",Sport & Leisure,Supplies & Services,Provisions,BIKOLD,03/02/2022,617.45
"Communities, Customer & Commercial Services",Sport & Leisure,Supplies & Services,Provisions,BIKOLD,03/02/2022,204
"Communities, Customer & Commercial Services",Sport & Leisure,Supplies & Services,Provisions,BIKOLD,03/02/2022,397.34
"Communities, Customer & Commercial Services",Sport & Leisure,Supplies & Services,Provisions,BIKOLD,03/02/2022,262.51
"Communities, Customer & Commercial Services",Sport & Leisure,Supplies & Services,Provisions,BIKOLD,03/02/2022,158.94
"Communities, Customer & Commercial Services",Sport & Leisure,Supplies & Services,Provisions,BIKOLD,03/02/2022,145.64
"Communities, Customer & Commercial Services",Sport & Leisure,Supplies & Services,Provisions,BIKOLD,03/02/2022,104.6
"Communities, Customer & Commercial Services",Sport & Leisure,Supplies & Services,Provisions,BIKOLD,03/02/2022,101.42
"Communities, Customer & Commercial Services",Sport & Leisure,Supplies & Services,Provisions,BIKOLD,03/02/2022,265.79
"Communities, Customer & Commercial Services",Sport & Leisure,Supplies & Services,Provisions,BIKOLD,03/02/2022,259.85
"Communities, Customer & Commercial Services",Sport & Leisure,Supplies & Services,Provisions,BIKOLD,03/02/2022,103.61
"Communities, Customer & Commercial Services",Sport & Leisure,Supplies & Services,Provisions,BIKOLD,03/02/2022,227.25
"Communities, Customer & Commercial Services",Sport & Leisure,Supplies & Services,Provisions,BIKOLD,03/02/2022,323.66
"Communities, Customer & Commercial Services",Sport & Leisure,Supplies & Services,Provisions,BIKOLD,03/02/2022,138.46
"Communities, Customer & Commercial Services",Sport & Leisure,Supplies & Services,Provisions,BIKOLD,03/02/2022,240.74
"Communities, Customer & Commercial Services",Sport & Leisure,Supplies & Services,Provisions,BIKOLD,03/02/2022,158.26
"Communities, Customer & Commercial Services",Sport & Leisure,Supplies & Services,Provisions,BIKOLD,03/02/2022,180.44
"Communities, Customer & Commercial Services",Sport & Leisure,Supplies & Services,Provisions,BIKOLD,03/02/2022,214.25
"Communities, Customer & Commercial Services",Sport & Leisure,Supplies & Services,Provisions,BIKOLD,03/02/2022,204.97
"Communities, Customer & Commercial Services",Sport & Leisure,Supplies & Services,Provisions,BIKOLD,03/02/2022,294.98
"Communities, Customer & Commercial Services",Sport & Leisure,Supplies & Services,Provisions,BIKOLD,03/02/2022,166.77
"Communities, Customer & Commercial Services",Sport & Leisure,Supplies & Services,Provisions,BIKOLD,03/02/2022,208.08
"Communities, Customer & Commercial Services",Sport & Leisure,Supplies & Services,Provisions,BIKOLD,03/02/2022,153.45
"Communities, Customer & Commercial Services",Sport & Leisure,Supplies & Services,Provisions,BIKOLD,03/02/2022,218.04
"Communities, Customer & Commercial Services",Sport & Leisure,Supplies & Services,Provisions,BIKOLD,03/02/2022,113.56
"Communities, Customer & Commercial Services",Sport & Leisure,Supplies & Services,Provisions,BIKOLD,03/02/2022,102.23
"Communities, Customer & Commercial Services",Sport & Leisure,Supplies & Services,Provisions,BIKOLD,03/02/2022,263.46
"Communities, Customer & Commercial Services",Sport & Leisure,Supplies & Services,Provisions,BIKOLD,03/02/2022,335.44
"Communities, Customer & Commercial Services",Sport & Leisure,Supplies & Services,Provisions,BIKOLD,03/02/2022,163.36
"Communities, Customer & Commercial Services",Sport & Leisure,Supplies & Services,Provisions,BIKOLD,03/02/2022,157.49
"Communities, Customer & Commercial Services",Sport & Leisure,Supplies & Services,Provisions,BIKOLD,03/02/2022,270.35
"Communities, Customer & Commercial Services",Sport & Leisure,Supplies & Services,Provisions,BIKOLD,03/02/2022,103.63
"Communities, Customer & Commercial Services",Sport & Leisure,Supplies & Services,Provisions,BIKOLD,03/02/2022,200.95
"Communities, Customer & Commercial Services",Sport & Leisure,Supplies & Services,Provisions,BIKOLD,03/02/2022,292.31
"Communities, Customer & Commercial Services",Sport & Leisure,Supplies & Services,Provisions,BIKOLD,03/02/2022,182.21
"Communities, Customer & Commercial Services",Sport & Leisure,Supplies & Services,Provisions,BIKOLD,03/02/2022,100.05
"Communities, Customer & Commercial Services",Sport & Leisure,Supplies & Services,Provisions,BIKOLD,03/02/2022,154.66
"Communities, Customer & Commercial Services",Sport & Leisure,Supplies & Services,Provisions,BIKOLD,03/02/2022,138.15
"Communities, Customer & Commercial Services",Sport & Leisure,Supplies & Services,Provisions,BIKOLD,03/02/2022,226.48
"Communities, Customer & Commercial Services",Sport & Leisure,Supplies & Services,Provisions,BIKOLD,03/02/2022,275.43
"Communities, Customer & Commercial Services",Sport & Leisure,Supplies & Services,Provisions,BIKOLD,03/02/2022,164.01
"Communities, Customer & Commercial Services",Sport & Leisure,Supplies & Services,Provisions,BIKOLD,03/02/2022,113.81
"Communities, Customer & Commercial Services",Sport & Leisure,Supplies & Services,Provisions,BIKOLD,03/02/2022,301.2
"Communities, Customer & Commercial Services",Sport & Leisure,Supplies & Services,Provisions,BIKOLD,03/02/2022,196.22
"Communities, Customer & Commercial Services",Sport & Leisure,Supplies & Services,Provisions,BIKOLD,03/02/2022,122.5
"Communities, Customer & Commercial Services",Sport & Leisure,Supplies & Services,Provisions,BIKOLD,03/02/2022,202.29
"Communities, Customer & Commercial Services",Sport & Leisure,Supplies & Services,Provisions,BIKOLD,03/02/2022,113.8
"Communities, Customer & Commercial Services",Sport & Leisure,Supplies & Services,Provisions,BIKOLD,03/02/2022,351.38
"Communities, Customer & Commercial Services",Sport & Leisure,Supplies & Services,Provisions,BIKOLD,03/02/2022,228.71
"Communities, Customer & Commercial Services",Sport & Leisure,Supplies & Services,Provisions,BIKOLD,03/02/2022,241.04
"Communities, Customer & Commercial Services",Sport & Leisure,Supplies & Services,Provisions,BIKOLD,03/02/2022,114.99
"Communities, Customer & Commercial Services",Sport & Leisure,Supplies & Services,Provisions,BIKOLD,03/02/2022,120.68
"Communities, Customer & Commercial Services",Sport & Leisure,Supplies & Services,Provisions,BIKOLD,03/02/2022,144.19
"Communities, Customer & Commercial Services",Sport & Leisure,Supplies & Services,Provisions,BIKOLD,03/02/2022,305.69
"Communities, Customer & Commercial Services",Sport & Leisure,Supplies & Services,Provisions,BIKOLD,03/02/2022,137.65
"Communities, Customer & Commercial Services",Sport & Leisure,Supplies & Services,Provisions,BIKOLD,03/02/2022,115.47
"Communities, Customer & Commercial Services",Sport & Leisure,Supplies & Services,Provisions,BIKOLD,03/02/2022,237.7
"Communities, Customer & Commercial Services",Sport & Leisure,Supplies & Services,Provisions,BIKOLD,03/02/2022,127.33
"Communities, Customer & Commercial Services",Sport & Leisure,Supplies & Services,Provisions,BIKOLD,03/02/2022,201.22
"Communities, Customer & Commercial Services",Sport & Leisure,Supplies & Services,Provisions,BIKOLD,03/02/2022,315.97
"Communities, Customer & Commercial Services",Sport & Leisure,Supplies & Services,Provisions,BIKOLD,03/02/2022,263.67
"Communities, Customer & Commercial Services",Sport & Leisure,Supplies & Services,Provisions,BIKOLD,03/02/2022,105.77
"Communities, Customer & Commercial Services",Sport & Leisure,Supplies & Services,Provisions,BIKOLD,03/02/2022,132.53
"Communities, Customer & Commercial Services",Sport & Leisure,Supplies & Services,Provisions,BIKOLD,03/02/2022,387.96
"Communities, Customer & Commercial Services",Sport & Leisure,Supplies & Services,Provisions,BIKOLD,03/02/2022,158.12
"Communities, Customer & Commercial Services",Sport & Leisure,Supplies & Services,Provisions,BIKOLD,03/02/2022,371.34
"Communities, Customer & Commercial Services",Sport & Leisure,Supplies & Services,Provisions,BIKOLD,03/02/2022,259.34
"Communities, Customer & Commercial Services",Sport & Leisure,Supplies & Services,Provisions,BIKOLD,03/02/2022,151.97
"Communities, Customer & Commercial Services",Sport & Leisure,Supplies & Services,Provisions,BIKOLD,03/02/2022,445.52
"Communities, Customer & Commercial Services",Sport & Leisure,Supplies & Services,Provisions,R & COMPANY,17/02/2022,136.23
"Communities, Customer & Commercial Services",Sport & Leisure,Supplies & Services,Provisions,R & COMPANY,17/02/2022,125.43
"Communities, Customer & Commercial Services",Sport & Leisure,Supplies & Services,Provisions,R & COMPANY,17/02/2022,181.65
"Communities, Customer & Commercial Services",Sport & Leisure,Supplies & Services,Provisions,R & COMPANY,17/02/2022,129.46
"Communities, Customer & Commercial Services",Sport & Leisure,Supplies & Services,Provisions,R & COMPANY,17/02/2022,136.34
"Communities, Customer & Commercial Services",Sport & Leisure,Supplies & Services,Provisions,R & COMPANY,17/02/2022,118.19
"Communities, Customer & Commercial Services",Sport & Leisure,Supplies & Services,Provisions,R & COMPANY,17/02/2022,107.49
"Communities, Customer & Commercial Services",Sport & Leisure,Supplies & Services,Provisions,R & COMPANY,17/02/2022,106.12
"Communities, Customer & Commercial Services",Sport & Leisure,Supplies & Services,Provisions,R & COMPANY,17/02/2022,232.98
"Communities, Customer & Commercial Services",Sport & Leisure,Supplies & Services,Provisions,R & COMPANY,17/02/2022,195.82
"Communities, Customer & Commercial Services",Sport & Leisure,Supplies & Services,Provisions,R & COMPANY,17/02/2022,138.26
"Communities, Customer & Commercial Services",Sport & Leisure,Supplies & Services,Provisions,R & COMPANY,17/02/2022,179.92
"Communities, Customer & Commercial Services",Sport & Leisure,Supplies & Services,Provisions,R & COMPANY,17/02/2022,155.62
"Communities, Customer & Commercial Services",Sport & Leisure,Supplies & Services,Provisions,R & COMPANY,17/02/2022,107.63
"Communities, Customer & Commercial Services",Sport & Leisure,Supplies & Services,Provisions,R & COMPANY,17/02/2022,146.21
"Communities, Customer & Commercial Services",Sport & Leisure,Supplies & Services,Provisions,R & COMPANY,10/02/2022,120.29
"Communities, Customer & Commercial Services",Sport & Leisure,Supplies & Services,Provisions,R & COMPANY,10/02/2022,110.42
"Communities, Customer & Commercial Services",Sport & Leisure,Supplies & Services,Provisions,R & COMPANY,10/02/2022,198.22
"Communities, Customer & Commercial Services",Sport & Leisure,Supplies & Services,Provisions,R & COMPANY,10/02/2022,100.64
"Communities, Customer & Commercial Services",Sport & Leisure,Supplies & Services,Provisions,R & COMPANY,10/02/2022,162.93
"Communities, Customer & Commercial Services",Sport & Leisure,Supplies & Services,Provisions,R & COMPANY,10/02/2022,100.68
"Communities, Customer & Commercial Services",Sport & Leisure,Supplies & Services,Provisions,R & COMPANY,10/02/2022,106.9
"Communities, Customer & Commercial Services",Sport & Leisure,Supplies & Services,Provisions,R & COMPANY,10/02/2022,130.87
"Communities, Customer & Commercial Services",Sport & Leisure,Supplies & Services,Provisions,R & COMPANY,10/02/2022,114.93
"Communities, Customer & Commercial Services",Sport & Leisure,Supplies & Services,Provisions,R & COMPANY,10/02/2022,282.88
"Communities, Customer & Commercial Services",Sport & Leisure,Supplies & Services,Provisions,R & COMPANY,10/02/2022,156.23
"Communities, Customer & Commercial Services",Sport & Leisure,Supplies & Services,Provisions,R & COMPANY,10/02/2022,119.54
"Communities, Customer & Commercial Services",Sport & Leisure,Supplies & Services,Provisions,R & COMPANY,10/02/2022,160.63
"Communities, Customer & Commercial Services",Sport & Leisure,Supplies & Services,Provisions,R & COMPANY,10/02/2022,140.29
"Communities, Customer & Commercial Services",Sport & Leisure,Supplies & Services,Provisions,R & COMPANY,10/02/2022,155.06
"Communities, Customer & Commercial Services",Sport & Leisure,Supplies & Services,Provisions,R & COMPANY,10/02/2022,112.04
"Communities, Customer & Commercial Services",Sport & Leisure,Supplies & Services,Provisions,R & COMPANY,10/02/2022,112.47
"Communities, Customer & Commercial Services",Sport & Leisure,Supplies & Services,Provisions,J S Catering Butchers,08/02/2022,142.67
"Communities, Customer & Commercial Services",Sport & Leisure,Supplies & Services,Provisions,J S Catering Butchers,08/02/2022,147.93
"Communities, Customer & Commercial Services",Sport & Leisure,Supplies & Services,Provisions,J S Catering Butchers,08/02/2022,238.69
"Communities, Customer & Commercial Services",Sport & Leisure,Supplies & Services,Provisions,J S Catering Butchers,08/02/2022,182.28
"Communities, Customer & Commercial Services",Sport & Leisure,Supplies & Services,Provisions,J S Catering Butchers,08/02/2022,192
"Communities, Customer & Commercial Services",Sport & Leisure,Supplies & Services,Provisions,J S Catering Butchers,08/02/2022,144
"Communities, Customer & Commercial Services",Sport & Leisure,Supplies & Services,Provisions,J S Catering Butchers,08/02/2022,276.31
"Communities, Customer & Commercial Services",Sport & Leisure,Supplies & Services,Provisions,J S Catering Butchers,08/02/2022,124.1
"Communities, Customer & Commercial Services",Sport & Leisure,Supplies & Services,Provisions,J S Catering Butchers,08/02/2022,351.67
"Communities, Customer & Commercial Services",Sport & Leisure,Supplies & Services,Provisions,J S Catering Butchers,08/02/2022,108.18
"Communities, Customer & Commercial Services",Sport & Leisure,Supplies & Services,Provisions,J S Catering Butchers,08/02/2022,108
"Communities, Customer & Commercial Services",Sport & Leisure,Supplies & Services,Provisions,J S Catering Butchers,08/02/2022,189.26
"Communities, Customer & Commercial Services",Sport & Leisure,Supplies & Services,Provisions,J S Catering Butchers,14/02/2022,101.58
"Communities, Customer & Commercial Services",Sport & Leisure,Supplies & Services,Provisions,J S Catering Butchers,14/02/2022,100.85
"Communities, Customer & Commercial Services",Sport & Leisure,Supplies & Services,Provisions,J S Catering Butchers,14/02/2022,135.24
"Communities, Customer & Commercial Services",Sport & Leisure,Supplies & Services,Provisions,J S Catering Butchers,14/02/2022,174.1
"Communities, Customer & Commercial Services",Sport & Leisure,Supplies & Services,Provisions,J S Catering Butchers,14/02/2022,251.16
"Communities, Customer & Commercial Services",Sport & Leisure,Supplies & Services,Provisions,J S Catering Butchers,14/02/2022,325.19
"Communities, Customer & Commercial Services",Sport & Leisure,Supplies & Services,Provisions,J S Catering Butchers,14/02/2022,168
"Communities, Customer & Commercial Services",Sport & Leisure,Supplies & Services,Provisions,J S Catering Butchers,14/02/2022,192
"Communities, Customer & Commercial Services",Sport & Leisure,Supplies & Services,Provisions,J S Catering Butchers,14/02/2022,137.48
"Communities, Customer & Commercial Services",Sport & Leisure,Supplies & Services,Provisions,BIKOLD,25/02/2022,834.46
"Communities, Customer & Commercial Services",Sport & Leisure,Supplies & Services,Provisions,BIKOLD,25/02/2022,289.81
"Communities, Customer & Commercial Services",Sport & Leisure,Supplies & Services,Provisions,BIKOLD,11/02/2022,278.38
"Communities, Customer & Commercial Services",Sport & Leisure,Supplies & Services,Provisions,BIKOLD,11/02/2022,353.45
"Communities, Customer & Commercial Services",Sport & Leisure,Supplies & Services,Provisions,BIKOLD,11/02/2022,205.74
"Communities, Customer & Commercial Services",Sport & Leisure,Supplies & Services,Provisions,BIKOLD,11/02/2022,215.11
"Communities, Customer & Commercial Services",Sport & Leisure,Supplies & Services,Provisions,BIKOLD,11/02/2022,183.04
"Communities, Customer & Commercial Services",Sport & Leisure,Supplies & Services,Provisions,BIKOLD,11/02/2022,143.74
"Communities, Customer & Commercial Services",Sport & Leisure,Supplies & Services,Provisions,BIKOLD,11/02/2022,211.44
"Communities, Customer & Commercial Services",Sport & Leisure,Supplies & Services,Provisions,BIKOLD,11/02/2022,343.55
"Communities, Customer & Commercial Services",Sport & Leisure,Supplies & Services,Provisions,BIKOLD,11/02/2022,451.41
"Communities, Customer & Commercial Services",Sport & Leisure,Supplies & Services,Provisions,BIKOLD,11/02/2022,453.56
"Communities, Customer & Commercial Services",Sport & Leisure,Supplies & Services,Provisions,BIKOLD,11/02/2022,400.87
"Communities, Customer & Commercial Services",Sport & Leisure,Supplies & Services,Provisions,BIKOLD,11/02/2022,155.79
"Communities, Customer & Commercial Services",Sport & Leisure,Supplies & Services,Provisions,BIKOLD,11/02/2022,190.69
"Communities, Customer & Commercial Services",Sport & Leisure,Supplies & Services,Provisions,BIKOLD,11/02/2022,111.16
"Communities, Customer & Commercial Services",Sport & Leisure,Supplies & Services,Provisions,BIKOLD,11/02/2022,115.22
"Communities, Customer & Commercial Services",Sport & Leisure,Supplies & Services,Provisions,BIKOLD,11/02/2022,206.31
"Communities, Customer & Commercial Services",Sport & Leisure,Supplies & Services,Provisions,BIKOLD,11/02/2022,130.74
"Communities, Customer & Commercial Services",Sport & Leisure,Supplies & Services,Provisions,BIKOLD,11/02/2022,443
"Communities, Customer & Commercial Services",Sport & Leisure,Supplies & Services,Provisions,BIKOLD,11/02/2022,113.52
"Communities, Customer & Commercial Services",Sport & Leisure,Supplies & Services,Provisions,BIKOLD,11/02/2022,179.83
"Communities, Customer & Commercial Services",Sport & Leisure,Supplies & Services,Provisions,BIKOLD,11/02/2022,166.16
"Communities, Customer & Commercial Services",Sport & Leisure,Supplies & Services,Provisions,BIKOLD,11/02/2022,281.44
"Communities, Customer & Commercial Services",Sport & Leisure,Supplies & Services,Provisions,BIKOLD,11/02/2022,101.9
"Communities, Customer & Commercial Services",Sport & Leisure,Supplies & Services,Provisions,BIKOLD,11/02/2022,140.59
"Communities, Customer & Commercial Services",Sport & Leisure,Supplies & Services,Provisions,BIKOLD,11/02/2022,159.75
"Communities, Customer & Commercial Services",Sport & Leisure,Supplies & Services,Provisions,BIKOLD,11/02/2022,139.46
"Communities, Customer & Commercial Services",Sport & Leisure,Supplies & Services,Provisions,BIKOLD,11/02/2022,232.48
"Communities, Customer & Commercial Services",Sport & Leisure,Supplies & Services,Provisions,BIKOLD,11/02/2022,155.72
"Communities, Customer & Commercial Services",Sport & Leisure,Supplies & Services,Provisions,BIKOLD,11/02/2022,229.9
"Communities, Customer & Commercial Services",Sport & Leisure,Supplies & Services,Provisions,BIKOLD,11/02/2022,134.19
"Communities, Customer & Commercial Services",Sport & Leisure,Supplies & Services,Provisions,BIKOLD,11/02/2022,127.43
"Communities, Customer & Commercial Services",Sport & Leisure,Supplies & Services,Provisions,BIKOLD,11/02/2022,324.74
"Communities, Customer & Commercial Services",Sport & Leisure,Supplies & Services,Provisions,BIKOLD,11/02/2022,138.52
"Communities, Customer & Commercial Services",Sport & Leisure,Supplies & Services,Provisions,BIKOLD,11/02/2022,116.56
"Communities, Customer & Commercial Services",Sport & Leisure,Supplies & Services,Provisions,BIKOLD,11/02/2022,217.97
"Communities, Customer & Commercial Services",Sport & Leisure,Supplies & Services,Provisions,BIKOLD,11/02/2022,215.24
"Communities, Customer & Commercial Services",Sport & Leisure,Supplies & Services,Provisions,BIKOLD,11/02/2022,194.17
"Communities, Customer & Commercial Services",Sport & Leisure,Supplies & Services,Provisions,BIKOLD,11/02/2022,216.11
"Communities, Customer & Commercial Services",Sport & Leisure,Supplies & Services,Provisions,BIKOLD,11/02/2022,177.74
"Communities, Customer & Commercial Services",Sport & Leisure,Supplies & Services,Provisions,BIKOLD,11/02/2022,113.93
"Communities, Customer & Commercial Services",Sport & Leisure,Supplies & Services,Provisions,BIKOLD,11/02/2022,159.47
"Communities, Customer & Commercial Services",Sport & Leisure,Supplies & Services,Provisions,BIKOLD,11/02/2022,380.89
"Communities, Customer & Commercial Services",Sport & Leisure,Supplies & Services,Provisions,BIKOLD,11/02/2022,127.17
"Communities, Customer & Commercial Services",Sport & Leisure,Supplies & Services,Provisions,BIKOLD,11/02/2022,192.97
"Communities, Customer & Commercial Services",Sport & Leisure,Supplies & Services,Provisions,BIKOLD,11/02/2022,288.22
"Communities, Customer & Commercial Services",Sport & Leisure,Supplies & Services,Provisions,BIKOLD,11/02/2022,316.47
"Communities, Customer & Commercial Services",Sport & Leisure,Supplies & Services,Provisions,BIKOLD,11/02/2022,180.49
"Communities, Customer & Commercial Services",Sport & Leisure,Supplies & Services,Provisions,BIKOLD,11/02/2022,107.13
"Communities, Customer & Commercial Services",Sport & Leisure,Supplies & Services,Provisions,BIKOLD,11/02/2022,239.4
"Communities, Customer & Commercial Services",Sport & Leisure,Supplies & Services,Provisions,BIKOLD,11/02/2022,306.18
"Communities, Customer & Commercial Services",Sport & Leisure,Supplies & Services,Provisions,BIKOLD,11/02/2022,452.75
"Communities, Customer & Commercial Services",Sport & Leisure,Supplies & Services,Provisions,BIKOLD,11/02/2022,378.81
"Communities, Customer & Commercial Services",Sport & Leisure,Supplies & Services,Provisions,BIKOLD,11/02/2022,203.11
"Communities, Customer & Commercial Services",Sport & Leisure,Supplies & Services,Provisions,BIKOLD,11/02/2022,285.54
"Communities, Customer & Commercial Services",Sport & Leisure,Supplies & Services,Provisions,BIKOLD,11/02/2022,152.79
"Communities, Customer & Commercial Services",Sport & Leisure,Supplies & Services,Provisions,BIKOLD,11/02/2022,139.77
"Communities, Customer & Commercial Services",Sport & Leisure,Supplies & Services,Provisions,BIKOLD,11/02/2022,172.57
"Communities, Customer & Commercial Services",Sport & Leisure,Supplies & Services,Provisions,BIKOLD,11/02/2022,349.95
"Communities, Customer & Commercial Services",Sport & Leisure,Supplies & Services,Provisions,BIKOLD,11/02/2022,244.15
"Communities, Customer & Commercial Services",Sport & Leisure,Supplies & Services,Provisions,BIKOLD,11/02/2022,164.03
"Communities, Customer & Commercial Services",Sport & Leisure,Supplies & Services,Provisions,BIKOLD,11/02/2022,109.46
"Communities, Customer & Commercial Services",Sport & Leisure,Supplies & Services,Provisions,BIKOLD,11/02/2022,101.71
"Communities, Customer & Commercial Services",Sport & Leisure,Supplies & Services,Provisions,BIKOLD,11/02/2022,179.86
"Communities, Customer & Commercial Services",Sport & Leisure,Supplies & Services,Provisions,BIKOLD,11/02/2022,115.33
"Communities, Customer & Commercial Services",Sport & Leisure,Supplies & Services,Provisions,BIKOLD,11/02/2022,198.69
"Communities, Customer & Commercial Services",Sport & Leisure,Supplies & Services,Provisions,BIKOLD,11/02/2022,169.33
"Communities, Customer & Commercial Services",Sport & Leisure,Supplies & Services,Provisions,BIKOLD,11/02/2022,193.8
"Communities, Customer & Commercial Services",Sport & Leisure,Supplies & Services,Provisions,BIKOLD,11/02/2022,100.8
"Communities, Customer & Commercial Services",Sport & Leisure,Supplies & Services,Provisions,BIKOLD,11/02/2022,221.67
"Communities, Customer & Commercial Services",Sport & Leisure,Supplies & Services,Provisions,BIKOLD,11/02/2022,223.05
"Communities, Customer & Commercial Services",Sport & Leisure,Supplies & Services,Provisions,BIKOLD,11/02/2022,237.41
"Communities, Customer & Commercial Services",Sport & Leisure,Supplies & Services,Provisions,BIKOLD,11/02/2022,102.32
"Communities, Customer & Commercial Services",Sport & Leisure,Supplies & Services,Provisions,BIKOLD,11/02/2022,117.07
"Communities, Customer & Commercial Services",Sport & Leisure,Supplies & Services,Provisions,BIKOLD,11/02/2022,261.92
"Communities, Customer & Commercial Services",Sport & Leisure,Supplies & Services,Provisions,BIKOLD,11/02/2022,263.82
"Communities, Customer & Commercial Services",Sport & Leisure,Supplies & Services,Provisions,BIKOLD,11/02/2022,391.11
"Communities, Customer & Commercial Services",Sport & Leisure,Supplies & Services,Provisions,BIKOLD,11/02/2022,104.73
"Communities, Customer & Commercial Services",Sport & Leisure,Supplies & Services,Provisions,BIKOLD,11/02/2022,149.57
"Communities, Customer & Commercial Services",Sport & Leisure,Supplies & Services,Provisions,BIKOLD,11/02/2022,245.38
"Communities, Customer & Commercial Services",Sport & Leisure,Supplies & Services,Provisions,BIKOLD,11/02/2022,189.91
"Communities, Customer & Commercial Services",Sport & Leisure,Supplies & Services,Provisions,BIKOLD,11/02/2022,196.24
"Communities, Customer & Commercial Services",Sport & Leisure,Supplies & Services,Provisions,BIKOLD,11/02/2022,192.03
"Communities, Customer & Commercial Services",Sport & Leisure,Supplies & Services,Provisions,BIKOLD,11/02/2022,120.45
"Communities, Customer & Commercial Services",Sport & Leisure,Supplies & Services,Provisions,BIKOLD,11/02/2022,628.06
"Communities, Customer & Commercial Services",Sport & Leisure,Supplies & Services,Provisions,BIKOLD,11/02/2022,842.17
"Communities, Customer & Commercial Services",Sport & Leisure,Supplies & Services,Provisions,J S Catering Butchers,22/02/2022,102.37
"Communities, Customer & Commercial Services",Sport & Leisure,Supplies & Services,Provisions,J S Catering Butchers,22/02/2022,222.8
"Communities, Customer & Commercial Services",Sport & Leisure,Supplies & Services,Provisions,J S Catering Butchers,22/02/2022,289.64
"Communities, Customer & Commercial Services",Sport & Leisure,Supplies & Services,Provisions,J S Catering Butchers,22/02/2022,117.45
"Communities, Customer & Commercial Services",Sport & Leisure,Supplies & Services,Provisions,J S Catering Butchers,22/02/2022,125.35
"Communities, Customer & Commercial Services",Sport & Leisure,Supplies & Services,Provisions,J S Catering Butchers,22/02/2022,182.52
"Communities, Customer & Commercial Services",Sport & Leisure,Supplies & Services,Provisions,J S Catering Butchers,22/02/2022,168
"Communities, Customer & Commercial Services",Sport & Leisure,Supplies & Services,Provisions,J S Catering Butchers,22/02/2022,437.47
"Communities, Customer & Commercial Services",Sport & Leisure,Supplies & Services,Provisions,J S Catering Butchers,22/02/2022,120
"Communities, Customer & Commercial Services",Sport & Leisure,Supplies & Services,Provisions,J S Catering Butchers,22/02/2022,144
"Communities, Customer & Commercial Services",Sport & Leisure,Supplies & Services,Provisions,J S Catering Butchers,21/02/2022,186.78
"Communities, Customer & Commercial Services",Sport & Leisure,Supplies & Services,Provisions,J S Catering Butchers,21/02/2022,301.41
"Communities, Customer & Commercial Services",Sport & Leisure,Supplies & Services,Provisions,J S Catering Butchers,21/02/2022,215.4
"Communities, Customer & Commercial Services",Sport & Leisure,Supplies & Services,Provisions,J S Catering Butchers,21/02/2022,112.6
"Communities, Customer & Commercial Services",Sport & Leisure,Supplies & Services,Provisions,J S Catering Butchers,21/02/2022,170.4
"Communities, Customer & Commercial Services",Sport & Leisure,Supplies & Services,Provisions,J S Catering Butchers,21/02/2022,183.05
"Communities, Customer & Commercial Services",Sport & Leisure,Supplies & Services,Provisions,J S Catering Butchers,21/02/2022,182.22
"Communities, Customer & Commercial Services",Sport & Leisure,Supplies & Services,Provisions,J S Catering Butchers,21/02/2022,212.81
"Communities, Customer & Commercial Services",Sport & Leisure,Supplies & Services,Provisions,J S Catering Butchers,21/02/2022,175.32
"Communities, Customer & Commercial Services",Sport & Leisure,Supplies & Services,Provisions,J S Catering Butchers,21/02/2022,400.9
"Communities, Customer & Commercial Services",Sport & Leisure,Supplies & Services,Provisions,J S Catering Butchers,21/02/2022,168
"Communities, Customer & Commercial Services",Sport & Leisure,Supplies & Services,Provisions,J S Catering Butchers,21/02/2022,264
"Communities, Customer & Commercial Services",Sport & Leisure,Supplies & Services,Provisions,R & COMPANY,21/02/2022,115.61
"Communities, Customer & Commercial Services",Sport & Leisure,Supplies & Services,Provisions,R & COMPANY,21/02/2022,276.43
"Communities, Customer & Commercial Services",Sport & Leisure,Supplies & Services,Provisions,R & COMPANY,21/02/2022,142.3
"Communities, Customer & Commercial Services",Sport & Leisure,Supplies & Services,Provisions,R & COMPANY,21/02/2022,202.77
"Communities, Customer & Commercial Services",Sport & Leisure,Supplies & Services,Provisions,R & COMPANY,21/02/2022,143.62
"Communities, Customer & Commercial Services",Sport & Leisure,Supplies & Services,Provisions,R & COMPANY,21/02/2022,133.21
"Communities, Customer & Commercial Services",Sport & Leisure,Supplies & Services,Provisions,R & COMPANY,21/02/2022,113.97
"Communities, Customer & Commercial Services",Sport & Leisure,Supplies & Services,Provisions,R & COMPANY,21/02/2022,148.81
"Communities, Customer & Commercial Services",Sport & Leisure,Supplies & Services,Provisions,R & COMPANY,21/02/2022,166.85
"Communities, Customer & Commercial Services",Sport & Leisure,Supplies & Services,Provisions,R & COMPANY,21/02/2022,150.19
"Communities, Customer & Commercial Services",Sport & Leisure,Supplies & Services,Provisions,R & COMPANY,21/02/2022,102
"Communities, Customer & Commercial Services",Sport & Leisure,Supplies & Services,Provisions,R & COMPANY,21/02/2022,126.03
"Communities, Customer & Commercial Services",Sport & Leisure,Supplies & Services,Provisions,R & COMPANY,21/02/2022,194.06
"Communities, Customer & Commercial Services",Sport & Leisure,Premises-Related Expenditure,Clean Mats & Toilet Requisites,Border Janitorial Supplies Limited,21/02/2022,118.58
"Communities, Customer & Commercial Services",Sport & Leisure,Supplies & Services,Crockery/Hardware/Light Equip,Vegware,14/02/2022,210.18
"Communities, Customer & Commercial Services",Sport & Leisure,Supplies & Services,Crockery/Hardware/Light Equip,PLANGLOW LTD,14/02/2022,464.41
"Communities, Customer & Commercial Services",Sport & Leisure,Supplies & Services,Crockery/Hardware/Light Equip,Vegware,18/02/2022,847.73
"Communities, Customer & Commercial Services",Sport & Leisure,Supplies & Services,Crockery/Hardware/Light Equip,PLANGLOW LTD,28/02/2022,113.44
"Communities, Customer & Commercial Services",Sport & Leisure,Supplies & Services,Provisions,On A Roll,14/02/2022,136.42
"Communities, Customer & Commercial Services",Sport & Leisure,Supplies & Services,Provisions,On A Roll,14/02/2022,195.07
"Communities, Customer & Commercial Services",Sport & Leisure,Supplies & Services,Provisions,On A Roll,14/02/2022,207.15
"Communities, Customer & Commercial Services",Sport & Leisure,Supplies & Services,Provisions,On A Roll,14/02/2022,680.93
"Communities, Customer & Commercial Services",Sport & Leisure,Supplies & Services,Provisions,On A Roll,14/02/2022,107.26
"Communities, Customer & Commercial Services",Sport & Leisure,Supplies & Services,Provisions,On A Roll,14/02/2022,195.07
"Communities, Customer & Commercial Services",Sport & Leisure,Supplies & Services,Provisions,On A Roll,14/02/2022,207.15
"Communities, Customer & Commercial Services",Sport & Leisure,Supplies & Services,Provisions,PASTA KING (UK) LIMITED,14/02/2022,329.6
"Communities, Customer & Commercial Services",Sport & Leisure,Supplies & Services,Provisions,PASTA KING (UK) LIMITED,14/02/2022,119.9
"Communities, Customer & Commercial Services",Sport & Leisure,Supplies & Services,Provisions,T FOOD SERVICE LTD,14/02/2022,180.5
"Communities, Customer & Commercial Services",Sport & Leisure,Supplies & Services,Provisions,T FOOD SERVICE LTD,14/02/2022,553.1
"Communities, Customer & Commercial Services",Sport & Leisure,Supplies & Services,Provisions,T FOOD SERVICE LTD,14/02/2022,108.1
"Communities, Customer & Commercial Services",Sport & Leisure,Supplies & Services,Provisions,T FOOD SERVICE LTD,14/02/2022,362.4
"Communities, Customer & Commercial Services",Sport & Leisure,Supplies & Services,Provisions,T FOOD SERVICE LTD,14/02/2022,531.6
"Communities, Customer & Commercial Services",Sport & Leisure,Supplies & Services,Provisions,T FOOD SERVICE LTD,14/02/2022,115
"Communities, Customer & Commercial Services",Sport & Leisure,Supplies & Services,Provisions,T FOOD SERVICE LTD,14/02/2022,255.6
"Communities, Customer & Commercial Services",Sport & Leisure,Supplies & Services,Provisions,T FOOD SERVICE LTD,14/02/2022,100.6
"Communities, Customer & Commercial Services",Sport & Leisure,Supplies & Services,Provisions,T FOOD SERVICE LTD,14/02/2022,533.4
"Communities, Customer & Commercial Services",Sport & Leisure,Supplies & Services,Provisions,PASTA KING (UK) LIMITED,04/02/2022,197.76
"Communities, Customer & Commercial Services",Sport & Leisure,Supplies & Services,Provisions,PASTA KING (UK) LIMITED,04/02/2022,329.6
"Communities, Customer & Commercial Services",Sport & Leisure,Supplies & Services,Provisions,BIKOLD,11/02/2022,274.41
"Communities, Customer & Commercial Services",Sport & Leisure,Supplies & Services,Provisions,BIKOLD,11/02/2022,601.52
"Communities, Customer & Commercial Services",Sport & Leisure,Supplies & Services,Provisions,BIKOLD,11/02/2022,784.97
"Communities, Customer & Commercial Services",Sport & Leisure,Supplies & Services,Provisions,PASTA KING (UK) LIMITED,01/02/2022,461.44
"Communities, Customer & Commercial Services",Sport & Leisure,Supplies & Services,Provisions,SPICE TIME,01/02/2022,144
"Communities, Customer & Commercial Services",Sport & Leisure,Supplies & Services,Provisions,T FOOD SERVICE LTD,01/02/2022,286.12
"Communities, Customer & Commercial Services",Sport & Leisure,Supplies & Services,Provisions,PASTA KING (UK) LIMITED,01/02/2022,131.84
"Communities, Customer & Commercial Services",Sport & Leisure,Supplies & Services,Provisions,PASTA KING (UK) LIMITED,01/02/2022,197.76
"Communities, Customer & Commercial Services",Sport & Leisure,Supplies & Services,Provisions,PASTA KING (UK) LIMITED,01/02/2022,296.64
"Communities, Customer & Commercial Services",Sport & Leisure,Supplies & Services,Provisions,BIKOLD,18/02/2022,104.02
"Communities, Customer & Commercial Services",Sport & Leisure,Supplies & Services,Provisions,BIKOLD,18/02/2022,155.32
"Communities, Customer & Commercial Services",Sport & Leisure,Supplies & Services,Provisions,BIKOLD,18/02/2022,274.89
"Communities, Customer & Commercial Services",Sport & Leisure,Supplies & Services,Provisions,BIKOLD,18/02/2022,152.87
"Communities, Customer & Commercial Services",Sport & Leisure,Supplies & Services,Provisions,BIKOLD,18/02/2022,275.95
"Communities, Customer & Commercial Services",Sport & Leisure,Supplies & Services,Provisions,BIKOLD,18/02/2022,202.99
"Communities, Customer & Commercial Services",Sport & Leisure,Supplies & Services,Provisions,BIKOLD,18/02/2022,367.01
"Communities, Customer & Commercial Services",Sport & Leisure,Supplies & Services,Provisions,BIKOLD,18/02/2022,246.21
"Communities, Customer & Commercial Services",Sport & Leisure,Supplies & Services,Provisions,BIKOLD,18/02/2022,459.43
"Communities, Customer & Commercial Services",Sport & Leisure,Supplies & Services,Provisions,BIKOLD,18/02/2022,102.42
"Communities, Customer & Commercial Services",Sport & Leisure,Supplies & Services,Provisions,BIKOLD,18/02/2022,255.44
"Communities, Customer & Commercial Services",Sport & Leisure,Supplies & Services,Provisions,BIKOLD,18/02/2022,254.3
"Communities, Customer & Commercial Services",Sport & Leisure,Supplies & Services,Provisions,BIKOLD,18/02/2022,454.31
"Communities, Customer & Commercial Services",Sport & Leisure,Supplies & Services,Provisions,BIKOLD,18/02/2022,228.89
"Communities, Customer & Commercial Services",Sport & Leisure,Supplies & Services,Provisions,BIKOLD,18/02/2022,109.2
"Communities, Customer & Commercial Services",Sport & Leisure,Supplies & Services,Provisions,BIKOLD,18/02/2022,137.96
"Communities, Customer & Commercial Services",Sport & Leisure,Supplies & Services,Provisions,BIKOLD,18/02/2022,189.56
"Communities, Customer & Commercial Services",Sport & Leisure,Supplies & Services,Provisions,BIKOLD,18/02/2022,475.13
"Communities, Customer & Commercial Services",Sport & Leisure,Supplies & Services,Provisions,BIKOLD,18/02/2022,221.06
"Communities, Customer & Commercial Services",Sport & Leisure,Supplies & Services,Provisions,BIKOLD,18/02/2022,663.14
"Communities, Customer & Commercial Services",Sport & Leisure,Supplies & Services,Provisions,BIKOLD,18/02/2022,138.51
"Communities, Customer & Commercial Services",Sport & Leisure,Supplies & Services,Provisions,BIKOLD,18/02/2022,219
"Communities, Customer & Commercial Services",Sport & Leisure,Supplies & Services,Provisions,BIKOLD,18/02/2022,510.45
"Communities, Customer & Commercial Services",Sport & Leisure,Supplies & Services,Provisions,BIKOLD,18/02/2022,514.95
"Communities, Customer & Commercial Services",Sport & Leisure,Supplies & Services,Provisions,BIKOLD,18/02/2022,546.02
"Communities, Customer & Commercial Services",Sport & Leisure,Supplies & Services,Provisions,BIKOLD,18/02/2022,1167.66
"Communities, Customer & Commercial Services",Sport & Leisure,Supplies & Services,Provisions,BIKOLD,03/02/2022,841.34
"Communities, Customer & Commercial Services",Sport & Leisure,Supplies & Services,Provisions,BIKOLD,03/02/2022,543.73
"Communities, Customer & Commercial Services",Sport & Leisure,Supplies & Services,Provisions,BIKOLD,03/02/2022,172.59
"Communities, Customer & Commercial Services",Sport & Leisure,Supplies & Services,Provisions,BIKOLD,03/02/2022,169.68
"Communities, Customer & Commercial Services",Sport & Leisure,Supplies & Services,Provisions,BIKOLD,03/02/2022,410.03
"Communities, Customer & Commercial Services",Sport & Leisure,Supplies & Services,Provisions,BIKOLD,03/02/2022,163.58
"Communities, Customer & Commercial Services",Sport & Leisure,Supplies & Services,Provisions,BIKOLD,03/02/2022,105.5
"Communities, Customer & Commercial Services",Sport & Leisure,Supplies & Services,Provisions,BIKOLD,03/02/2022,121.08
"Communities, Customer & Commercial Services",Sport & Leisure,Supplies & Services,Provisions,BIKOLD,03/02/2022,102.79
"Communities, Customer & Commercial Services",Sport & Leisure,Supplies & Services,Provisions,BIKOLD,03/02/2022,230.86
"Communities, Customer & Commercial Services",Sport & Leisure,Supplies & Services,Provisions,BIKOLD,03/02/2022,104.47
"Communities, Customer & Commercial Services",Sport & Leisure,Supplies & Services,Provisions,BIKOLD,03/02/2022,316.35
"Communities, Customer & Commercial Services",Sport & Leisure,Supplies & Services,Provisions,BIKOLD,03/02/2022,477.7
"Communities, Customer & Commercial Services",Sport & Leisure,Supplies & Services,Provisions,BIKOLD,03/02/2022,147.54
"Communities, Customer & Commercial Services",Sport & Leisure,Supplies & Services,Provisions,BIKOLD,03/02/2022,295.53
"Communities, Customer & Commercial Services",Sport & Leisure,Supplies & Services,Provisions,BIKOLD,03/02/2022,120.52
"Communities, Customer & Commercial Services",Sport & Leisure,Supplies & Services,Provisions,BIKOLD,03/02/2022,428.31
"Communities, Customer & Commercial Services",Sport & Leisure,Supplies & Services,Provisions,BIKOLD,03/02/2022,219.44
"Communities, Customer & Commercial Services",Sport & Leisure,Supplies & Services,Provisions,BIKOLD,03/02/2022,251.33
"Communities, Customer & Commercial Services",Sport & Leisure,Supplies & Services,Provisions,BIKOLD,03/02/2022,715.99
"Communities, Customer & Commercial Services",Sport & Leisure,Supplies & Services,Provisions,BIKOLD,03/02/2022,264.5
"Communities, Customer & Commercial Services",Sport & Leisure,Supplies & Services,Provisions,BIKOLD,03/02/2022,639.22
"Communities, Customer & Commercial Services",Sport & Leisure,Supplies & Services,Provisions,BIKOLD,03/02/2022,206.86
"Communities, Customer & Commercial Services",Sport & Leisure,Supplies & Services,Provisions,BIKOLD,03/02/2022,107.41
"Communities, Customer & Commercial Services",Sport & Leisure,Supplies & Services,Provisions,BIKOLD,03/02/2022,-262.9
"Communities, Customer & Commercial Services",Sport & Leisure,Supplies & Services,Provisions,BIKOLD,03/02/2022,106.93
"Communities, Customer & Commercial Services",Sport & Leisure,Supplies & Services,Provisions,BIKOLD,03/02/2022,647.99
"Communities, Customer & Commercial Services",Sport & Leisure,Supplies & Services,Provisions,BIKOLD,03/02/2022,605.31
"Communities, Customer & Commercial Services",Sport & Leisure,Supplies & Services,Provisions,R & COMPANY,17/02/2022,137.96
"Communities, Customer & Commercial Services",Sport & Leisure,Supplies & Services,Provisions,R & COMPANY,10/02/2022,103.63
"Communities, Customer & Commercial Services",Sport & Leisure,Supplies & Services,Provisions,R & COMPANY,10/02/2022,112.03
"Communities, Customer & Commercial Services",Sport & Leisure,Supplies & Services,Provisions,On A Roll,18/02/2022,107.26
"Communities, Customer & Commercial Services",Sport & Leisure,Supplies & Services,Provisions,On A Roll,18/02/2022,195.07
"Communities, Customer & Commercial Services",Sport & Leisure,Supplies & Services,Provisions,On A Roll,18/02/2022,207.15
"Communities, Customer & Commercial Services",Sport & Leisure,Supplies & Services,Provisions,On A Roll,18/02/2022,680.93
"Communities, Customer & Commercial Services",Sport & Leisure,Supplies & Services,Provisions,SPICE TIME,18/02/2022,144
"Communities, Customer & Commercial Services",Sport & Leisure,Supplies & Services,Provisions,J S Catering Butchers,08/02/2022,141.98
"Communities, Customer & Commercial Services",Sport & Leisure,Supplies & Services,Provisions,J S Catering Butchers,08/02/2022,162.68
"Communities, Customer & Commercial Services",Sport & Leisure,Supplies & Services,Provisions,J S Catering Butchers,14/02/2022,170.51
"Communities, Customer & Commercial Services",Sport & Leisure,Supplies & Services,Provisions,J S Catering Butchers,14/02/2022,119.94
"Communities, Customer & Commercial Services",Sport & Leisure,Supplies & Services,Provisions,Delice de France,14/02/2022,448.14
"Communities, Customer & Commercial Services",Sport & Leisure,Supplies & Services,Provisions,Delice de France,14/02/2022,255.2
"Communities, Customer & Commercial Services",Sport & Leisure,Supplies & Services,Provisions,On A Roll,14/02/2022,680.93
"Communities, Customer & Commercial Services",Sport & Leisure,Supplies & Services,Provisions,T FOOD SERVICE LTD,14/02/2022,490.4
"Communities, Customer & Commercial Services",Sport & Leisure,Supplies & Services,Provisions,T FOOD SERVICE LTD,14/02/2022,233.12
"Communities, Customer & Commercial Services",Sport & Leisure,Supplies & Services,Provisions,T FOOD SERVICE LTD,14/02/2022,844
"Communities, Customer & Commercial Services",Sport & Leisure,Supplies & Services,Provisions,PASTA KING (UK) LIMITED,14/02/2022,263.68
"Communities, Customer & Commercial Services",Sport & Leisure,Supplies & Services,Provisions,PASTA KING (UK) LIMITED,14/02/2022,362.56
"Communities, Customer & Commercial Services",Sport & Leisure,Supplies & Services,Provisions,T FOOD SERVICE LTD,14/02/2022,311.3
"Communities, Customer & Commercial Services",Sport & Leisure,Supplies & Services,Provisions,T FOOD SERVICE LTD,14/02/2022,434.6
"Communities, Customer & Commercial Services",Sport & Leisure,Supplies & Services,Provisions,T FOOD SERVICE LTD,14/02/2022,382
"Communities, Customer & Commercial Services",Sport & Leisure,Supplies & Services,Provisions,T FOOD SERVICE LTD,14/02/2022,506.1
"Communities, Customer & Commercial Services",Sport & Leisure,Supplies & Services,Provisions,BIKOLD,25/02/2022,121.19
"Communities, Customer & Commercial Services",Sport & Leisure,Supplies & Services,Provisions,BIKOLD,25/02/2022,283.26
"Communities, Customer & Commercial Services",Sport & Leisure,Supplies & Services,Provisions,BIKOLD,25/02/2022,155.96
"Communities, Customer & Commercial Services",Sport & Leisure,Supplies & Services,Provisions,BIKOLD,25/02/2022,111.2
"Communities, Customer & Commercial Services",Sport & Leisure,Supplies & Services,Provisions,BIKOLD,11/02/2022,434.5
"Communities, Customer & Commercial Services",Sport & Leisure,Supplies & Services,Provisions,BIKOLD,11/02/2022,440.87
"Communities, Customer & Commercial Services",Sport & Leisure,Supplies & Services,Provisions,BIKOLD,11/02/2022,243.73
"Communities, Customer & Commercial Services",Sport & Leisure,Supplies & Services,Provisions,BIKOLD,11/02/2022,389.14
"Communities, Customer & Commercial Services",Sport & Leisure,Supplies & Services,Provisions,BIKOLD,11/02/2022,128.38
"Communities, Customer & Commercial Services",Sport & Leisure,Supplies & Services,Provisions,BIKOLD,11/02/2022,459.4
"Communities, Customer & Commercial Services",Sport & Leisure,Supplies & Services,Provisions,BIKOLD,11/02/2022,992.64
"Communities, Customer & Commercial Services",Sport & Leisure,Supplies & Services,Provisions,BIKOLD,11/02/2022,132.65
"Communities, Customer & Commercial Services",Sport & Leisure,Supplies & Services,Provisions,BIKOLD,11/02/2022,955.31
"Communities, Customer & Commercial Services",Sport & Leisure,Supplies & Services,Provisions,BIKOLD,11/02/2022,482.73
"Communities, Customer & Commercial Services",Sport & Leisure,Supplies & Services,Provisions,BIKOLD,11/02/2022,403.1
"Communities, Customer & Commercial Services",Sport & Leisure,Supplies & Services,Provisions,BIKOLD,11/02/2022,556.43
"Communities, Customer & Commercial Services",Sport & Leisure,Supplies & Services,Provisions,BIKOLD,11/02/2022,194.24
"Communities, Customer & Commercial Services",Sport & Leisure,Supplies & Services,Provisions,BIKOLD,11/02/2022,249.59
"Communities, Customer & Commercial Services",Sport & Leisure,Supplies & Services,Provisions,BIKOLD,11/02/2022,146.73
"Communities, Customer & Commercial Services",Sport & Leisure,Supplies & Services,Provisions,BIKOLD,11/02/2022,166.12
"Communities, Customer & Commercial Services",Sport & Leisure,Supplies & Services,Provisions,BIKOLD,11/02/2022,238.35
"Communities, Customer & Commercial Services",Sport & Leisure,Supplies & Services,Provisions,BIKOLD,11/02/2022,129.87
"Communities, Customer & Commercial Services",Sport & Leisure,Supplies & Services,Provisions,BIKOLD,11/02/2022,517.11
"Communities, Customer & Commercial Services",Sport & Leisure,Supplies & Services,Provisions,BIKOLD,11/02/2022,232.98
"Communities, Customer & Commercial Services",Sport & Leisure,Supplies & Services,Provisions,BIKOLD,11/02/2022,584.84
"Communities, Customer & Commercial Services",Sport & Leisure,Supplies & Services,Provisions,BIKOLD,11/02/2022,135.29
"Communities, Customer & Commercial Services",Sport & Leisure,Supplies & Services,Provisions,BIKOLD,11/02/2022,344.24
"Communities, Customer & Commercial Services",Sport & Leisure,Supplies & Services,Provisions,BIKOLD,11/02/2022,513.05
"Communities, Customer & Commercial Services",Sport & Leisure,Supplies & Services,Provisions,BIKOLD,11/02/2022,250.84
"Communities, Customer & Commercial Services",Sport & Leisure,Supplies & Services,Provisions,BIKOLD,11/02/2022,192.58
"Communities, Customer & Commercial Services",Sport & Leisure,Supplies & Services,Provisions,J S Catering Butchers,22/02/2022,171.07
"Communities, Customer & Commercial Services",Sport & Leisure,Supplies & Services,Provisions,J S Catering Butchers,21/02/2022,142.56
"Communities, Customer & Commercial Services",Sport & Leisure,Supplies & Services,Provisions,J S Catering Butchers,21/02/2022,170.25
"Communities, Customer & Commercial Services",Sport & Leisure,Supplies & Services,Provisions,R & COMPANY,21/02/2022,112.3
"Communities, Customer & Commercial Services",Sport & Leisure,Supplies & Services,Provisions,On A Roll,28/02/2022,107.26
"Communities, Customer & Commercial Services",Sport & Leisure,Supplies & Services,Provisions,On A Roll,28/02/2022,195.03
"Communities, Customer & Commercial Services",Sport & Leisure,Supplies & Services,Provisions,On A Roll,28/02/2022,155.2
"Communities, Customer & Commercial Services",Sport & Leisure,Supplies & Services,Provisions,On A Roll,28/02/2022,539.43
"Communities, Customer & Commercial Services",Sport & Leisure,Supplies & Services,Provisions,Delice de France,28/02/2022,101.09
"Communities, Customer & Commercial Services",Sport & Leisure,Supplies & Services,Provisions,Delice de France,28/02/2022,283.28
"Communities, Customer & Commercial Services",Sport & Leisure,Supplies & Services,Provisions,PASTA KING (UK) LIMITED,28/02/2022,197.76
"Communities, Customer & Commercial Services",Sport & Leisure,Supplies & Services,Provisions,T FOOD SERVICE LTD,28/02/2022,359.06
"Communities, Customer & Commercial Services",Sport & Leisure,Supplies & Services,Provisions,T FOOD SERVICE LTD,28/02/2022,393
"Communities, Customer & Commercial Services",Sport & Leisure,Supplies & Services,Provisions,T FOOD SERVICE LTD,28/02/2022,265
"Communities, Customer & Commercial Services",Sport & Leisure,Supplies & Services,Provisions,T FOOD SERVICE LTD,28/02/2022,244.5
"Communities, Customer & Commercial Services",Sport & Leisure,Supplies & Services,Provisions,PASTA KING (UK) LIMITED,28/02/2022,362.56
"Communities, Customer & Commercial Services",Sport & Leisure,Supplies & Services,Provisions,T FOOD SERVICE LTD,28/02/2022,116.5
"Communities, Customer & Commercial Services",Sport & Leisure,Supplies & Services,Provisions,T FOOD SERVICE LTD,28/02/2022,148.5
"Communities, Customer & Commercial Services",Sport & Leisure,Supplies & Services,Provisions,T FOOD SERVICE LTD,28/02/2022,244.18
"Communities, Customer & Commercial Services",Sport & Leisure,Supplies & Services,Provisions,T FOOD SERVICE LTD,28/02/2022,276.54
"Communities, Customer & Commercial Services",Sport & Leisure,Supplies & Services,Provisions,T FOOD SERVICE LTD,28/02/2022,207.14
"Communities, Customer & Commercial Services",Sport & Leisure,Premises-Related Expenditure,Clean Mats & Toilet Requisites,Border Janitorial Supplies Limited,08/02/2022,442.67
"Communities, Customer & Commercial Services",Sport & Leisure,Premises-Related Expenditure,Contract Cleaning,Vortex Cleaning Ltd,08/02/2022,500
"Communities, Customer & Commercial Services",Sport & Leisure,Premises-Related Expenditure,Clean Mats & Toilet Requisites,Border Janitorial Supplies Limited,08/02/2022,413.69
"Communities, Customer & Commercial Services",Sport & Leisure,Premises-Related Expenditure,Clean Mats & Toilet Requisites,Border Janitorial Supplies Limited,08/02/2022,115.44
"Communities, Customer & Commercial Services",Sport & Leisure,Premises-Related Expenditure,Clean Mats & Toilet Requisites,Border Janitorial Supplies Limited,08/02/2022,325
"Communities, Customer & Commercial Services",Sport & Leisure,Premises-Related Expenditure,Clean Mats & Toilet Requisites,Border Janitorial Supplies Limited,08/02/2022,312.14
"Communities, Customer & Commercial Services",Sport & Leisure,Premises-Related Expenditure,Clean Mats & Toilet Requisites,Border Janitorial Supplies Limited,08/02/2022,297.6
"Communities, Customer & Commercial Services",Sport & Leisure,Premises-Related Expenditure,Clean Mats & Toilet Requisites,Border Janitorial Supplies Limited,08/02/2022,156.84
"Communities, Customer & Commercial Services",Sport & Leisure,Premises-Related Expenditure,Clean Mats & Toilet Requisites,Border Janitorial Supplies Limited,08/02/2022,319.6
"Communities, Customer & Commercial Services",Sport & Leisure,Premises-Related Expenditure,Clean Mats & Toilet Requisites,Border Janitorial Supplies Limited,08/02/2022,3781.2
"Communities, Customer & Commercial Services",Sport & Leisure,Premises-Related Expenditure,Clean Mats & Toilet Requisites,Border Janitorial Supplies Limited,08/02/2022,142.58
"Communities, Customer & Commercial Services",Sport & Leisure,Employees,Staff Training,Aquafactors,08/02/2022,495
"Communities, Customer & Commercial Services",Sport & Leisure,Supplies & Services,Subscriptions,BRITISH INSTITUTE OF CLEANING SCIENCE (BICS),08/02/2022,298
"Communities, Customer & Commercial Services",Sport & Leisure,Supplies & Services,Equipment - Purchase,Aquafactors,08/02/2022,278.25
"Communities, Customer & Commercial Services",Sport & Leisure,Premises-Related Expenditure,Clean Mats & Toilet Requisites,Border Janitorial Supplies Limited,08/02/2022,368.16
"Communities, Customer & Commercial Services",Sport & Leisure,Premises-Related Expenditure,Clean Mats & Toilet Requisites,Border Janitorial Supplies Limited,08/02/2022,295.22
"Communities, Customer & Commercial Services",Sport & Leisure,Premises-Related Expenditure,Clean Mats & Toilet Requisites,Border Janitorial Supplies Limited,08/02/2022,311.22
"Communities, Customer & Commercial Services",Sport & Leisure,Premises-Related Expenditure,Clean Mats & Toilet Requisites,Border Janitorial Supplies Limited,08/02/2022,176.42
"Communities, Customer & Commercial Services",Sport & Leisure,Premises-Related Expenditure,Clean Mats & Toilet Requisites,Border Janitorial Supplies Limited,08/02/2022,258.17
"Communities, Customer & Commercial Services",Sport & Leisure,Premises-Related Expenditure,Clean Mats & Toilet Requisites,Border Janitorial Supplies Limited,08/02/2022,208.22
"Communities, Customer & Commercial Services",Sport & Leisure,Premises-Related Expenditure,Clean Mats & Toilet Requisites,Border Janitorial Supplies Limited,08/02/2022,150.24
"Communities, Customer & Commercial Services",Sport & Leisure,Premises-Related Expenditure,Clean Mats & Toilet Requisites,Border Janitorial Supplies Limited,08/02/2022,144.4
"Communities, Customer & Commercial Services",Sport & Leisure,Premises-Related Expenditure,Clean Mats & Toilet Requisites,Border Janitorial Supplies Limited,08/02/2022,144.4
"Communities, Customer & Commercial Services",Sport & Leisure,Premises-Related Expenditure,Clean Mats & Toilet Requisites,Border Janitorial Supplies Limited,08/02/2022,178.5
"Communities, Customer & Commercial Services",Sport & Leisure,Premises-Related Expenditure,Clean Mats & Toilet Requisites,Border Janitorial Supplies Limited,08/02/2022,139.44
"Communities, Customer & Commercial Services",Sport & Leisure,Premises-Related Expenditure,Clean Mats & Toilet Requisites,Border Janitorial Supplies Limited,08/02/2022,328.97
"Communities, Customer & Commercial Services",Sport & Leisure,Premises-Related Expenditure,Clean Mats & Toilet Requisites,Border Janitorial Supplies Limited,08/02/2022,287.88
"Communities, Customer & Commercial Services",Sport & Leisure,Supplies & Services,Provisions,BIKOLD,18/02/2022,142.74
"Communities, Customer & Commercial Services",Sport & Leisure,Supplies & Services,Provisions,BIKOLD,03/02/2022,109.24
"Communities, Customer & Commercial Services",Sport & Leisure,Supplies & Services,Provisions,BIKOLD,25/02/2022,114.64
"Communities, Customer & Commercial Services",Sport & Leisure,Employees,Staff Training,TWR training linited,07/02/2022,350
"Communities, Customer & Commercial Services",Sport & Leisure,Employees,Staff Training,TWR training linited,07/02/2022,232
"Communities, Customer & Commercial Services",Sport & Leisure,Supplies & Services,Sub Contractors,HAGS-SMP LTD,16/02/2022,172
"Communities, Customer & Commercial Services",Sport & Leisure,Supplies & Services,Sub Contractors,A1 Glass & Glazing (Shropshire) Limited,18/02/2022,335
"Communities, Customer & Commercial Services",Sport & Leisure,Supplies & Services,Sub Contractors,BUSINESS WATCH GUARDING LIMITED,10/02/2022,248
"Communities, Customer & Commercial Services",Sport & Leisure,Supplies & Services,Sub Contractors,S PLAY LTD,25/02/2022,44693.85
"Communities, Customer & Commercial Services",Sport & Leisure,Supplies & Services,Sub Contractors,MSM Plant Limited,21/02/2022,121.2
"Communities, Customer & Commercial Services",Sport & Leisure,Transport-Related Expenditure,District Council Vehicles,C STORES LTD,25/02/2022,216.85
"Communities, Customer & Commercial Services",Sport & Leisure,Supplies & Services,Chemicals/Cleaning Products,J P LLTD,16/02/2022,605
"Communities, Customer & Commercial Services",Sport & Leisure,Supplies & Services,Items For Resale,J P LLTD,08/02/2022,120
"Communities, Customer & Commercial Services",Sport & Leisure,Supplies & Services,Equipment - Purchase,J P LLTD,23/02/2022,375.3
"Communities, Customer & Commercial Services",Sport & Leisure,Employees,Staff Training,INSTITUTE OF SWIMMING,14/02/2022,375
"Communities, Customer & Commercial Services",Sport & Leisure,Employees,Staff Training,INSTITUTE OF SWIMMING,14/02/2022,375
"Communities, Customer & Commercial Services",Sport & Leisure,Employees,Staff Training,INSTITUTE OF SWIMMING,14/02/2022,375
"Communities, Customer & Commercial Services",Sport & Leisure,Supplies & Services,Financial Services,DEBIT FINANCE COLLECTIONS ,08/02/2022,148.52
"Communities, Customer & Commercial Services",Sport & Leisure,Supplies & Services,Licences,L M Fitness UK Ltd,17/02/2022,789.17
"Communities, Customer & Commercial Services",Sport & Leisure,Supplies & Services,Financial Services,DEBIT FINANCE COLLECTIONS ,08/02/2022,291.2
"Communities, Customer & Commercial Services",Sport & Leisure,Supplies & Services,Equipment - Purchase,Stage and Studios Services Limited,22/02/2022,1580
"Communities, Customer & Commercial Services",Sport & Leisure,Supplies & Services,Items For Resale,SWIM ENGLAND TRADING LIMITED ,03/02/2022,580.17
"Communities, Customer & Commercial Services",Sport & Leisure,Supplies & Services,Chemicals/Cleaning Products,BRENNTAG UK LIMITED,01/02/2022,255
"Communities, Customer & Commercial Services",Sport & Leisure,Supplies & Services,Financial Services,DEBIT FINANCE COLLECTIONS ,08/02/2022,315.74
"Communities, Customer & Commercial Services",Sport & Leisure,Supplies & Services,Licences,L M Fitness UK Ltd,14/02/2022,395.63
"Communities, Customer & Commercial Services",Sport & Leisure,Supplies & Services,Licences,L M Fitness UK Ltd,14/02/2022,565.18
"Communities, Customer & Commercial Services",Sport & Leisure,Supplies & Services,Licences,L M Fitness UK Ltd,14/02/2022,565.18
"Communities, Customer & Commercial Services",Sport & Leisure,Supplies & Services,Licences,L M Fitness UK Ltd,14/02/2022,282.59
"Communities, Customer & Commercial Services",Sport & Leisure,Supplies & Services,Licences,L M Fitness UK Ltd,14/02/2022,282.59
"Communities, Customer & Commercial Services",Sport & Leisure,Supplies & Services,Licences,L M Fitness UK Ltd,14/02/2022,282.59
"Communities, Customer & Commercial Services",Sport & Leisure,Employees,Staff Training,INSTITUTE OF SWIMMING,14/02/2022,375
"Communities, Customer & Commercial Services",Sport & Leisure,Supplies & Services,Financial Services,DEBIT FINANCE COLLECTIONS ,08/02/2022,117.32
"Communities, Customer & Commercial Services",Sport & Leisure,Supplies & Services,Equipment - Purchase,Wrockwardine Wood Recreation Ground,03/02/2022,650
"Communities, Customer & Commercial Services",Sport & Leisure,Supplies & Services,Equipment - Purchase,We Do Tennis CIC,14/02/2022,800
"Communities, Customer & Commercial Services",Sport & Leisure,Supplies & Services,Advertising,THE MIDLAND NEWS ASSOCIATION LTD,04/02/2022,1445
"Communities, Customer & Commercial Services",Sport & Leisure,Supplies & Services,Advertising,DLM DISTRIBUTIONS LTD,11/02/2022,550
"Communities, Customer & Commercial Services",Sport & Leisure,Supplies & Services,Advertising,DLM DISTRIBUTIONS LTD,11/02/2022,275
"Communities, Customer & Commercial Services",Sport & Leisure,Supplies & Services,Financial Services,DEBIT FINANCE COLLECTIONS,08/02/2022,179.44
"Communities, Customer & Commercial Services",Sport & Leisure,Supplies & Services,Protective Clothing,CORPORATE TOGS LTD,04/02/2022,246.25
"Communities, Customer & Commercial Services",Sport & Leisure,Supplies & Services,Equipment - Hire,SKIPS TELFORD LTD,21/02/2022,200
"Communities, Customer & Commercial Services",Sport & Leisure,Premises-Related Expenditure,R&M WC Planned,Agrovista UK LTD,14/02/2022,970.5
"Communities, Customer & Commercial Services",Sport & Leisure,Supplies & Services,Equipment - Purchase,Agrovista UK LTD,24/02/2022,153.94
"Communities, Customer & Commercial Services",Sport & Leisure,Transport-Related Expenditure,Servicing & Repairs V&P,C STORES LTD,21/02/2022,3772.89
"Communities, Customer & Commercial Services",Sport & Leisure,Supplies & Services,Provisions,Handmade Speciality Products Ltd,14/02/2022,293.24
"Communities, Customer & Commercial Services",Sport & Leisure,Supplies & Services,Provisions,BIKOLD,18/02/2022,1008.53
"Communities, Customer & Commercial Services",Sport & Leisure,Supplies & Services,Provisions,BIKOLD,18/02/2022,490.19
"Communities, Customer & Commercial Services",Sport & Leisure,Supplies & Services,Provisions,BIKOLD,18/02/2022,264.04
"Communities, Customer & Commercial Services",Sport & Leisure,Supplies & Services,Provisions,BIKOLD,18/02/2022,508.16
"Communities, Customer & Commercial Services",Sport & Leisure,Supplies & Services,Provisions,BIKOLD,03/02/2022,370.31
"Communities, Customer & Commercial Services",Sport & Leisure,Supplies & Services,Provisions,BIKOLD,03/02/2022,315.67
"Communities, Customer & Commercial Services",Sport & Leisure,Supplies & Services,Provisions,BIKOLD,25/02/2022,315.34
"Communities, Customer & Commercial Services",Sport & Leisure,Supplies & Services,Provisions,BIKOLD,25/02/2022,119.72
"Communities, Customer & Commercial Services",Sport & Leisure,Supplies & Services,Provisions,BIKOLD,25/02/2022,289.9
"Communities, Customer & Commercial Services",Sport & Leisure,Supplies & Services,Provisions,BIKOLD,11/02/2022,131.7
"Communities, Customer & Commercial Services",Sport & Leisure,Supplies & Services,Provisions,BIKOLD,11/02/2022,271.04
"Communities, Customer & Commercial Services",Sport & Leisure,Supplies & Services,Provisions,BIKOLD,11/02/2022,233.89
"Communities, Customer & Commercial Services",Sport & Leisure,Supplies & Services,Provisions,Delice de France,28/02/2022,678.57
"Communities, Customer & Commercial Services",Sport & Leisure,Supplies & Services,Payment Of Income Collected,Telford Tigers Limited,28/02/2022,4788.33
"Communities, Customer & Commercial Services",Sport & Leisure,Supplies & Services,Payment Of Income Collected,Telford Tigers Limited,01/02/2022,892.62
"Communities, Customer & Commercial Services",Sport & Leisure,Supplies & Services,Payment Of Income Collected,Telford Tigers Limited,11/02/2022,4803.77
"Communities, Customer & Commercial Services",Sport & Leisure,Supplies & Services,Payment Of Income Collected,Telford Tigers Limited,15/02/2022,-709.76
"Communities, Customer & Commercial Services",Sport & Leisure,Supplies & Services,Payment Of Income Collected,Telford Tigers Limited,08/02/2022,4478.08
"Communities, Customer & Commercial Services",Sport & Leisure,Supplies & Services,Payment Of Income Collected,Telford Tigers Limited,15/02/2022,6490.59
"Communities, Customer & Commercial Services",Sport & Leisure,Supplies & Services,Payment Of Income Collected,Telford Tigers Limited,21/02/2022,6463.08
"Communities, Customer & Commercial Services",Sport & Leisure,Premises-Related Expenditure,R&M Fixed Plant Other,HOOD AIRPORT & ICE LTD,15/02/2022,750
"Communities, Customer & Commercial Services",Sport & Leisure,Supplies & Services,Equipment - Purchase,ShowStoppers,11/02/2022,540
"Communities, Customer & Commercial Services",Sport & Leisure,Supplies & Services,Equipment - Hire,SLIDERS SKATE SHOP,11/02/2022,300
"Communities, Customer & Commercial Services",Sport & Leisure,Supplies & Services,Equipment - Hire,SLIDERS SKATE SHOP,11/02/2022,300
"Communities, Customer & Commercial Services",Sport & Leisure,Supplies & Services,Equipment - Purchase,ShowStoppers,17/02/2022,1020
"Communities, Customer & Commercial Services",Sport & Leisure,Supplies & Services,Equipment - Purchase,PS PROMOTIONS LTD,22/02/2022,150
"Communities, Customer & Commercial Services",Sport & Leisure,Supplies & Services,Items For Resale,BADGER BADGES,11/02/2022,165
"Communities, Customer & Commercial Services",Sport & Leisure,Supplies & Services,Items For Resale,W Workplace Solutions,15/02/2022,681.5
"Communities, Customer & Commercial Services",Sport & Leisure,Supplies & Services,Chemicals/Cleaning Products,BRENNTAG UK LIMITED,15/02/2022,320
"Communities, Customer & Commercial Services",Sport & Leisure,Supplies & Services,Financial Services,DEBIT FINANCE COLLECTIONS ,08/02/2022,518.22
"Communities, Customer & Commercial Services",Sport & Leisure,Supplies & Services,Licences,L M Fitness UK Ltd,14/02/2022,1145.37
"Communities, Customer & Commercial Services",Sport & Leisure,Supplies & Services,Licences,L M Fitness UK Ltd,14/02/2022,1145.37
"Communities, Customer & Commercial Services",Sport & Leisure,Supplies & Services,Financial Services,DEBIT FINANCE COLLECTIONS ,08/02/2022,216.1
"Communities, Customer & Commercial Services",Sport & Leisure,Supplies & Services,Chemicals/Cleaning Products,BRENNTAG UK LIMITED,04/02/2022,255
"Communities, Customer & Commercial Services",Sport & Leisure,Supplies & Services,Chemicals/Cleaning Products,BRENNTAG UK LIMITED,28/02/2022,156.24
"Communities, Customer & Commercial Services",Sport & Leisure,Supplies & Services,Fees,Austin Mix Ltd,22/02/2022,1390
"Communities, Customer & Commercial Services",Sport & Leisure,Supplies & Services,Fees,Austin Mix Ltd,21/02/2022,-280
"Communities, Customer & Commercial Services",Sport & Leisure,Supplies & Services,Homelessness Prevention,Austin Mix Ltd,21/02/2022,280
"Communities, Customer & Commercial Services",Sport & Leisure,Capital Expenditure,Payments to Contractor,Arien Designs Limited,02/02/2022,1240
"Communities, Customer & Commercial Services",Sport & Leisure,Capital Expenditure,Payments to Contractor,KEEP BRITAIN TIDY,25/02/2022,488.8
Corporate Communications,Communications & Marketing,Employees,Agency Supply Costs,M P international Recruitment Limited,11/02/2022,1057.88
Corporate Communications,Communications & Marketing,Employees,Agency Supply Costs,M P international Recruitment Limited,11/02/2022,863.7
Corporate Communications,Communications & Marketing,Employees,Agency Supply Costs,M P international Recruitment Limited,11/02/2022,1065.23
Corporate Communications,Communications & Marketing,Employees,Agency Supply Costs,M Pinternational Recruitment Limited,08/02/2022,1065.23
Corporate Communications,Communications & Marketing,Employees,Agency Supply Costs,H SPECIALIST RECRUITMENT,08/02/2022,999.15
Corporate Communications,Communications & Marketing,Employees,Agency Supply Costs,M P international Recruitment Limited,08/02/2022,1065.23
Corporate Communications,Communications & Marketing,Employees,Agency Supply Costs,H SPECIALIST RECRUITMENT,15/02/2022,999.15
Corporate Communications,Communications & Marketing,Employees,Agency Supply Costs,M P international Recruitment Limited,15/02/2022,331.09
Corporate Communications,Communications & Marketing,Employees,Agency Supply Costs,H SPECIALIST RECRUITMENT,15/02/2022,999.15
Corporate Communications,Communications & Marketing,Employees,Agency Supply Costs,M P international Recruitment Limited,25/02/2022,1065.23
Corporate Communications,Communications & Marketing,Employees,Agency Supply Costs,M P international Recruitment Limited,21/02/2022,1065.23
Corporate Communications,Communications & Marketing,Supplies & Services,Advertising, Lost World Media,18/02/2022,4900
Corporate Communications,Communications & Marketing,Supplies & Services,Community Newspaper,R F PHOTOGRAPHY,17/02/2022,200
Corporate Communications,Communications & Marketing,Premises-Related Expenditure,Other,THAMES CARD TECHNOLOGY LTD,15/02/2022,588.2
Corporate Communications,Communications & Marketing,Premises-Related Expenditure,Other,THAMES CARD TECHNOLOGY LTD,15/02/2022,664.62
Corporate Items,Corporate Codes,Supplies & Services,Other Services,INTERSERVE (FACILITIES MANAGEMENT) LTD (M FM LTD),17/02/2022,3331.99
Corporate Items,Corporate Codes,Supplies & Services,Other Services,INTERSERVE (FACILITIES MANAGEMENT) LTD (M FM LTD),17/02/2022,6272
Corporate Items,Corporate Codes,Capital Financing Costs,Unitary Charge,PYRAMID SCHOOLS (HADLEY) LTD,22/02/2022,931720.82
Corporate Items,Corporate Codes,Supplies & Services,Equipment - Purchase,INTERSERVE (FACILITIES MANAGEMENT) LTD (FM LTD),21/02/2022,268.75
Corporate Items,Corporate Codes,Supplies & Services,Other Services,ALLPAY.NET LIMITED,08/02/2022,1382.04
Corporate Items,Corporate Codes,Employees,Agency Supply Costs,Matrix SCM,22/02/2022,40409.62
Corporate Items,Corporate Codes,Employees,Agency Supply Costs,Matrix SCM,04/02/2022,43389.91
Corporate Items,Corporate Codes,Employees,Agency Supply Costs,Matrix SCM,10/02/2022,47007.64
Corporate Items,Corporate Codes,Employees,Agency Supply Costs,Matrix SCM,10/02/2022,38393.07
Corporate Items,Corporate Codes,Employees,Agency Supply Costs,Matrix SCM,28/02/2022,49865.98
Education & Skills,Consultancy & Advisory Services,Employees,Training Expenses,The Art of Possibilities Ltd,22/02/2022,4300
Education & Skills,Consultancy & Advisory Services,Employees,Training Exp's (Facilitators),J Training Management Ltd,15/02/2022,1980
Education & Skills,Consultancy & Advisory Services,Employees,Staff Training,J Training Management Ltd,22/02/2022,4356
Education & Skills,Consultancy & Advisory Services,Supplies & Services,Grants To Voluntary Organis,REDACTED PERSONAL INFORMATION,24/02/2022,250
Education & Skills,Consultancy & Advisory Services,Supplies & Services,Computer Software (Maint),Servelec Education Ltd,03/02/2022,2500
Education & Skills,Consultancy & Advisory Services,Supplies & Services,Other Services,Grange Park Primary School - Community Academies Trust,23/02/2022,500
Education & Skills,Consultancy & Advisory Services,Supplies & Services,Other Services,Wrekin View Primary School,23/02/2022,500
Education & Skills,Consultancy & Advisory Services,Supplies & Services,Other Services,TIGGY'S MONTESSORI NURSERY,23/02/2022,500
Education & Skills,Consultancy & Advisory Services,Supplies & Services,Other Grants (Expenses),EARLYWORLD LIMITED,24/02/2022,130
Education & Skills,Consultancy & Advisory Services,Supplies & Services,Other Grants (Expenses),EARLYWORLD LIMITED,15/02/2022,390
Education & Skills,Consultancy & Advisory Services,Supplies & Services,Other Grants (Expenses),HADLEY UNDER 5'S ,15/02/2022,400
Education & Skills,Consultancy & Advisory Services,Supplies & Services,Other Grants (Expenses),HALESFIELD DAY NURSERY CENTRE ,23/02/2022,520
Education & Skills,Consultancy & Advisory Services,Employees,Training Exp's (Facilitators),TAARC (Telford African & Afro Caribbean Resource Centre,04/02/2022,2250
Education & Skills,Consultancy & Advisory Services,Supplies & Services,Conference Expenses,GOVNET COMMUNICATIONS,07/02/2022,590
Education & Skills,Education & Skills,Capital Expenditure,Payments to Contractor,ASLES (TOOL HIRE & SALES) LTD,11/02/2022,720
Education & Skills,Education & Skills,Capital Expenditure,Legal Fees,W H SOLICITORS,15/02/2022,268
Education & Skills,Education & Skills,Capital Expenditure,Legal Fees,W H SOLICITORS,15/02/2022,830.4
Education & Skills,Education & Skills,Capital Expenditure,Legal Fees,W H SOLICITORS,15/02/2022,124.2
Education & Skills,Education & Skills,Capital Expenditure,Payments to Contractor,TAYLORS MECHANICAL H & P SERVICES LTD,07/02/2022,4825
